{"text_format":"1","workbook":"xlsx","n_sheets":10,"sheets":["Macro","A PROJ Instructions","B PROJ Budget","C COMP Instructions","D COMP Budget","E COMP Mise à jour Année 1","F COMP Mise à jour Année 2","G COMP Mise à jour Année 3","H COMP Activités","Data Validation"],"not_rendered":{"charts":0,"images":6,"macros":1,"external_links":0,"defined_names":17,"comments":0,"pivot_tables":0},"unopened":[],"bounds":{"document_bytes":16777216,"sheet_cells":100000,"rows_first":2000,"rows_last":500,"rows_between":2000,"halvings":0,"cell_chars":16384,"cell_head_chars":4096},"cells_cut":0,"cells_raw":0,"read":"whole","date_system":"1900"}

{"sheet":"Macro","index":0,"n_rows":32,"n_cols":2,"rows_kept":32,"cut":false,"hidden":false,"merged":[[31,1,32,15],[1,1,1,11],[4,1,4,15],[6,1,7,15],[3,1,3,15],[27,1,27,15],[29,1,29,15],[14,1,15,15],[17,1,17,15],[20,1,20,15]]}
[null,{"$f":"'Data Validation'!A1","v":"v202205"}]
[]
[]
[null,"Appuyer la pratique artistique"]
[null,"Innovation et développement du secteur"]
[]
[null,"Cette composante soutient de nombreux types d'activités qui ont leur propre section d'onglets avec des pages de budget. Ce document comprend une macro intégrée pour vous aider à vous diriger vers la section qui correspond à vos activités. Sélectionnez le bouton ci-dessous correspondant à votre type d'activité."]
[]
[]
[]
[]
[]
[]
[]
[null,"Si vous avez sélectionné le mauvais type de subvention, vous pouvez revenir à l'onglet « Macro » pour faire une nouvelle sélection.\nSi les paramètres de votre logiciel ou de votre ordinateur ne vous permettent pas d'utiliser les boutons, vous verrez tous les onglets sur cette page. Sélectionnez l'onglet qui contient les instructions relatives à votre type d'activité."]
[]
[]
[null,"Subventions de projets :"]
[]
[]
[null,"Subventions  composites :"]
[]
[]
[]
[]
[null,"1. Après avoir téléchargé le formulaire, sauvegardez-le sur votre ordinateur. Vous pouvez le sauvegarder sous un nom différent."]
[]
[null,"2. Chaque section a ses propres instructions. Chaque onglet suivant ces instructions contient un document distinct que vous devez remplir."]
[]
[null,"3. N’oubliez pas de sauvegarder à nouveau le document sur votre ordinateur.  Lorsque vous cliquez sur « Sauvegarder », tous les onglets sont sauvegardés en même temps."]
[]
[null,"4. Retournez au portail et téléversez le document complet à votre demande. Lorsque vous téléversez le document à votre formulaire de demande, tous les onglets y sont transférés ensemble."]

{"sheet":"A PROJ Instructions","index":1,"n_rows":40,"n_cols":3,"rows_kept":40,"cut":false,"hidden":false,"merged":[[37,1,37,15],[29,1,29,15],[31,1,32,15],[33,2,33,15],[35,1,36,15],[18,2,19,14],[20,2,21,15],[1,1,1,15],[6,1,6,15],[2,1,2,15],[3,1,4,15],[17,2,17,15]]}
[null,{"$f":"'Data Validation'!A1","v":"v202205"}]
[null,"Appuyer la pratique artistique : Innovation et développement du secteur - Subventions de projets"]
[null,"Instructions pour remplir le document du budget"]
[null,"Consultez l'onglet C pour les instructions de subventions composites"]
[]
[null,"Veuillez noter qu'au bas de la page se trouvent plusieurs onglets."]
[null,"Les candidats de subventions de projets doivent seulement consulter les 2 premiers onglets : « A PROJ Instructions » et « B PROJ Budget ». Il n'y a pas d'annexes pour les demandes de projets."]
[]
[]
[]
[null,"Chaque onglet suivant ces instructions contient un document distinct que vous dever remplir."]
[null,"Lorsque vous cliquez sur « Sauvegarder », tous les onglets sont sauvegardés en même temps."]
[null,"Lorsque vous téléversez le document à votre formulaire de demande, tous les onglets y sont transférés ensemble. "]
[]
[null,"1. Après avoir téléchargé le formulaire, sauvegardez-le sur votre ordinateur. Vous pouvez le sauvegarder sous un nom différent."]
[]
[null,"2. Complétez l'onglet « B PROJ Budget »."]
[null,null," - Veuillez inscrire les coûts au budget, y compris les notes expliquant vos calculs et si la dépense doit être financée par la subvention du Conseil des arts."]
[null,null," - Si votre projet inclut des coûts pour rendre le projet accessible aux participants Sourds ou handicapés, inscrivez ces coûts dans la section « Coûts d'accessibilité publique » à partir de la ligne 36 du B PROJ Budget."]
[]
[null,null," - Veuillez inscrire les revenus au budget. Ceux-ci sont partagés entre deux colonnes : « Confirmé » et « En attente ». Le « Total » est automatiquement calculé. Ajoutez les explications de vos calculs."]
[]
[]
[null,"3. N’oubliez pas de sauvegarder à nouveau le document sur votre ordinateur."]
[null,"4. Retournez au portail du CAC et téléversez le document complet à votre demande."]
[]
[null,"Si votre Profil de candidat approuvé dans le portail inclu l'auto-identification comme étant :"]
[null,null,"- un individu sourd, handicapé ou vivant avec une maladie mentale, ou"]
[null,null,"- un groupe ou organisme axé sur la pratique des artistes handicapés et sourds,"]
[null,"vous pouvez soumettre une demande distincte au Soutien à l'accès aux services, lequel se trouve dans la section Fonds stratégiques de vos programmes disponibles."]
[]
[null,"Si vous recevez un appui du Soutien à l’accès aux services pour ce projet, vous devriez inclure ce montant En attente et inclure le montant accordé et les coûts qu’il finance dans les colonnes « Mise à jour » et « Montants réels » du budget :"]
[]
[null,null," - Inscrivez le montant « En attente » du Soutien à l’accès à la ligne 123. Inscrivez le coût associé à la ligne 63."]
[]
[null,"Si votre demande est retenue, vous pourrez utiliser les colonnes de « Mise à jour » pour fournir des budgets révisés si vous soumettez des Mises à jour de projet. Vous pouvez également mettre à jour les notes au budget."]
[]
[null,"Lorsque votre projet sera terminé et que vous soumettrez un rapport final, vous utiliserez la colonne « Montants réels  ». Vous pouvez également soumettre une mise à jour des Notes au budget."]
[]
[null,"Pour les Mises à jour du projet et les Rapports finaux, vous n'aurez pas à partager les revenus entre les colonnes « Confirmé » et « En attente ». "]

{"sheet":"B PROJ Budget","index":2,"n_rows":168,"n_cols":9,"rows_kept":168,"cut":false,"hidden":false,"merged":[[76,1,76,8],[124,7,124,8],[128,7,128,8],[132,7,132,8],[136,7,136,8],[104,7,104,8],[78,1,78,3],[89,2,90,4],[95,7,95,8],[88,1,88,8],[98,7,98,8],[101,7,101,8],[167,1,168,8],[86,1,86,3],[65,1,65,8],[69,1,69,3],[70,1,70,3],[79,1,79,3],[81,1,81,3],[82,1,82,3],[83,1,83,3],[84,1,84,3],[71,1,71,3],[72,1,72,3],[73,1,73,3],[74,1,74,3],[77,1,77,3],[89,8,90,8],[58,1,58,3],[68,1,68,3],[63,1,63,3],[52,1,52,3],[61,1,61,3],[62,1,62,3],[39,1,39,3],[40,1,40,3],[41,1,41,3],[29,1,29,3],[30,1,30,3],[31,1,31,3],[38,1,38,3],[35,1,35,3],[37,1,37,3],[36,1,36,3],[42,1,42,3],[43,1,43,3],[53,1,53,3],[67,1,67,3],[47,1,47,3],[48,1,48,3],[59,1,59,3],[60,1,60,3],[54,1,54,3],[55,1,55,3],[56,1,56,3],[57,1,57,3],[49,1,49,3],[44,1,44,3],[45,1,45,3],[46,1,46,3],[1,1,1,8],[3,1,3,8],[5,1,5,3],[6,8,9,8],[17,1,17,3],[11,1,11,8],[12,1,12,8],[13,1,13,3],[16,1,16,3],[6,1,9,3],[14,1,14,3],[15,1,15,3],[18,1,18,3],[23,1,23,8],[27,1,27,3],[28,1,28,3],[19,1,19,3],[20,1,20,3],[21,1,21,3],[25,1,25,3],[26,1,26,3],[24,1,24,8]]}
[null,{"$f":"'Data Validation'!A1","v":"v202205"}]
[null,"Appuyer la pratique artistique : Innovation et développement du secteur – Subvention de projets"]
[]
[null,"Salaires et honoraires versés dans le cadre des subventions de base du Conseil des arts du Canada ne sont pas des coûts admissibles"]
[]
[null," Veuillez inscrire ci-dessous les dépenses relatives à votre projet",null,null,"Budget","1ère mise à jour\n(le cas échéant)","2e mise à jour\n(le cas échéant)","Montant réel","Notes au budget\n(requis)"]
[null,"Dates du projet\n(doit refléter votre plan de travail/échéancier)",null,null,"Date de début","Date de début","Date de début","Date de début","Veuillez indiquer dans les notes au budget si le coût doit être financé par la subvention du Conseil des arts."]
[null,null,null,null,"jj-mmm-aaaa","jj-mmm-aaaa","jj-mmm-aaaa","jj-mmm-aaaa"]
[null,null,null,null,"Date de fin ","Date de fin ","Date de fin ","Date de fin "]
[null,null,null,null,"jj-mmm-aaaa","jj-mmm-aaaa","jj-mmm-aaaa","jj-mmm-aaaa"]
[]
[null,"Honoraires professionnels"]
[null,"Montants payés aux artistes artistes, experts, formateurs, animateurs, gestionnaires de projet, consultants, Aînés autochtones et des dirigeants communautaires, ainsi qu'à d'autres professionnels directement impliqués dans la réalisation de votre projet. Pour les projets d’une durée de 5 jours ou plus, vous pouvez inclure des frais appropriés pour vos services ou des frais de subsistance jusqu'à 500 $/personne/semaine. Inclure les détails dans les notes au budget."]
[]
[]
[]
[]
[]
[]
[]
[]
[null,"Sous-total – Honoraires professionnels ",null,null,{"$f":"SUM(E13:E21)","v":0},{"$f":"SUM(F13:F21)","v":0},{"$f":"SUM(G13:G21)","v":0},{"$f":"SUM(H13:H21)","v":0}]
[]
[null,"Frais de déplacement (fournir des détails dans les notes au budget)"]
[null,"p. ex., Déplacement du personnel; transport et expédition des marchandises ou bagages additionnels; emballage et empaquetage; indemnité journalière et hébergement (maximum de 150 $/personne/jour)"]
[]
[]
[]
[]
[null,"Autres frais de déplacement"]
[]
[null,"Sous-total – Frais de déplacement",null,null,{"$f":"SUM(E26:E31)","v":0},{"$f":"SUM(F26:F31)","v":0},0,0]
[]
[null,"Coûts du projet"]
[null,"Coûts d'accessibilité publique – les soutiens et services liés au handicap dont ont besoin les artistes et les professionnels des arts participant aux activités"]
[]
[]
[]
[null,"Location des lieux"]
[]
[]
[null,"Location d’équipement"]
[]
[]
[null,"Matériel et fournitures"]
[]
[]
[null,"Publications - numériques et imprimés"]
[]
[]
[null,"Autres coûts du projet"]
[null,"p. ex., Conception Web, documentation, communication des constatations, les coûts associés aux cérémonies culturelles, programmation, reproduction, catalogage, étude et diffusion, etc. "]
[]
[]
[]
[]
[]
[]
[]
[]
[]
[]
[null,"Coûts d’accessibilité financés par les fonds de Soutien à l’accès\n(voir les instructions)"]
[null,"Sous-total – Coûts du projet",null,null,{"$f":"SUM(E35:E63)","v":0},{"$f":"SUM(F35:F63)","v":0},{"$f":"SUM(G35:G63)","v":0},{"$f":"SUM(H35:H63)","v":0}]
[]
[null,"Promotion et marketing"]
[null,"p. ex., Développement des publics, activités de rayonnement, matériel de communication, publicité et promotions. Fournir des détails dans les notes au budget."]
[null,"Personnel chargé de la promotion et marketing"]
[]
[]
[null,"Coûts promotionnels"]
[]
[]
[]
[null,"Sous-total – Promotion et marketing",null,null,{"$f":"SUM(E68:E74)","v":0},{"$f":"SUM(F68:F74)","v":0},0,0]
[]
[null,"Gestion du projet"]
[null,"Personnel chargé de l'administration du projet"]
[]
[]
[null,"Les coûts administratifs du projet comprennent : Comptabilité, assurance, tenue de livres, rapports, permis, etc."]
[]
[]
[]
[null,"Sous-total – Gestion du projet",null,null,{"$f":"SUM(E78:E84)","v":0},{"$f":"SUM(F78:F84)","v":0},0,0]
[]
[null,"Total des coûts du projet",null,null,{"$f":"+E22+E64+E75+E85+E32","v":0},{"$f":"+F22+F64+F75+F85+F32","v":0},{"$f":"+G22+G64+G75+G85+G32","v":0},{"$f":"+H22+H64+H75+H85+H32","v":0}]
[]
[null,"Revenus du projet"]
[null,null,"Budget",null,null,"1ère mise à jour\n(le cas échéant)","2e mise à jour\n(le cas échéant)","Montant réel","Notes au budget\n(requis)"]
[null,null,null,null,null,"Total","Total","Total"]
[null,"Revenus gagnés","Confirmé","En attente"]
[null,"Frais d’inscription, ventes de billets"]
[null,null,null,null,{"$f":"+C94+D94","v":0}]
[null,null,null,null,{"$f":"+C95+D95","v":0}]
[null,"Abonnements, droits d’adhésion"]
[null,null,null,null,{"$f":"+C97+D97","v":0}]
[null,null,null,null,{"$f":"+C98+D98","v":0}]
[null,"Frais de service"]
[null,null,null,null,{"$f":"+C100+D100","v":0}]
[null,null,null,null,{"$f":"+C101+D101","v":0}]
[null,"Vente de produits"]
[null,null,null,null,{"$f":"+C103+D103","v":0}]
[null,null,null,null,{"$f":"+C104+D104","v":0}]
[null,"Autres revenus gagnés"]
[null,null,null,null,{"$f":"+C106+D106","v":0}]
[null,null,null,null,{"$f":"+C107+D107","v":0}]
[null,"Sous-total – Revenus gagnés",{"$f":"SUM(C93:C107)","v":0},{"$f":"SUM(D93:D107)","v":0},{"$f":"SUM(C108:D108)","v":0},{"$f":"SUM(F93:F107)","v":0},{"$f":"SUM(G93:G107)","v":0},0]
[]
[null,"Revenus du secteur privé","Confirmé","En attente"]
[null,"Commandites",null,null,{"$f":"+C111+D111","v":0}]
[null,"Dons",null,null,{"$f":"+C112+D112","v":0}]
[null,"Fondations",null,null,{"$f":"+C113+D113","v":0}]
[null,"Collectes de fonds",null,null,{"$f":"+C114+D114","v":0}]
[null,"Autre revenus du secteur privé"]
[null,null,null,null,{"$f":"+C116+D116","v":0}]
[null,null,null,null,{"$f":"+C117+D117","v":0}]
[null,null,null,null,{"$f":"+C118+D118","v":0}]
[null,"Sous-total – Revenus du secteur privé",{"$f":"SUM(C111:C118)","v":0},{"$f":"SUM(D111:D118)","v":0},{"$f":"SUM(C119:D119)","v":0},{"$f":"SUM(F111:F118)","v":0},{"$f":"SUM(G111:G118)","v":0},0]
[]
[null,"Revenus du secteur public","Confirmé","En attente"]
[null,"Montant de la subvention demandée\n(maximum de 100 000 $ - doit être égal au formulaire de demande)",null,null,{"$f":"SUM(C122:D122)","v":0}]
[null,"Soutien à l'accès aux services en attente (soumettre une demande de Soutien à l’accès – \nvoir les instructions)"]
[null,"Autres subventions du Conseil des arts",null,null,{"$f":"+C124+D124","v":0}]
[null,"Autre subvention fédérale"]
[null,null,null,null,{"$f":"+C126+D126","v":0}]
[null,null,null,null,{"$f":"+C127+D127","v":0}]
[null,null,null,null,{"$f":"+C128+D128","v":0}]
[null,"Subvention provinciale ou territoriale"]
[null,null,null,null,{"$f":"+C130+D130","v":0}]
[null,null,null,null,{"$f":"+C131+D131","v":0}]
[null,null,null,null,{"$f":"+C132+D132","v":0}]
[null,"Subvention municipale ou régionale"]
[null,null,null,null,{"$f":"+C134+D134","v":0}]
[null,null,null,null,{"$f":"+C135+D135","v":0}]
[null,null,null,null,{"$f":"+C136+D136","v":0}]
[null,"Autres revenus du secteur public"]
[null,null,null,null,{"$f":"+C138+D138","v":0}]
[null,null,null,null,{"$f":"+C139+D139","v":0}]
[null,null,null,null,{"$f":"+C140+D140","v":0}]
[null,"Sous-total – Revenus du secteur public",{"$f":"SUM(C122:C140)","v":0},{"$f":"SUM(D122:D140)","v":0},{"$f":"SUM(C141:D141)","v":0},{"$f":"SUM(F122:F140)","v":0},{"$f":"SUM(G122:G140)","v":0},0]
[]
[null,"Services en nature","Confirmé","En attente",null,null,null,null,"Indiquez la ligne de coûts du projet à laquelle ce montant s’applique"]
[null,null,null,null,{"$f":"+C144+D144","v":0}]
[null,null,null,null,{"$f":"+C145+D145","v":0}]
[null,null,null,null,{"$f":"+C146+D146","v":0}]
[null,null,null,null,{"$f":"+C147+D147","v":0}]
[null,null,null,null,{"$f":"+C148+D148","v":0}]
[null,"Sous-total – Services en nature",{"$f":"SUM(C144:C148)","v":0},{"$f":"SUM(D143:D148)","v":0},{"$f":"SUM(C149:D149)","v":0},{"$f":"SUM(F143:F148)","v":0},{"$f":"SUM(G143:G148)","v":0},{"$f":"SUM(H143:H148)","v":0}]
[]
[null,"Autres revenus","Confirmé","En attente",null,null,null,null,"Indiquez la ligne de coûts du projet à laquelle ce montant s’applique"]
[null,"Contribution du candidat",null,null,{"$f":"+C152+D152","v":0}]
[null,null,null,null,0]
[null,null,null,null,0]
[null,null,null,null,0]
[null,null,null,null,0]
[null,null,null,null,0]
[null,null,null,null,{"$f":"+C158+D158","v":0}]
[null,"Sous-total – Autres revenus",{"$f":"SUM(C151:C158)","v":0},{"$f":"SUM(D151:D158)","v":0},{"$f":"+SUM(E158:E158,E152:E157)","v":0},0,0,0]
[]
[null,"Total des revenus du projet\n(doit être égal au Total des coûts du projet)",{"$f":"C108+C119+C141+C159+C149","v":0},0,0,0,0,0]
[]
[null,"Total des coûts du projet\n(doit être égal au Total des revenus du projet)",null,null,{"$f":"E87","v":0},{"$f":"F87","v":0},{"$f":"G87","v":0},{"$f":"H87","v":0}]
[]
[null,"Excédent (déficit)\n(votre budget doit être équilibré)",null,null,{"$f":"E161-E163","v":0},{"$f":"F161-F163","v":0},0,0]
[]
[null,"% du Total des coûts du projet représentés par la subvention",null,null,{"$f":"IFERROR((E122/E163),\"\")","v":""},{"$f":"IFERROR((F122/F163),\"\")","v":""},{"$f":"IFERROR((G122/G163),\"\")","v":""},{"$f":"IFERROR((H122/H163),\"\")","v":""}]
[null,"Les honoraires, droits d'auteur, redevances et autres montants appropriés doivent être convenus par les collaborateurs du projet et le demandeur, et doivent être égaux ou supérieurs aux normes canadiennes actuelles."]

{"sheet":"C COMP Instructions","index":3,"n_rows":50,"n_cols":3,"rows_kept":50,"cut":false,"hidden":false,"merged":[[46,1,47,15],[51,2,51,15],[1,1,1,15],[2,1,2,15],[25,2,26,14],[43,1,43,15],[44,2,44,15],[27,2,28,15],[21,2,22,15],[23,2,24,15],[3,1,4,15],[49,1,49,15],[41,1,41,15]]}
[null,{"$f":"'Data Validation'!A1","v":"v202205"}]
[null,"Appuyer la pratique artistique : Innovation et développement du secteur – Subventions composites"]
[null,"Instructions pour remplir les documents « Budget et Annexes »"]
[null,"Consultez l'onglet A pour les instructions de subventions de projets."]
[]
[null,"Veuillez noter qu'au bas de la page se trouvent plusieurs onglets."]
[null,"Les candidats aux subventions composites doivent consulter les onglets C, D et H lorsqu’ils soumettent une demande."]
[]
[]
[]
[null,"Si la demande est retenue, vous devrez consulter les onglets E, F et G."]
[]
[]
[]
[null,"Chaque onglet suivant ces instructions contient un document distinct que vous devez remplir."]
[null,"Lorsque vous cliquez sur « Sauvegarder », tous les onglets sont sauvegardés en même temps."]
[null,"Lorsque vous téléversez le document à votre formulaire de demande, tous les onglets y sont transférés ensemble. "]
[]
[null,"1. Après avoir téléchargé le formulaire, sauvegardez-le sur votre ordinateur. Vous pouvez le sauvegarder sous un nom différent."]
[]
[null,"2. Complétez l'onglet « D COMP Budget »."]
[null,null," - Si votre demande de subvention porte sur plus d'une année, veuillez partager vos coûts et revenus sur les 2 ou 3 années selon la durée de vos activités."]
[]
[null,null," - Inscrivez les coûts dans le budget. La case « Budget total pour tous les exercices » est calculée automatiquement. Au besoin, veuillez fournir les explications de vos calculs."]
[]
[null,null," - Si votre projet comprend des coûts pour rendre le projet accessible aux participants sourds ou handicapés, inscrivez ces coûts dans la section « Coûts d'accessibilité publique » à partir de la ligne 42 du l'onglet D COMP Budget."]
[]
[null,null," - Inscrivez les revenus dans le budget. La case « Budget total pour tous les exercices » est calculée automatiquement. Au besoin, veuillez fournir les explications de vos calculs."]
[]
[]
[null,"3. Tous les candidats - Complétez l'onglet « H COMP Activités »."]
[null,null," - Veuillez inscrire les renseignements qui correspondent aux activités."]
[null,null," - Sur chaque ligne, veuillez inscrire des informations pertinentes sur l'activité."]
[]
[null,"4. N’oubliez pas de sauvegarder à nouveau le document sur votre ordinateur."]
[null,"5. Retournez au portail du CAC et téléversez le document complet à votre demande."]
[]
[]
[null,"Si votre Profil de candidat approuvé dans le portail inclu l'auto-identification comme étant :"]
[null,null,"- un individu sourd, handicapé ou vivant avec une maladie mentale, ou"]
[null,null,"- un groupe ou organisme axé sur la pratique des artistes handicapés et sourds,"]
[null,"vous pouvez soumettre une demande distincte au Soutien à l'accès aux services, lequel se trouve dans la section Fonds stratégiques de vos programmes disponibles."]
[]
[null,"Si vous recevez un appui du Soutien à l’accès aux services pour ces activités vous inclurez le montant accordé et les coûts qu’il a financés dans les onglets Mise à jour."]
[null,null," - Inscrivez le « Montant demandé » du Soutien à l’accès à la ligne 180. Inscrivez le coût associé à la ligne 94."]
[]
[null,"Si votre demande est retenue, vous fournirez des budgets révisés et des montants réels en joignant les onglets « COMP Mise à jour Année » à vos Mises à jour du projet et votre Rapport final (E,F et G)."]
[]
[]
[null,"Vous pouvez également soumettre une mise à jour de vos Notes au budget. Au besoin, vous pouvez inscrire vos nouvelles données en remplacement de celles déjà fournies dans les annexes."]

{"sheet":"D COMP Budget","index":4,"n_rows":240,"n_cols":11,"rows_kept":240,"cut":false,"hidden":false,"merged":[[1,1,1,6],[9,1,9,6],[39,1,39,6],[24,1,24,6],[10,1,10,6],[4,6,7,6],[4,1,7,1],[131,1,131,6],[112,1,112,6],[129,1,129,6],[177,1,177,6],[239,1,240,6]]}
[null,{"$f":"'Data Validation'!A1","v":"v202205"}]
[null,"Appuyer la pratique artistique : Innovation et développement du secteur – Subventions composites"]
[null,"\n(must equal Total project costs)"]
[null,"Veuillez inscrire ci-dessous les dépenses relatives à vos activités","Budget, 1er exercice","Budget, 2e exercice \n(s'il y a lieu)","Budget, 3e exercice\n(s'il y a lieu)","Budget total pour tous les exercices","Notes au budget\n(requis)"]
[null,"Dates du projet\n(doit refléter votre plan de travail/échéancier)","Date de début","Date de début","Date de début",null,"Veuillez indiquer dans les notes au budget si le coût doit être financé par la subvention du Conseil des arts."]
[null,null,"jj-mmm-aaaa","jj-mmm-aaaa","jj-mmm-aaaa"]
[null,null,"Date de fin ","Date de fin ","Date de fin "]
[null,null,"jj-mmm-aaaa","jj-mmm-aaaa","jj-mmm-aaaa"]
[]
[null,"Honoraires professionnels"]
[null,"Montants payés aux artistes artistes, experts, formateurs, animateurs, gestionnaires de projet, consultants, Aînés autochtones et des dirigeants communautaires, ainsi qu'à d'autres professionnels directement impliqués dans la réalisation de votre projet. Pour les projets d’une durée de 5 jours ou plus, vous pouvez inclure des frais appropriés pour vos services ou des frais de subsistance jusqu'à 500 $/personne/semaine. Inclure les détails dans les notes au budget."]
[null,null,null,null,null,{"$f":"C12+D12+E12","v":0}]
[null,null,null,null,null,0]
[null,null,null,null,null,0]
[null,null,null,null,null,0]
[null,null,null,null,null,0]
[null,null,null,null,null,0]
[null,null,null,null,null,0]
[null,null,null,null,null,0]
[null,null,null,null,null,0]
[null,null,null,null,null,0]
[null,null,null,null,null,0]
[null,"Sous-total – Honoraires professionnels ",{"$f":"SUM(C12:C22)","v":0},{"$f":"SUM(D12:D22)","v":0},{"$f":"SUM(E12:E22)","v":0},{"$f":"SUM(F12:F22)","v":0}]
[]
[null,"Frais de déplacement (fournir des détails dans les notes au budget)"]
[null,"p. ex., Déplacement du personnel; transport et expédition des marchandises ou bagages additionnels; emballage et empaquetage; indemnité journalière et hébergement (maximum de 150 $/personne/jour)"]
[null,null,null,null,null,{"$f":"C27+D27+E27","v":0}]
[null,null,null,null,null,0]
[null,null,null,null,null,0]
[null,null,null,null,null,0]
[null,null,null,null,null,0]
[null,null,null,null,null,0]
[null,null,null,null,null,0]
[null,null,null,null,null,0]
[null,null,null,null,null,0]
[null,null,null,null,null,0]
[null,null,null,null,null,0]
[null,"Sous-total – Frais de déplacement",{"$f":"SUM(C27:C37)","v":0},{"$f":"SUM(D27:D37)","v":0},{"$f":"SUM(E27:E37)","v":0},{"$f":"SUM(F27:F37)","v":0}]
[]
[null,"Coûts du projet"]
[null,"Coûts d'accessibilité publique – les soutiens et services liés au handicap dont ont besoin les artistes et les professionnels des arts participant aux activités"]
[null,null,null,null,null,{"$f":"SUM(C42:E42)","v":0}]
[null,null,null,null,null,{"$f":"SUM(C43:E43)","v":0}]
[null,null,null,null,null,{"$f":"SUM(C44:E44)","v":0}]
[null,"Location des lieux"]
[null,null,null,null,null,{"$f":"C46+D46+E46","v":0}]
[null,null,null,null,null,{"$f":"C47+D47+E47","v":0}]
[null,null,null,null,null,{"$f":"C48+D48+E48","v":0}]
[null,null,null,null,null,{"$f":"C49+D49+E49","v":0}]
[null,null,null,null,null,{"$f":"C50+D50+E50","v":0}]
[null,"Location d’équipement"]
[null,null,null,null,null,{"$f":"C52+D52+E52","v":0}]
[null,null,null,null,null,{"$f":"C53+D53+E53","v":0}]
[null,null,null,null,null,{"$f":"C54+D54+E54","v":0}]
[null,null,null,null,null,{"$f":"C55+D55+E55","v":0}]
[null,null,null,null,null,{"$f":"C56+D56+E56","v":0}]
[null,"Matériel et fournitures"]
[null,null,null,null,null,{"$f":"C58+D58+E58","v":0}]
[null,null,null,null,null,0]
[null,null,null,null,null,0]
[null,null,null,null,null,0]
[null,null,null,null,null,0]
[null,null,null,null,null,0]
[null,null,null,null,null,0]
[null,null,null,null,null,0]
[null,null,null,null,null,0]
[null,null,null,null,null,0]
[null,"Publications - numériques et imprimés"]
[null,null,null,null,null,{"$f":"C69+D69+E69","v":0}]
[null,null,null,null,null,0]
[null,null,null,null,null,0]
[null,null,null,null,null,0]
[null,null,null,null,null,0]
[null,null,null,null,null,0]
[null,null,null,null,null,0]
[null,null,null,null,null,0]
[null,null,null,null,null,0]
[null,null,null,null,null,0]
[null,"Autres coûts du projet – p. ex., Conception Web, documentation, communication des constatations, les coûts associés aux cérémonies culturelles, programmation, reproduction, catalogage, étude et diffusion, etc. "]
[null,null,null,null,null,{"$f":"C80+D80+E80","v":0}]
[null,null,null,null,null,0]
[null,null,null,null,null,0]
[null,null,null,null,null,0]
[null,null,null,null,null,0]
[null,null,null,null,null,0]
[null,null,null,null,null,0]
[null,null,null,null,null,0]
[null,null,null,null,null,0]
[null,null,null,null,null,0]
[null,null,null,null,null,0]
[null,null,null,null,null,0]
[null,null,null,null,null,0]
[null,null,null,null,null,0]
[null,"Coûts d’accessibilité financés par les fonds de Soutien à l’accès (voir les instructions)"]
[null,"Sous-total – Coûts des activités",{"$f":"SUM(C42:C94)","v":0},{"$f":"SUM(D42:D94)","v":0},{"$f":"SUM(E42:E94)","v":0},{"$f":"SUM(F42:F94)","v":0}]
[]
[null,"Promotion et marketing"]
[null,"Développement des publics, activités de rayonnement, matériel de communication,publicité et promotions, par exemple. Fournir des détails dans les notes au budget."]
[null,"Personnel chargé de la promotion et marketing"]
[null,null,null,null,null,{"$f":"C100+D100+E100","v":0}]
[null,null,null,null,null,{"$f":"C101+D101+E101","v":0}]
[null,null,null,null,null,{"$f":"C102+D102+E102","v":0}]
[null,null,null,null,null,{"$f":"C103+D103+E103","v":0}]
[null,null,null,null,null,{"$f":"C104+D104+E104","v":0}]
[null,"Coûts promotionnels"]
[null,null,null,null,null,{"$f":"C106+D106+E106","v":0}]
[null,null,null,null,null,{"$f":"C107+D107+E107","v":0}]
[null,null,null,null,null,{"$f":"C108+D108+E108","v":0}]
[null,null,null,null,null,{"$f":"C109+D109+E109","v":0}]
[null,null,null,null,null,{"$f":"C110+D110+E110","v":0}]
[null,"Sous-total – Promotion et marketing",{"$f":"+SUM(C106:C110,C100:C104)","v":0},{"$f":"+SUM(D106:D110,D100:D104)","v":0},{"$f":"+SUM(E106:E110,E100:E104)","v":0},{"$f":"+SUM(F106:F110,F100:F104)","v":0}]
[]
[null,"Gestion du projet"]
[null,"Personnel chargé de l'administration du projet"]
[null,null,null,null,null,{"$f":"C115+D115+E115","v":0}]
[null,null,null,null,null,{"$f":"C116+D116+E116","v":0}]
[null,null,null,null,null,{"$f":"C117+D117+E117","v":0}]
[null,null,null,null,null,{"$f":"C118+D118+E118","v":0}]
[null,null,null,null,null,{"$f":"C119+D119+E119","v":0}]
[null,"Coûts administratifs du projet comprennent : Comptabilité, assurance, tenue de livres, rapports, permis, etc."]
[null,null,null,null,null,{"$f":"C121+D121+E121","v":0}]
[null,null,null,null,null,{"$f":"C122+D122+E122","v":0}]
[null,null,null,null,null,{"$f":"C123+D123+E123","v":0}]
[null,null,null,null,null,{"$f":"C124+D124+E124","v":0}]
[null,null,null,null,null,{"$f":"C125+D125+E125","v":0}]
[null,"Sous-total – Gestion du projet",{"$f":"+SUM(C121:C125,C115:C119)","v":0},{"$f":"+SUM(D121:D125,D115:D119)","v":0},{"$f":"+SUM(E121:E125,E115:E119)","v":0},{"$f":"+SUM(F121:F125,F115:F119)","v":0}]
[]
[null,"Total des coûts du projet",{"$f":"+C23+C95+C111+C126+C38","v":0},{"$f":"+D23+D95+D111+D126+D38","v":0},{"$f":"+E23+E95+E111+E126+E38","v":0},{"$f":"+F23+F95+F111+F126+F38","v":0}]
[]
[null,"Revenus"]
[null,null,{"$f":"C4","v":"Budget, 1er exercice"},"Budget, 2e exercice \n(s'il y a lieu)","Budget, 3e exercice \n(s'il y a lieu)","Budget total pour tous les exercices","Notes au budget\n(requis)"]
[null,"Revenus gagnés"]
[null,"Frais d’inscription, ventes de billets"]
[null,null,null,null,null,{"$f":"C134+D134+E134","v":0}]
[null,null,null,null,null,{"$f":"C135+D135+E135","v":0}]
[null,null,null,null,null,{"$f":"C136+D136+E136","v":0}]
[null,null,null,null,null,{"$f":"C137+D137+E137","v":0}]
[null,null,null,null,null,{"$f":"C138+D138+E138","v":0}]
[null,"Abonnements, droits d’adhésion"]
[null,null,null,null,null,{"$f":"C140+D140+E140","v":0}]
[null,null,null,null,null,{"$f":"C141+D141+E141","v":0}]
[null,null,null,null,null,{"$f":"C142+D142+E142","v":0}]
[null,null,null,null,null,{"$f":"C143+D143+E143","v":0}]
[null,null,null,null,null,{"$f":"C144+D144+E144","v":0}]
[null,"Frais de service"]
[null,null,null,null,null,{"$f":"C146+D146+E146","v":0}]
[null,null,null,null,null,{"$f":"C147+D147+E147","v":0}]
[null,null,null,null,null,{"$f":"C148+D148+E148","v":0}]
[null,null,null,null,null,{"$f":"C149+D149+E149","v":0}]
[null,null,null,null,null,{"$f":"C150+D150+E150","v":0}]
[null,"Vente de produits"]
[null,null,null,null,null,{"$f":"C152+D152+E152","v":0}]
[null,null,null,null,null,{"$f":"C153+D153+E153","v":0}]
[null,null,null,null,null,{"$f":"C154+D154+E154","v":0}]
[null,null,null,null,null,{"$f":"C155+D155+E155","v":0}]
[null,null,null,null,null,{"$f":"C156+D156+E156","v":0}]
[null,"Autres revenus gagnés"]
[null,null,null,null,null,{"$f":"C158+D158+E158","v":0}]
[null,null,null,null,null,{"$f":"C159+D159+E159","v":0}]
[null,null,null,null,null,{"$f":"C160+D160+E160","v":0}]
[null,null,null,null,null,{"$f":"C161+D161+E161","v":0}]
[null,null,null,null,null,{"$f":"C162+D162+E162","v":0}]
[null,"Sous-total – Revenus gagnés",{"$f":"SUM(C133:C162)","v":0},{"$f":"SUM(D133:D162)","v":0},{"$f":"SUM(E133:E162)","v":0},{"$f":"SUM(C163:E163)","v":0}]
[]
[null,"Revenus du secteur privé"]
[null,"Commandites",null,null,null,{"$f":"C166+D166+E166","v":0}]
[null,"Dons",null,null,null,{"$f":"C167+D167+E167","v":0}]
[null,"Fondations",null,null,null,{"$f":"C168+D168+E168","v":0}]
[null,"Collectes de fonds",null,null,null,{"$f":"C169+D169+E169","v":0}]
[null,"Autre revenus du secteur privé"]
[null,null,null,null,null,{"$f":"C171+D171+E171","v":0}]
[null,null,null,null,null,{"$f":"C172+D172+E172","v":0}]
[null,null,null,null,null,{"$f":"C173+D173+E173","v":0}]
[null,null,null,null,null,{"$f":"C174+D174+E174","v":0}]
[null,null,null,null,null,{"$f":"C175+D175+E175","v":0}]
[null,"Sous-total – Revenus du secteur privé",{"$f":"+SUM(C171:C175,C166:C169)","v":0},{"$f":"+SUM(D171:D175,D166:D169)","v":0},{"$f":"+SUM(E171:E175,E166:E169)","v":0},{"$f":"+SUM(F171:F175,F166:F169)","v":0}]
[]
[null,"Revenus du secteur public"]
[null,"Montant de la subvention demandée\n(maximum de 100 000 $ par année jusqu’à 3 ans – doit être égal au formulaire de demande)",null,null,null,{"$f":"SUM(C179:E179)","v":0},null,null,null,null,"`"]
[null,"Soutien à l'accès aux services en attente (soumettre une demande de Soutien à l’accès –  voir les instructions)"]
[null,"Autres subventions du Conseil des arts"]
[null,null,null,null,null,{"$f":"C182+D182+E182","v":0}]
[null,null,null,null,null,{"$f":"C183+D183+E183","v":0}]
[null,null,null,null,null,{"$f":"C184+D184+E184","v":0}]
[null,null,null,null,null,{"$f":"C185+D185+E185","v":0}]
[null,null,null,null,null,{"$f":"C186+D186+E186","v":0}]
[null,"Autre subvention fédérale"]
[null,null,null,null,null,{"$f":"C188+D188+E188","v":0}]
[null,null,null,null,null,{"$f":"C189+D189+E189","v":0}]
[null,null,null,null,null,{"$f":"C190+D190+E190","v":0}]
[null,null,null,null,null,{"$f":"C191+D191+E191","v":0}]
[null,null,null,null,null,{"$f":"C192+D192+E192","v":0}]
[null,"Subvention provinciale ou territoriale"]
[null,null,null,null,null,{"$f":"C194+D194+E194","v":0}]
[null,null,null,null,null,{"$f":"C195+D195+E195","v":0}]
[null,null,null,null,null,{"$f":"C196+D196+E196","v":0}]
[null,null,null,null,null,{"$f":"C197+D197+E197","v":0}]
[null,null,null,null,null,{"$f":"C198+D198+E198","v":0}]
[null,"Subvention municipale ou régionale"]
[null,null,null,null,null,{"$f":"C200+D200+E200","v":0}]
[null,null,null,null,null,{"$f":"C201+D201+E201","v":0}]
[null,null,null,null,null,{"$f":"C202+D202+E202","v":0}]
[null,null,null,null,null,{"$f":"C203+D203+E203","v":0}]
[null,null,null,null,null,{"$f":"C204+D204+E204","v":0}]
[null,"Autres revenus du secteur public"]
[null,null,null,null,null,{"$f":"C206+D206+E206","v":0}]
[null,null,null,null,null,{"$f":"C207+D207+E207","v":0}]
[null,null,null,null,null,{"$f":"C208+D208+E208","v":0}]
[null,null,null,null,null,{"$f":"C209+D209+E209","v":0}]
[null,null,null,null,null,{"$f":"C210+D210+E210","v":0}]
[null,"Sous-total – Revenus du secteur public",{"$f":"+SUM(C188:C192,C194:C198,C200:C204,C206:C210,C179:C180,C182:C186)","v":0},{"$f":"+SUM(D188:D192,D194:D198,D200:D204,D206:D210,D179:D180,D182:D186)","v":0},{"$f":"+SUM(E188:E192,E194:E198,E200:E204,E206:E210,E179:E180,E182:E186)","v":0},{"$f":"+SUM(F188:F192,F194:F198,F200:F204,F206:F210,F179:F180,F182:F186)","v":0}]
[]
[null,"Services en nature",null,null,null,null,"Indiquez la ligne de coûts du projet à laquelle ce montant s’applique"]
[null,null,null,null,null,{"$f":"C214+D214+E214","v":0}]
[null,null,null,null,null,{"$f":"C215+D215+E215","v":0}]
[null,null,null,null,null,{"$f":"C216+D216+E216","v":0}]
[null,null,null,null,null,{"$f":"C217+D217+E217","v":0}]
[null,null,null,null,null,{"$f":"C218+D218+E218","v":0}]
[null,"Sous-total – Services en nature",{"$f":"+SUM(C214:C218)","v":0},{"$f":"+SUM(D214:D218)","v":0},{"$f":"+SUM(E214:E218)","v":0},{"$f":"+SUM(F214:F218)","v":0}]
[]
[null,"Autres revenus",null,null,null,null,"Indiquez la ligne de coûts du projet à laquelle ce montant s’applique"]
[null,"Contribution du candidat",null,null,null,{"$f":"C222+D222+E222","v":0}]
[null,null,null,null,null,{"$f":"C223+D223+E223","v":0}]
[null,null,null,null,null,{"$f":"C224+D224+E224","v":0}]
[null,null,null,null,null,{"$f":"C225+D225+E225","v":0}]
[null,null,null,null,null,{"$f":"C226+D226+E226","v":0}]
[null,"Paiements différés"]
[null,null,null,null,null,{"$f":"C228+D228+E228","v":0}]
[null,null,null,null,null,{"$f":"C229+D229+E229","v":0}]
[null,null,null,null,null,{"$f":"C230+D230+E230","v":0}]
[null,"Sous-total – Autres revenus",{"$f":"+SUM(C228:C230,C222:C226)","v":0},{"$f":"+SUM(D228:D230,D222:D226)","v":0},{"$f":"+SUM(E228:E230,E222:E226)","v":0},{"$f":"+SUM(F228:F230,F222:F226)","v":0}]
[]
[null,"Total des revenus du projet\n(doit être égal au Total des coûts du projet)",{"$f":"C163+C176+C211+C231+C219","v":0},{"$f":"D163+D176+D211+D231+D219","v":0},{"$f":"E163+E176+E211+E231+E219","v":0},{"$f":"F163+F176+F211+F231+F219","v":0}]
[]
[null,"Total des coûts du projet\n(doit être égal au Total des revenus du projet)",{"$f":"C128","v":0},{"$f":"D128","v":0},{"$f":"E128","v":0},{"$f":"F128","v":0}]
[]
[null,"Excédent (déficit)\n(votre budget doit être équilibré)",{"$f":"C233-C235","v":0},{"$f":"D233-D235","v":0},{"$f":"E233-E235","v":0},{"$f":"F233-F235","v":0}]
[]
[null,"% du Total des coûts du projet représentés par la subvention",{"$f":"IFERROR((C179/C235),\"\")","v":""},{"$f":"IFERROR((D179/D235),\"\")","v":""},{"$f":"IFERROR((E179/E235),\"\")","v":""},{"$f":"IFERROR((F179/F235),\"\")","v":""}]
[null,"Les honoraires, droits d'auteur, redevances et autres montants appropriés doivent être convenus par les collaborateurs du projet et le demandeur, et doivent être égaux ou supérieurs aux normes canadiennes actuelles."]

{"sheet":"E COMP Mise à jour Année 1","index":5,"n_rows":240,"n_cols":7,"rows_kept":240,"cut":false,"hidden":false,"merged":[[239,1,240,6],[1,1,1,6],[9,1,9,6],[24,1,24,6],[39,1,39,6],[112,1,112,6],[4,1,7,1],[4,6,7,6],[10,1,10,6],[131,1,131,6],[164,1,164,6],[177,1,177,6],[129,1,129,6]]}
[null,{"$f":"'Data Validation'!A1","v":"v202205"}]
[null,"Appuyer la pratique artistique : Innovation et développement du secteur – Subventions composites (Mise à jour Année 1)"]
[]
[null," Veuillez inscrire ci-dessous les dépenses relatives à vos activités","Budget, 1er exercice","1ère mise à jour, 1er exercice\n(le cas échéant)","2e mise à jour, 1er exercise\n(le cas échéant)","Montant réel,\n1er exercice","Notes au budget\n(requis)"]
[null,"Vos données dans les lignes ci-dessous sont transmises à partir de votre budget précédent. Vous pouvez les modifier si nécessaire.","Date de début","Date de début","Date de début","Date de début","Veuillez indiquer dans les notes au budget si le coût doit être financé par la subvention du Conseil des arts."]
[null,null,"jj-mmm-aaaa","jj-mmm-aaaa","jj-mmm-aaaa","jj-mmm-aaaa"]
[null,null,"Date de fin ","Date de fin ","Date de fin ","Date de fin "]
[null,null,"jj-mmm-aaaa","jj-mmm-aaaa","jj-mmm-aaaa","jj-mmm-aaaa"]
[]
[null,"Honoraires professionnels"]
[null,"Montants payés aux artistes artistes, experts, formateurs, animateurs, gestionnaires de projet, consultants, Aînés autochtones et des dirigeants communautaires, ainsi qu'à d'autres professionnels directement impliqués dans la réalisation de votre projet. Pour les projets d’une durée de 5 jours ou plus, vous pouvez inclure des frais appropriés pour vos services ou des frais de subsistance jusqu'à 500 $/personne/semaine. Inclure les détails dans les notes au budget."]
[null,{"$f":"IF(ISBLANK('D COMP Budget'!B12),\"\",'D COMP Budget'!B12)","v":""},{"$f":"'D COMP Budget'!C12","v":0}]
[null,{"$f":"IF(ISBLANK('D COMP Budget'!B13),\"\",'D COMP Budget'!B13)","v":""},{"$f":"'D COMP Budget'!C13","v":0}]
[null,{"$f":"IF(ISBLANK('D COMP Budget'!B14),\"\",'D COMP Budget'!B14)","v":""},{"$f":"'D COMP Budget'!C14","v":0}]
[null,{"$f":"IF(ISBLANK('D COMP Budget'!B15),\"\",'D COMP Budget'!B15)","v":""},{"$f":"'D COMP Budget'!C15","v":0}]
[null,{"$f":"IF(ISBLANK('D COMP Budget'!B16),\"\",'D COMP Budget'!B16)","v":""},{"$f":"'D COMP Budget'!C16","v":0}]
[null,{"$f":"IF(ISBLANK('D COMP Budget'!B17),\"\",'D COMP Budget'!B17)","v":""},{"$f":"'D COMP Budget'!C17","v":0}]
[null,{"$f":"IF(ISBLANK('D COMP Budget'!B18),\"\",'D COMP Budget'!B18)","v":""},{"$f":"'D COMP Budget'!C18","v":0}]
[null,{"$f":"IF(ISBLANK('D COMP Budget'!B19),\"\",'D COMP Budget'!B19)","v":""},{"$f":"'D COMP Budget'!C19","v":0}]
[null,{"$f":"IF(ISBLANK('D COMP Budget'!B20),\"\",'D COMP Budget'!B20)","v":""},{"$f":"'D COMP Budget'!C20","v":0}]
[null,{"$f":"IF(ISBLANK('D COMP Budget'!B21),\"\",'D COMP Budget'!B21)","v":""},{"$f":"'D COMP Budget'!C21","v":0}]
[null,{"$f":"IF(ISBLANK('D COMP Budget'!B22),\"\",'D COMP Budget'!B22)","v":""},{"$f":"'D COMP Budget'!C22","v":0}]
[null,"Sous-total – Honoraires professionnels ",{"$f":"'D COMP Budget'!C23","v":0},{"$f":"SUM(D12:D22)","v":0},{"$f":"SUM(E12:E22)","v":0},{"$f":"SUM(F12:F22)","v":0}]
[]
[null,"Frais de déplacement (fournir des détails dans les notes au budget)"]
[null,"p. ex., Déplacement du personnel; transport et expédition des marchandises ou bagages additionnels; emballage et empaquetage; indemnité journalière et hébergement (maximum de 150 $/personne/jour)"]
[null,{"$f":"IF(ISBLANK('D COMP Budget'!B27),\"\",'D COMP Budget'!B27)","v":""},{"$f":"'D COMP Budget'!C27","v":0}]
[null,{"$f":"IF(ISBLANK('D COMP Budget'!B28),\"\",'D COMP Budget'!B28)","v":""},{"$f":"'D COMP Budget'!C28","v":0}]
[null,{"$f":"IF(ISBLANK('D COMP Budget'!B29),\"\",'D COMP Budget'!B29)","v":""},{"$f":"'D COMP Budget'!C29","v":0}]
[null,{"$f":"IF(ISBLANK('D COMP Budget'!B30),\"\",'D COMP Budget'!B30)","v":""},{"$f":"'D COMP Budget'!C30","v":0}]
[null,{"$f":"IF(ISBLANK('D COMP Budget'!B31),\"\",'D COMP Budget'!B31)","v":""},{"$f":"'D COMP Budget'!C31","v":0}]
[null,{"$f":"IF(ISBLANK('D COMP Budget'!B32),\"\",'D COMP Budget'!B32)","v":""},{"$f":"'D COMP Budget'!C32","v":0}]
[null,{"$f":"IF(ISBLANK('D COMP Budget'!B33),\"\",'D COMP Budget'!B33)","v":""},{"$f":"'D COMP Budget'!C33","v":0}]
[null,{"$f":"IF(ISBLANK('D COMP Budget'!B34),\"\",'D COMP Budget'!B34)","v":""},{"$f":"'D COMP Budget'!C34","v":0}]
[null,{"$f":"IF(ISBLANK('D COMP Budget'!B35),\"\",'D COMP Budget'!B35)","v":""},{"$f":"'D COMP Budget'!C35","v":0}]
[null,{"$f":"IF(ISBLANK('D COMP Budget'!B36),\"\",'D COMP Budget'!B36)","v":""},{"$f":"'D COMP Budget'!C36","v":0}]
[null,{"$f":"IF(ISBLANK('D COMP Budget'!B37),\"\",'D COMP Budget'!B37)","v":""},{"$f":"'D COMP Budget'!C37","v":0}]
[null,"Sous-total – Frais de déplacement",{"$f":"'D COMP Budget'!C38","v":0},{"$f":"SUM(D27:D37)","v":0},{"$f":"SUM(E27:E37)","v":0},{"$f":"SUM(F27:F37)","v":0}]
[]
[null,"Coûts du projet"]
[null,"Coûts d'accessibilité publique – les soutiens et services liés au handicap dont ont besoin les artistes et les professionnels des arts participant aux activités"]
[null,{"$f":"IF(ISBLANK('D COMP Budget'!B42),\"\",'D COMP Budget'!B42)","v":""},{"$f":"'D COMP Budget'!C42","v":0}]
[null,{"$f":"IF(ISBLANK('D COMP Budget'!B43),\"\",'D COMP Budget'!B43)","v":""},{"$f":"'D COMP Budget'!C43","v":0}]
[null,{"$f":"IF(ISBLANK('D COMP Budget'!B44),\"\",'D COMP Budget'!B44)","v":""},{"$f":"'D COMP Budget'!C44","v":0}]
[null,"Location des lieux"]
[null,{"$f":"IF(ISBLANK('D COMP Budget'!B46),\"\",'D COMP Budget'!B46)","v":""},{"$f":"'D COMP Budget'!C46","v":0}]
[null,{"$f":"IF(ISBLANK('D COMP Budget'!B47),\"\",'D COMP Budget'!B47)","v":""},{"$f":"'D COMP Budget'!C47","v":0}]
[null,{"$f":"IF(ISBLANK('D COMP Budget'!B48),\"\",'D COMP Budget'!B48)","v":""},{"$f":"'D COMP Budget'!C48","v":0}]
[null,{"$f":"IF(ISBLANK('D COMP Budget'!B49),\"\",'D COMP Budget'!B49)","v":""},{"$f":"'D COMP Budget'!C49","v":0}]
[null,{"$f":"IF(ISBLANK('D COMP Budget'!B50),\"\",'D COMP Budget'!B50)","v":""},{"$f":"'D COMP Budget'!C50","v":0}]
[null,"Location d’équipement"]
[null,{"$f":"IF(ISBLANK('D COMP Budget'!B52),\"\",'D COMP Budget'!B52)","v":""},{"$f":"'D COMP Budget'!C52","v":0}]
[null,{"$f":"IF(ISBLANK('D COMP Budget'!B53),\"\",'D COMP Budget'!B53)","v":""},{"$f":"'D COMP Budget'!C53","v":0}]
[null,{"$f":"IF(ISBLANK('D COMP Budget'!B54),\"\",'D COMP Budget'!B54)","v":""},{"$f":"'D COMP Budget'!C54","v":0}]
[null,{"$f":"IF(ISBLANK('D COMP Budget'!B55),\"\",'D COMP Budget'!B55)","v":""},{"$f":"'D COMP Budget'!C55","v":0}]
[null,{"$f":"IF(ISBLANK('D COMP Budget'!B56),\"\",'D COMP Budget'!B56)","v":""},{"$f":"'D COMP Budget'!C56","v":0}]
[null,"Matériel et fournitures"]
[null,{"$f":"IF(ISBLANK('D COMP Budget'!B58),\"\",'D COMP Budget'!B58)","v":""},{"$f":"'D COMP Budget'!C58","v":0}]
[null,{"$f":"IF(ISBLANK('D COMP Budget'!B59),\"\",'D COMP Budget'!B59)","v":""},{"$f":"'D COMP Budget'!C59","v":0}]
[null,{"$f":"IF(ISBLANK('D COMP Budget'!B60),\"\",'D COMP Budget'!B60)","v":""},{"$f":"'D COMP Budget'!C60","v":0}]
[null,{"$f":"IF(ISBLANK('D COMP Budget'!B61),\"\",'D COMP Budget'!B61)","v":""},{"$f":"'D COMP Budget'!C61","v":0}]
[null,{"$f":"IF(ISBLANK('D COMP Budget'!B62),\"\",'D COMP Budget'!B62)","v":""},{"$f":"'D COMP Budget'!C62","v":0}]
[null,{"$f":"IF(ISBLANK('D COMP Budget'!B63),\"\",'D COMP Budget'!B63)","v":""},{"$f":"'D COMP Budget'!C63","v":0}]
[null,{"$f":"IF(ISBLANK('D COMP Budget'!B64),\"\",'D COMP Budget'!B64)","v":""},{"$f":"'D COMP Budget'!C64","v":0}]
[null,{"$f":"IF(ISBLANK('D COMP Budget'!B65),\"\",'D COMP Budget'!B65)","v":""},{"$f":"'D COMP Budget'!C65","v":0}]
[null,{"$f":"IF(ISBLANK('D COMP Budget'!B66),\"\",'D COMP Budget'!B66)","v":""},{"$f":"'D COMP Budget'!C66","v":0}]
[null,{"$f":"IF(ISBLANK('D COMP Budget'!B67),\"\",'D COMP Budget'!B67)","v":""},{"$f":"'D COMP Budget'!C67","v":0}]
[null,"Publications - numériques et imprimés"]
[null,{"$f":"IF(ISBLANK('D COMP Budget'!B69),\"\",'D COMP Budget'!B69)","v":""},{"$f":"'D COMP Budget'!C69","v":0}]
[null,{"$f":"IF(ISBLANK('D COMP Budget'!B70),\"\",'D COMP Budget'!B70)","v":""},{"$f":"'D COMP Budget'!C70","v":0}]
[null,{"$f":"IF(ISBLANK('D COMP Budget'!B71),\"\",'D COMP Budget'!B71)","v":""},{"$f":"'D COMP Budget'!C71","v":0}]
[null,{"$f":"IF(ISBLANK('D COMP Budget'!B72),\"\",'D COMP Budget'!B72)","v":""},{"$f":"'D COMP Budget'!C72","v":0}]
[null,{"$f":"IF(ISBLANK('D COMP Budget'!B73),\"\",'D COMP Budget'!B73)","v":""},{"$f":"'D COMP Budget'!C73","v":0}]
[null,{"$f":"IF(ISBLANK('D COMP Budget'!B74),\"\",'D COMP Budget'!B74)","v":""},{"$f":"'D COMP Budget'!C74","v":0}]
[null,{"$f":"IF(ISBLANK('D COMP Budget'!B75),\"\",'D COMP Budget'!B75)","v":""},{"$f":"'D COMP Budget'!C75","v":0}]
[null,{"$f":"IF(ISBLANK('D COMP Budget'!B76),\"\",'D COMP Budget'!B76)","v":""},{"$f":"'D COMP Budget'!C76","v":0}]
[null,{"$f":"IF(ISBLANK('D COMP Budget'!B77),\"\",'D COMP Budget'!B77)","v":""},{"$f":"'D COMP Budget'!C77","v":0}]
[null,{"$f":"IF(ISBLANK('D COMP Budget'!B78),\"\",'D COMP Budget'!B78)","v":""},{"$f":"'D COMP Budget'!C78","v":0}]
[null,"Autres coûts du projet – p. ex., Conception Web, documentation, communication des constatations, les coûts associés aux cérémonies culturelles, programmation, reproduction, catalogage, étude et diffusion, etc."]
[null,{"$f":"IF(ISBLANK('D COMP Budget'!B80),\"\",'D COMP Budget'!B80)","v":""},{"$f":"'D COMP Budget'!C80","v":0}]
[null,{"$f":"IF(ISBLANK('D COMP Budget'!B81),\"\",'D COMP Budget'!B81)","v":""},{"$f":"'D COMP Budget'!C81","v":0}]
[null,{"$f":"IF(ISBLANK('D COMP Budget'!B82),\"\",'D COMP Budget'!B82)","v":""},{"$f":"'D COMP Budget'!C82","v":0}]
[null,{"$f":"IF(ISBLANK('D COMP Budget'!B83),\"\",'D COMP Budget'!B83)","v":""},{"$f":"'D COMP Budget'!C83","v":0}]
[null,{"$f":"IF(ISBLANK('D COMP Budget'!B84),\"\",'D COMP Budget'!B84)","v":""},{"$f":"'D COMP Budget'!C84","v":0}]
[null,{"$f":"IF(ISBLANK('D COMP Budget'!B85),\"\",'D COMP Budget'!B85)","v":""},{"$f":"'D COMP Budget'!C85","v":0}]
[null,{"$f":"IF(ISBLANK('D COMP Budget'!B86),\"\",'D COMP Budget'!B86)","v":""},{"$f":"'D COMP Budget'!C86","v":0}]
[null,{"$f":"IF(ISBLANK('D COMP Budget'!B87),\"\",'D COMP Budget'!B87)","v":""},{"$f":"'D COMP Budget'!C87","v":0}]
[null,{"$f":"IF(ISBLANK('D COMP Budget'!B88),\"\",'D COMP Budget'!B88)","v":""},{"$f":"'D COMP Budget'!C88","v":0}]
[null,{"$f":"IF(ISBLANK('D COMP Budget'!B89),\"\",'D COMP Budget'!B89)","v":""},{"$f":"'D COMP Budget'!C89","v":0}]
[null,{"$f":"IF(ISBLANK('D COMP Budget'!B90),\"\",'D COMP Budget'!B90)","v":""},{"$f":"'D COMP Budget'!C90","v":0}]
[null,{"$f":"IF(ISBLANK('D COMP Budget'!B91),\"\",'D COMP Budget'!B91)","v":""},{"$f":"'D COMP Budget'!C91","v":0}]
[null,{"$f":"IF(ISBLANK('D COMP Budget'!B92),\"\",'D COMP Budget'!B92)","v":""},{"$f":"'D COMP Budget'!C92","v":0}]
[null,{"$f":"IF(ISBLANK('D COMP Budget'!B93),\"\",'D COMP Budget'!B93)","v":""},{"$f":"'D COMP Budget'!C93","v":0}]
[null,"Coûts d’accessibilité financés par les fonds de Soutien à l’accès (voir les instructions)"]
[null,"Sous-total – Coûts des activités",{"$f":"'D COMP Budget'!C95","v":0},{"$f":"SUM(D42:D94)","v":0},{"$f":"SUM(E42:E94)","v":0},{"$f":"SUM(F42:F94)","v":0}]
[]
[null,"Promotion et marketing"]
[null,"Développement des publics, activités de rayonnement, matériel de communication,publicité et promotions, par exemple. Fournir des détails dans les notes au budget."]
[null,"Personnel chargé de la promotion et marketing"]
[null,{"$f":"IF(ISBLANK('D COMP Budget'!B100),\"\",'D COMP Budget'!B100)","v":""},{"$f":"'D COMP Budget'!C100","v":0}]
[null,{"$f":"IF(ISBLANK('D COMP Budget'!B101),\"\",'D COMP Budget'!B101)","v":""},{"$f":"'D COMP Budget'!C101","v":0}]
[null,{"$f":"IF(ISBLANK('D COMP Budget'!B102),\"\",'D COMP Budget'!B102)","v":""},{"$f":"'D COMP Budget'!C102","v":0}]
[null,{"$f":"IF(ISBLANK('D COMP Budget'!B103),\"\",'D COMP Budget'!B103)","v":""},{"$f":"'D COMP Budget'!C103","v":0}]
[null,{"$f":"IF(ISBLANK('D COMP Budget'!B104),\"\",'D COMP Budget'!B104)","v":""},{"$f":"'D COMP Budget'!C104","v":0}]
[null,"Coûts promotionnels"]
[null,{"$f":"IF(ISBLANK('D COMP Budget'!B106),\"\",'D COMP Budget'!B106)","v":""},{"$f":"'D COMP Budget'!C106","v":0}]
[null,{"$f":"IF(ISBLANK('D COMP Budget'!B107),\"\",'D COMP Budget'!B107)","v":""},{"$f":"'D COMP Budget'!C107","v":0}]
[null,{"$f":"IF(ISBLANK('D COMP Budget'!B108),\"\",'D COMP Budget'!B108)","v":""},{"$f":"'D COMP Budget'!C108","v":0}]
[null,{"$f":"IF(ISBLANK('D COMP Budget'!B109),\"\",'D COMP Budget'!B109)","v":""},{"$f":"'D COMP Budget'!C109","v":0}]
[null,{"$f":"IF(ISBLANK('D COMP Budget'!B110),\"\",'D COMP Budget'!B110)","v":""},{"$f":"'D COMP Budget'!C110","v":0}]
[null,"Sous-total – Promotion et marketing",{"$f":"+'D COMP Budget'!C111","v":0},{"$f":"+SUM(D106:D110,D100:D104)","v":0},{"$f":"+SUM(E106:E110,E100:E104)","v":0},{"$f":"+SUM(F106:F110,F100:F104)","v":0}]
[]
[null,"Gestion du projet"]
[null,"Personnel chargé de l'administration du projet"]
[null,{"$f":"IF(ISBLANK('D COMP Budget'!B115),\"\",'D COMP Budget'!B115)","v":""},{"$f":"'D COMP Budget'!C115","v":0}]
[null,{"$f":"IF(ISBLANK('D COMP Budget'!B116),\"\",'D COMP Budget'!B116)","v":""},{"$f":"'D COMP Budget'!C116","v":0}]
[null,{"$f":"IF(ISBLANK('D COMP Budget'!B117),\"\",'D COMP Budget'!B117)","v":""},{"$f":"'D COMP Budget'!C117","v":0}]
[null,{"$f":"IF(ISBLANK('D COMP Budget'!B118),\"\",'D COMP Budget'!B118)","v":""},{"$f":"'D COMP Budget'!C118","v":0}]
[null,{"$f":"IF(ISBLANK('D COMP Budget'!B119),\"\",'D COMP Budget'!B119)","v":""},{"$f":"'D COMP Budget'!C119","v":0}]
[null,"Coûts administratifs du projet comprennent : Comptabilité, assurance, tenue de livres, rapports, permis, etc."]
[null,{"$f":"IF(ISBLANK('D COMP Budget'!B121),\"\",'D COMP Budget'!B121)","v":""},{"$f":"'D COMP Budget'!C121","v":0}]
[null,{"$f":"IF(ISBLANK('D COMP Budget'!B122),\"\",'D COMP Budget'!B122)","v":""},{"$f":"'D COMP Budget'!C122","v":0}]
[null,{"$f":"IF(ISBLANK('D COMP Budget'!B123),\"\",'D COMP Budget'!B123)","v":""},{"$f":"'D COMP Budget'!C123","v":0}]
[null,{"$f":"IF(ISBLANK('D COMP Budget'!B124),\"\",'D COMP Budget'!B124)","v":""},{"$f":"'D COMP Budget'!C124","v":0}]
[null,{"$f":"IF(ISBLANK('D COMP Budget'!B125),\"\",'D COMP Budget'!B125)","v":""},{"$f":"'D COMP Budget'!C125","v":0}]
[null,"Sous-total – Gestion du projet",{"$f":"+'D COMP Budget'!C126","v":0},{"$f":"+SUM(D121:D125,D115:D119)","v":0},{"$f":"+SUM(E121:E125,E115:E119)","v":0},{"$f":"+SUM(F121:F125,F115:F119)","v":0}]
[]
[null,"Total des coûts du projet",{"$f":"+'D COMP Budget'!C128","v":0},{"$f":"+D23+D95+D111+D126+D38","v":0},{"$f":"+E23+E95+E111+E126+E38","v":0},{"$f":"+F23+F95+F111+F126+F38","v":0}]
[]
[null,"Revenus"]
[null,null,"Budget, 1er exercice","1ère mise à jour, 1er exercice\n(le cas échéant)","2e mise à jour, 1er exercise\n(le cas échéant)","Montant réel,\n1er exercice","Notes au budget\n(requis)"]
[null,"Revenus gagnés"]
[null,"Frais d’inscription, ventes de billets"]
[null,{"$f":"IF(ISBLANK('D COMP Budget'!B134),\"\",'D COMP Budget'!B134)","v":""},{"$f":"'D COMP Budget'!C134","v":0}]
[null,{"$f":"IF(ISBLANK('D COMP Budget'!B135),\"\",'D COMP Budget'!B135)","v":""},{"$f":"'D COMP Budget'!C135","v":0}]
[null,{"$f":"IF(ISBLANK('D COMP Budget'!B136),\"\",'D COMP Budget'!B136)","v":""},{"$f":"'D COMP Budget'!C136","v":0}]
[null,{"$f":"IF(ISBLANK('D COMP Budget'!B137),\"\",'D COMP Budget'!B137)","v":""},{"$f":"'D COMP Budget'!C137","v":0}]
[null,{"$f":"IF(ISBLANK('D COMP Budget'!B138),\"\",'D COMP Budget'!B138)","v":""},{"$f":"'D COMP Budget'!C138","v":0}]
[null,"Abonnements, droits d’adhésion"]
[null,{"$f":"IF(ISBLANK('D COMP Budget'!B140),\"\",'D COMP Budget'!B140)","v":""},{"$f":"'D COMP Budget'!C140","v":0}]
[null,{"$f":"IF(ISBLANK('D COMP Budget'!B141),\"\",'D COMP Budget'!B141)","v":""},{"$f":"'D COMP Budget'!C141","v":0}]
[null,{"$f":"IF(ISBLANK('D COMP Budget'!B142),\"\",'D COMP Budget'!B142)","v":""},{"$f":"'D COMP Budget'!C142","v":0}]
[null,{"$f":"IF(ISBLANK('D COMP Budget'!B143),\"\",'D COMP Budget'!B143)","v":""},{"$f":"'D COMP Budget'!C143","v":0}]
[null,{"$f":"IF(ISBLANK('D COMP Budget'!B144),\"\",'D COMP Budget'!B144)","v":""},{"$f":"'D COMP Budget'!C144","v":0}]
[null,"Frais de service"]
[null,{"$f":"IF(ISBLANK('D COMP Budget'!B146),\"\",'D COMP Budget'!B146)","v":""},{"$f":"'D COMP Budget'!C146","v":0}]
[null,{"$f":"IF(ISBLANK('D COMP Budget'!B147),\"\",'D COMP Budget'!B147)","v":""},{"$f":"'D COMP Budget'!C147","v":0}]
[null,{"$f":"IF(ISBLANK('D COMP Budget'!B148),\"\",'D COMP Budget'!B148)","v":""},{"$f":"'D COMP Budget'!C148","v":0}]
[null,{"$f":"IF(ISBLANK('D COMP Budget'!B149),\"\",'D COMP Budget'!B149)","v":""},{"$f":"'D COMP Budget'!C149","v":0}]
[null,{"$f":"IF(ISBLANK('D COMP Budget'!B150),\"\",'D COMP Budget'!B150)","v":""},{"$f":"'D COMP Budget'!C150","v":0}]
[null,"Vente de produits"]
[null,{"$f":"IF(ISBLANK('D COMP Budget'!B152),\"\",'D COMP Budget'!B152)","v":""},{"$f":"'D COMP Budget'!C152","v":0}]
[null,{"$f":"IF(ISBLANK('D COMP Budget'!B153),\"\",'D COMP Budget'!B153)","v":""},{"$f":"'D COMP Budget'!C153","v":0}]
[null,{"$f":"IF(ISBLANK('D COMP Budget'!B154),\"\",'D COMP Budget'!B154)","v":""},{"$f":"'D COMP Budget'!C154","v":0}]
[null,{"$f":"IF(ISBLANK('D COMP Budget'!B155),\"\",'D COMP Budget'!B155)","v":""},{"$f":"'D COMP Budget'!C155","v":0}]
[null,{"$f":"IF(ISBLANK('D COMP Budget'!B156),\"\",'D COMP Budget'!B156)","v":""},{"$f":"'D COMP Budget'!C156","v":0}]
[null,"Autres revenus gagnés"]
[null,{"$f":"IF(ISBLANK('D COMP Budget'!B158),\"\",'D COMP Budget'!B158)","v":""},{"$f":"'D COMP Budget'!C158","v":0}]
[null,{"$f":"IF(ISBLANK('D COMP Budget'!B159),\"\",'D COMP Budget'!B159)","v":""},{"$f":"'D COMP Budget'!C159","v":0}]
[null,{"$f":"IF(ISBLANK('D COMP Budget'!B160),\"\",'D COMP Budget'!B160)","v":""},{"$f":"'D COMP Budget'!C160","v":0}]
[null,{"$f":"IF(ISBLANK('D COMP Budget'!B161),\"\",'D COMP Budget'!B161)","v":""},{"$f":"'D COMP Budget'!C161","v":0}]
[null,{"$f":"IF(ISBLANK('D COMP Budget'!B162),\"\",'D COMP Budget'!B162)","v":""},{"$f":"'D COMP Budget'!C162","v":0}]
[null,"Sous-total – Revenus gagnés",{"$f":"+'D COMP Budget'!C163","v":0},{"$f":"+SUM(D158:D162,D134:D138,D146:D150,D140:D144,D152:D156)","v":0},{"$f":"+SUM(E158:E162,E134:E138,E146:E150,E140:E144,E152:E156)","v":0},{"$f":"+SUM(F158:F162,F134:F138,F146:F150,F140:F144,F152:F156)","v":0}]
[]
[null,"Revenus du secteur privé"]
[null,"Commandites",{"$f":"'D COMP Budget'!C166","v":0}]
[null,"Dons",{"$f":"'D COMP Budget'!C167","v":0}]
[null,"Fondations",{"$f":"'D COMP Budget'!C168","v":0}]
[null,"Collectes de fonds",{"$f":"'D COMP Budget'!C169","v":0}]
[null,"Autre revenus du secteur privé"]
[null,{"$f":"IF(ISBLANK('D COMP Budget'!B171),\"\",'D COMP Budget'!B171)","v":""},{"$f":"'D COMP Budget'!C171","v":0}]
[null,{"$f":"IF(ISBLANK('D COMP Budget'!B172),\"\",'D COMP Budget'!B172)","v":""},{"$f":"'D COMP Budget'!C172","v":0}]
[null,{"$f":"IF(ISBLANK('D COMP Budget'!B173),\"\",'D COMP Budget'!B173)","v":""},{"$f":"'D COMP Budget'!C173","v":0}]
[null,{"$f":"IF(ISBLANK('D COMP Budget'!B174),\"\",'D COMP Budget'!B174)","v":""},{"$f":"'D COMP Budget'!C174","v":0}]
[null,{"$f":"IF(ISBLANK('D COMP Budget'!B175),\"\",'D COMP Budget'!B175)","v":""},{"$f":"'D COMP Budget'!C175","v":0}]
[null,"Sous-total – Revenus du secteur privé",{"$f":"+'D COMP Budget'!C176","v":0},{"$f":"+SUM(D171:D175,D166:D169)","v":0},{"$f":"+SUM(E171:E175,E166:E169)","v":0},{"$f":"+SUM(F171:F175,F166:F169)","v":0}]
[]
[null,"Revenus du secteur public"]
[null,"Montant de la subvention demandée (montant accordé dans les colonnes « mise à jour » et « réel »)",{"$f":"'D COMP Budget'!C179","v":0}]
[null,"Soutien à l’accès demandé (montant accordé dans les colonnes « mise à jour » et « réel »)"]
[null,"Autres subventions du Conseil des arts"]
[null,{"$f":"IF(ISBLANK('D COMP Budget'!B182),\"\",'D COMP Budget'!B182)","v":""},{"$f":"'D COMP Budget'!C182","v":0}]
[null,{"$f":"IF(ISBLANK('D COMP Budget'!B183),\"\",'D COMP Budget'!B183)","v":""},{"$f":"'D COMP Budget'!C183","v":0}]
[null,{"$f":"IF(ISBLANK('D COMP Budget'!B184),\"\",'D COMP Budget'!B184)","v":""},{"$f":"'D COMP Budget'!C184","v":0}]
[null,{"$f":"IF(ISBLANK('D COMP Budget'!B185),\"\",'D COMP Budget'!B185)","v":""},{"$f":"'D COMP Budget'!C185","v":0}]
[null,{"$f":"IF(ISBLANK('D COMP Budget'!B186),\"\",'D COMP Budget'!B186)","v":""},{"$f":"'D COMP Budget'!C186","v":0}]
[null,"Autre subvention fédérale"]
[null,{"$f":"IF(ISBLANK('D COMP Budget'!B188),\"\",'D COMP Budget'!B188)","v":""},{"$f":"'D COMP Budget'!C188","v":0}]
[null,{"$f":"IF(ISBLANK('D COMP Budget'!B189),\"\",'D COMP Budget'!B189)","v":""},{"$f":"'D COMP Budget'!C189","v":0}]
[null,{"$f":"IF(ISBLANK('D COMP Budget'!B190),\"\",'D COMP Budget'!B190)","v":""},{"$f":"'D COMP Budget'!C190","v":0}]
[null,{"$f":"IF(ISBLANK('D COMP Budget'!B191),\"\",'D COMP Budget'!B191)","v":""},{"$f":"'D COMP Budget'!C191","v":0}]
[null,{"$f":"IF(ISBLANK('D COMP Budget'!B192),\"\",'D COMP Budget'!B192)","v":""},{"$f":"'D COMP Budget'!C192","v":0}]
[null,"Subvention provinciale ou territoriale"]
[null,{"$f":"IF(ISBLANK('D COMP Budget'!B194),\"\",'D COMP Budget'!B194)","v":""},{"$f":"'D COMP Budget'!C194","v":0}]
[null,{"$f":"IF(ISBLANK('D COMP Budget'!B195),\"\",'D COMP Budget'!B195)","v":""},{"$f":"'D COMP Budget'!C195","v":0}]
[null,{"$f":"IF(ISBLANK('D COMP Budget'!B196),\"\",'D COMP Budget'!B196)","v":""},{"$f":"'D COMP Budget'!C196","v":0}]
[null,{"$f":"IF(ISBLANK('D COMP Budget'!B197),\"\",'D COMP Budget'!B197)","v":""},{"$f":"'D COMP Budget'!C197","v":0}]
[null,{"$f":"IF(ISBLANK('D COMP Budget'!B198),\"\",'D COMP Budget'!B198)","v":""},{"$f":"'D COMP Budget'!C198","v":0}]
[null,"Subvention municipale ou régionale"]
[null,{"$f":"IF(ISBLANK('D COMP Budget'!B200),\"\",'D COMP Budget'!B200)","v":""},{"$f":"'D COMP Budget'!C200","v":0}]
[null,{"$f":"IF(ISBLANK('D COMP Budget'!B201),\"\",'D COMP Budget'!B201)","v":""},{"$f":"'D COMP Budget'!C201","v":0}]
[null,{"$f":"IF(ISBLANK('D COMP Budget'!B202),\"\",'D COMP Budget'!B202)","v":""},{"$f":"'D COMP Budget'!C202","v":0}]
[null,{"$f":"IF(ISBLANK('D COMP Budget'!B203),\"\",'D COMP Budget'!B203)","v":""},{"$f":"'D COMP Budget'!C203","v":0}]
[null,{"$f":"IF(ISBLANK('D COMP Budget'!B204),\"\",'D COMP Budget'!B204)","v":""},{"$f":"'D COMP Budget'!C204","v":0}]
[null,"Autres revenus du secteur public"]
[null,{"$f":"IF(ISBLANK('D COMP Budget'!B206),\"\",'D COMP Budget'!B206)","v":""},{"$f":"'D COMP Budget'!C206","v":0}]
[null,{"$f":"IF(ISBLANK('D COMP Budget'!B207),\"\",'D COMP Budget'!B207)","v":""},{"$f":"'D COMP Budget'!C207","v":0}]
[null,{"$f":"IF(ISBLANK('D COMP Budget'!B208),\"\",'D COMP Budget'!B208)","v":""},{"$f":"'D COMP Budget'!C208","v":0}]
[null,{"$f":"IF(ISBLANK('D COMP Budget'!B209),\"\",'D COMP Budget'!B209)","v":""},{"$f":"'D COMP Budget'!C209","v":0}]
[null,{"$f":"IF(ISBLANK('D COMP Budget'!B210),\"\",'D COMP Budget'!B210)","v":""},{"$f":"'D COMP Budget'!C210","v":0}]
[null,"Sous-total – Revenus du secteur public",{"$f":"+'D COMP Budget'!C211","v":0},{"$f":"+SUM(D188:D192,D194:D198,D200:D204,D206:D210,D179:D180,D182:D186)","v":0},{"$f":"+SUM(E188:E192,E194:E198,E200:E204,E206:E210,E179:E180,E182:E186)","v":0},{"$f":"+SUM(F188:F192,F194:F198,F200:F204,F206:F210,F179:F180,F182:F186)","v":0}]
[]
[null,"Services en nature",null,null,null,null,"Indiquez la ligne de coûts du projet à laquelle ce montant s’applique"]
[null,{"$f":"IF(ISBLANK('D COMP Budget'!B214),\"\",'D COMP Budget'!B214)","v":""},{"$f":"'D COMP Budget'!C214","v":0}]
[null,{"$f":"IF(ISBLANK('D COMP Budget'!B215),\"\",'D COMP Budget'!B215)","v":""},{"$f":"'D COMP Budget'!C215","v":0}]
[null,{"$f":"IF(ISBLANK('D COMP Budget'!B216),\"\",'D COMP Budget'!B216)","v":""},{"$f":"'D COMP Budget'!C216","v":0}]
[null,{"$f":"IF(ISBLANK('D COMP Budget'!B217),\"\",'D COMP Budget'!B217)","v":""},{"$f":"'D COMP Budget'!C217","v":0}]
[null,{"$f":"IF(ISBLANK('D COMP Budget'!B218),\"\",'D COMP Budget'!B218)","v":""},{"$f":"'D COMP Budget'!C218","v":0}]
[null,"Sous-total – Services en nature",{"$f":"+'D COMP Budget'!C219","v":0},{"$f":"+SUM(D214:D218)","v":0},{"$f":"+SUM(E214:E218)","v":0},{"$f":"+SUM(F214:F218)","v":0}]
[]
[null,"Autres revenus",null,null,null,null,"Indiquez la ligne de coûts du projet à laquelle ce montant s’applique"]
[null,{"$f":"IF(ISBLANK('D COMP Budget'!B222),\"\",'D COMP Budget'!B222)","v":"Contribution du candidat"},{"$f":"'D COMP Budget'!C222","v":0}]
[null,{"$f":"IF(ISBLANK('D COMP Budget'!B223),\"\",'D COMP Budget'!B223)","v":""},{"$f":"'D COMP Budget'!C223","v":0}]
[null,{"$f":"IF(ISBLANK('D COMP Budget'!B224),\"\",'D COMP Budget'!B224)","v":""},{"$f":"'D COMP Budget'!C224","v":0}]
[null,{"$f":"IF(ISBLANK('D COMP Budget'!B225),\"\",'D COMP Budget'!B225)","v":""},{"$f":"'D COMP Budget'!C225","v":0}]
[null,{"$f":"IF(ISBLANK('D COMP Budget'!B226),\"\",'D COMP Budget'!B226)","v":""},{"$f":"'D COMP Budget'!C226","v":0}]
[null,"Paiements différés"]
[null,{"$f":"IF(ISBLANK('D COMP Budget'!B228),\"\",'D COMP Budget'!B228)","v":""},{"$f":"'D COMP Budget'!C228","v":0}]
[null,{"$f":"IF(ISBLANK('D COMP Budget'!B229),\"\",'D COMP Budget'!B229)","v":""},{"$f":"'D COMP Budget'!C229","v":0}]
[null,{"$f":"IF(ISBLANK('D COMP Budget'!B230),\"\",'D COMP Budget'!B230)","v":""},{"$f":"'D COMP Budget'!C230","v":0}]
[null,"Sous-total – Autres revenus",{"$f":"+'D COMP Budget'!C231","v":0},{"$f":"+SUM(D228:D230,D222:D226)","v":0},{"$f":"+SUM(E228:E230,E222:E226)","v":0},{"$f":"+SUM(F228:F230,F222:F226)","v":0}]
[]
[null,"Total des revenus du projet\n(doit être égal au Total des coûts du projet)",{"$f":"C163+C176+C211+C231+C219","v":0},{"$f":"D163+D176+D211+D231+D219","v":0},{"$f":"E163+E176+E211+E231+E219","v":0},{"$f":"F163+F176+F211+F231+F219","v":0}]
[]
[null,"Total des coûts du projet\n(doit être égal au Total des revenus du projet)",{"$f":"C128","v":0},{"$f":"D128","v":0},{"$f":"E128","v":0},{"$f":"F128","v":0}]
[]
[null,"Excédent (déficit)\n(votre budget doit être équilibré)",{"$f":"C233-C235","v":0},{"$f":"D233-D235","v":0},{"$f":"E233-E235","v":0},{"$f":"F233-F235","v":0}]
[]
[null,"% du Total des coûts du projet représentés par la subvention",{"$f":"IFERROR((C179/C235),\"\")","v":""},{"$f":"IFERROR((D179/D235),\"\")","v":""},{"$f":"IFERROR((E179/E235),\"\")","v":""},{"$f":"IFERROR((F179/F235),\"\")","v":""}]
[null,"Les honoraires, droits d'auteur, redevances et autres montants appropriés doivent être convenus par les collaborateurs du projet et le demandeur, et doivent être égaux ou supérieurs aux normes canadiennes actuelles."]

{"sheet":"F COMP Mise à jour Année 2","index":6,"n_rows":240,"n_cols":10,"rows_kept":240,"cut":false,"hidden":false,"merged":[[239,1,240,9],[1,1,1,9],[9,1,9,9],[39,1,39,9],[112,1,112,9],[4,1,7,1],[24,1,24,9],[10,1,10,9],[129,1,129,9],[131,1,131,9],[164,1,164,9],[177,1,177,9],[4,9,7,9]]}
[null,{"$f":"'Data Validation'!A1","v":"v202205"}]
[null,"Appuyer la pratique artistique : Innovation et développement du secteur – Subventions composites (Mise à jour Année 2)"]
[]
[null," Veuillez inscrire ci-dessous les dépenses relatives à vos activités","Montant réel,\n1er exercice","Budget, 2e exercice ","1ère mise à jour, 2e exercice\n(le cas échéant)","2e mise à jour, 2e exercice\n(le cas échéant)","3e mise à jour, 2e exercice\n(le cas échéant)","Montant réel,\n2e exercice","Montant réel,\n1er et 2e exercices","Notes au budget\n(requis)"]
[null,"Vos données dans les lignes ci-dessous sont transmises à partir de votre budget précédent. Vous pouvez les modifier si nécessaire.","Date de début","Date de début","Date de début","Date de début","Date de début","Date de début",null,"Veuillez indiquer dans les notes au budget si le coût doit être financé par la subvention du Conseil des arts."]
[null,null,"jj-mmm-aaaa","jj-mmm-aaaa","jj-mmm-aaaa","jj-mmm-aaaa","jj-mmm-aaaa","jj-mmm-aaaa"]
[null,null,"Date de fin ","Date de fin ","Date de fin ","Date de fin ","Date de fin ","Date de fin "]
[null,null,"jj-mmm-aaaa","jj-mmm-aaaa","jj-mmm-aaaa","jj-mmm-aaaa","jj-mmm-aaaa","jj-mmm-aaaa"]
[]
[null,"Honoraires professionnels"]
[null,"Montants payés aux artistes artistes, experts, formateurs, animateurs, gestionnaires de projet, consultants, Aînés autochtones et des dirigeants communautaires, ainsi qu'à d'autres professionnels directement impliqués dans la réalisation de votre projet. Pour les projets d’une durée de 5 jours ou plus, vous pouvez inclure des frais appropriés pour vos services ou des frais de subsistance jusqu'à 500 $/personne/semaine. Inclure les détails dans les notes au budget."]
[null,{"$f":"IF(ISBLANK('E COMP Mise à jour Année 1'!B12),\"\",'E COMP Mise à jour Année 1'!B12)","v":""},{"$f":"+'E COMP Mise à jour Année 1'!F12","v":0},{"$f":"+'D COMP Budget'!D12","v":0},null,null,null,null,{"$f":"C12+H12","v":0}]
[null,{"$f":"IF(ISBLANK('E COMP Mise à jour Année 1'!B13),\"\",'E COMP Mise à jour Année 1'!B13)","v":""},{"$f":"+'E COMP Mise à jour Année 1'!F13","v":0},{"$f":"+'D COMP Budget'!D13","v":0},null,null,null,null,0]
[null,{"$f":"IF(ISBLANK('E COMP Mise à jour Année 1'!B14),\"\",'E COMP Mise à jour Année 1'!B14)","v":""},{"$f":"+'E COMP Mise à jour Année 1'!F14","v":0},{"$f":"+'D COMP Budget'!D14","v":0},null,null,null,null,0]
[null,{"$f":"IF(ISBLANK('E COMP Mise à jour Année 1'!B15),\"\",'E COMP Mise à jour Année 1'!B15)","v":""},{"$f":"+'E COMP Mise à jour Année 1'!F15","v":0},{"$f":"+'D COMP Budget'!D15","v":0},null,null,null,null,0]
[null,{"$f":"IF(ISBLANK('E COMP Mise à jour Année 1'!B16),\"\",'E COMP Mise à jour Année 1'!B16)","v":""},{"$f":"+'E COMP Mise à jour Année 1'!F16","v":0},{"$f":"+'D COMP Budget'!D16","v":0},null,null,null,null,0]
[null,{"$f":"IF(ISBLANK('E COMP Mise à jour Année 1'!B17),\"\",'E COMP Mise à jour Année 1'!B17)","v":""},{"$f":"+'E COMP Mise à jour Année 1'!F17","v":0},{"$f":"+'D COMP Budget'!D17","v":0},null,null,null,null,0]
[null,{"$f":"IF(ISBLANK('E COMP Mise à jour Année 1'!B18),\"\",'E COMP Mise à jour Année 1'!B18)","v":""},{"$f":"+'E COMP Mise à jour Année 1'!F18","v":0},{"$f":"+'D COMP Budget'!D18","v":0},null,null,null,null,0]
[null,{"$f":"IF(ISBLANK('E COMP Mise à jour Année 1'!B19),\"\",'E COMP Mise à jour Année 1'!B19)","v":""},{"$f":"+'E COMP Mise à jour Année 1'!F19","v":0},{"$f":"+'D COMP Budget'!D19","v":0},null,null,null,null,0]
[null,{"$f":"IF(ISBLANK('E COMP Mise à jour Année 1'!B20),\"\",'E COMP Mise à jour Année 1'!B20)","v":""},{"$f":"+'E COMP Mise à jour Année 1'!F20","v":0},{"$f":"+'D COMP Budget'!D20","v":0},null,null,null,null,0]
[null,{"$f":"IF(ISBLANK('E COMP Mise à jour Année 1'!B21),\"\",'E COMP Mise à jour Année 1'!B21)","v":""},{"$f":"+'E COMP Mise à jour Année 1'!F21","v":0},{"$f":"+'D COMP Budget'!D21","v":0},null,null,null,null,0]
[null,{"$f":"IF(ISBLANK('E COMP Mise à jour Année 1'!B22),\"\",'E COMP Mise à jour Année 1'!B22)","v":""},{"$f":"+'E COMP Mise à jour Année 1'!F22","v":0},{"$f":"+'D COMP Budget'!D22","v":0},null,null,null,null,0]
[null,"Sous-total – Honoraires professionnels ",{"$f":"+'E COMP Mise à jour Année 1'!F23","v":0},{"$f":"+'D COMP Budget'!D23","v":0},{"$f":"SUM(E12:E22)","v":0},{"$f":"SUM(F12:F22)","v":0},{"$f":"SUM(G12:G22)","v":0},{"$f":"SUM(H12:H22)","v":0},{"$f":"C23+H23","v":0}]
[]
[null,"Frais de déplacement (fournir des détails dans les notes au budget)"]
[null,"p. ex., Déplacement du personnel; transport et expédition des marchandises ou bagages additionnels; emballage et empaquetage; indemnité journalière et hébergement (maximum de 150 $/personne/jour)"]
[null,{"$f":"IF(ISBLANK('E COMP Mise à jour Année 1'!B27),\"\",'E COMP Mise à jour Année 1'!B27)","v":""},{"$f":"+'E COMP Mise à jour Année 1'!F27","v":0},{"$f":"+'D COMP Budget'!D27","v":0},null,null,null,null,{"$f":"C27+H27","v":0}]
[null,{"$f":"IF(ISBLANK('E COMP Mise à jour Année 1'!B28),\"\",'E COMP Mise à jour Année 1'!B28)","v":""},{"$f":"+'E COMP Mise à jour Année 1'!F28","v":0},{"$f":"+'D COMP Budget'!D28","v":0},null,null,null,null,0]
[null,{"$f":"IF(ISBLANK('E COMP Mise à jour Année 1'!B29),\"\",'E COMP Mise à jour Année 1'!B29)","v":""},{"$f":"+'E COMP Mise à jour Année 1'!F29","v":0},{"$f":"+'D COMP Budget'!D29","v":0},null,null,null,null,0]
[null,{"$f":"IF(ISBLANK('E COMP Mise à jour Année 1'!B30),\"\",'E COMP Mise à jour Année 1'!B30)","v":""},{"$f":"+'E COMP Mise à jour Année 1'!F30","v":0},{"$f":"+'D COMP Budget'!D30","v":0},null,null,null,null,0]
[null,{"$f":"IF(ISBLANK('E COMP Mise à jour Année 1'!B31),\"\",'E COMP Mise à jour Année 1'!B31)","v":""},{"$f":"+'E COMP Mise à jour Année 1'!F31","v":0},{"$f":"+'D COMP Budget'!D31","v":0},null,null,null,null,0]
[null,{"$f":"IF(ISBLANK('E COMP Mise à jour Année 1'!B32),\"\",'E COMP Mise à jour Année 1'!B32)","v":""},{"$f":"+'E COMP Mise à jour Année 1'!F32","v":0},{"$f":"+'D COMP Budget'!D32","v":0},null,null,null,null,0]
[null,{"$f":"IF(ISBLANK('E COMP Mise à jour Année 1'!B33),\"\",'E COMP Mise à jour Année 1'!B33)","v":""},{"$f":"+'E COMP Mise à jour Année 1'!F33","v":0},{"$f":"+'D COMP Budget'!D33","v":0},null,null,null,null,0]
[null,{"$f":"IF(ISBLANK('E COMP Mise à jour Année 1'!B34),\"\",'E COMP Mise à jour Année 1'!B34)","v":""},{"$f":"+'E COMP Mise à jour Année 1'!F34","v":0},{"$f":"+'D COMP Budget'!D34","v":0},null,null,null,null,0]
[null,{"$f":"IF(ISBLANK('E COMP Mise à jour Année 1'!B35),\"\",'E COMP Mise à jour Année 1'!B35)","v":""},{"$f":"+'E COMP Mise à jour Année 1'!F35","v":0},{"$f":"+'D COMP Budget'!D35","v":0},null,null,null,null,0]
[null,{"$f":"IF(ISBLANK('E COMP Mise à jour Année 1'!B36),\"\",'E COMP Mise à jour Année 1'!B36)","v":""},{"$f":"+'E COMP Mise à jour Année 1'!F36","v":0},{"$f":"+'D COMP Budget'!D36","v":0},null,null,null,null,0]
[null,{"$f":"IF(ISBLANK('E COMP Mise à jour Année 1'!B37),\"\",'E COMP Mise à jour Année 1'!B37)","v":""},{"$f":"+'E COMP Mise à jour Année 1'!F37","v":0},{"$f":"+'D COMP Budget'!D37","v":0},null,null,null,null,0]
[null,"Sous-total – Frais de déplacement",{"$f":"+'E COMP Mise à jour Année 1'!F38","v":0},{"$f":"+'D COMP Budget'!D38","v":0},{"$f":"SUM(E27:E37)","v":0},{"$f":"SUM(F27:F37)","v":0},{"$f":"SUM(G27:G37)","v":0},{"$f":"SUM(H27:H37)","v":0},{"$f":"C38+H38","v":0}]
[]
[null,"Coûts du projet"]
[null,"Coûts d'accessibilité publique – les soutiens et services liés au handicap dont ont besoin les artistes et les professionnels des arts participant aux activités"]
[null,{"$f":"IF(ISBLANK('E COMP Mise à jour Année 1'!B42),\"\",'E COMP Mise à jour Année 1'!B42)","v":""},{"$f":"+'E COMP Mise à jour Année 1'!F42","v":0},{"$f":"+'D COMP Budget'!D42","v":0},null,null,null,null,{"$f":"C42+H42","v":0}]
[null,{"$f":"IF(ISBLANK('E COMP Mise à jour Année 1'!B43),\"\",'E COMP Mise à jour Année 1'!B43)","v":""},{"$f":"+'E COMP Mise à jour Année 1'!F43","v":0},{"$f":"+'D COMP Budget'!D43","v":0},null,null,null,null,0]
[null,{"$f":"IF(ISBLANK('E COMP Mise à jour Année 1'!B44),\"\",'E COMP Mise à jour Année 1'!B44)","v":""},{"$f":"+'E COMP Mise à jour Année 1'!F44","v":0},{"$f":"+'D COMP Budget'!D44","v":0},null,null,null,null,0]
[null,"Location des lieux"]
[null,{"$f":"IF(ISBLANK('E COMP Mise à jour Année 1'!B46),\"\",'E COMP Mise à jour Année 1'!B46)","v":""},{"$f":"+'E COMP Mise à jour Année 1'!F46","v":0},{"$f":"+'D COMP Budget'!D46","v":0},null,null,null,null,{"$f":"C46+H46","v":0}]
[null,{"$f":"IF(ISBLANK('E COMP Mise à jour Année 1'!B47),\"\",'E COMP Mise à jour Année 1'!B47)","v":""},{"$f":"+'E COMP Mise à jour Année 1'!F47","v":0},{"$f":"+'D COMP Budget'!D47","v":0},null,null,null,null,0]
[null,{"$f":"IF(ISBLANK('E COMP Mise à jour Année 1'!B48),\"\",'E COMP Mise à jour Année 1'!B48)","v":""},{"$f":"+'E COMP Mise à jour Année 1'!F48","v":0},{"$f":"+'D COMP Budget'!D48","v":0},null,null,null,null,0]
[null,{"$f":"IF(ISBLANK('E COMP Mise à jour Année 1'!B49),\"\",'E COMP Mise à jour Année 1'!B49)","v":""},{"$f":"+'E COMP Mise à jour Année 1'!F49","v":0},{"$f":"+'D COMP Budget'!D49","v":0},null,null,null,null,0]
[null,{"$f":"IF(ISBLANK('E COMP Mise à jour Année 1'!B50),\"\",'E COMP Mise à jour Année 1'!B50)","v":""},{"$f":"+'E COMP Mise à jour Année 1'!F50","v":0},{"$f":"+'D COMP Budget'!D50","v":0},null,null,null,null,0]
[null,"Location d’équipement"]
[null,{"$f":"IF(ISBLANK('E COMP Mise à jour Année 1'!B52),\"\",'E COMP Mise à jour Année 1'!B52)","v":""},{"$f":"+'E COMP Mise à jour Année 1'!F52","v":0},{"$f":"+'D COMP Budget'!D52","v":0},null,null,null,null,{"$f":"C52+H52","v":0}]
[null,{"$f":"IF(ISBLANK('E COMP Mise à jour Année 1'!B53),\"\",'E COMP Mise à jour Année 1'!B53)","v":""},{"$f":"+'E COMP Mise à jour Année 1'!F53","v":0},{"$f":"+'D COMP Budget'!D53","v":0},null,null,null,null,0]
[null,{"$f":"IF(ISBLANK('E COMP Mise à jour Année 1'!B54),\"\",'E COMP Mise à jour Année 1'!B54)","v":""},{"$f":"+'E COMP Mise à jour Année 1'!F54","v":0},{"$f":"+'D COMP Budget'!D54","v":0},null,null,null,null,0]
[null,{"$f":"IF(ISBLANK('E COMP Mise à jour Année 1'!B55),\"\",'E COMP Mise à jour Année 1'!B55)","v":""},{"$f":"+'E COMP Mise à jour Année 1'!F55","v":0},{"$f":"+'D COMP Budget'!D55","v":0},null,null,null,null,0]
[null,{"$f":"IF(ISBLANK('E COMP Mise à jour Année 1'!B56),\"\",'E COMP Mise à jour Année 1'!B56)","v":""},{"$f":"+'E COMP Mise à jour Année 1'!F56","v":0},{"$f":"+'D COMP Budget'!D56","v":0},null,null,null,null,0]
[null,"Matériel et fournitures"]
[null,{"$f":"IF(ISBLANK('E COMP Mise à jour Année 1'!B58),\"\",'E COMP Mise à jour Année 1'!B58)","v":""},{"$f":"+'E COMP Mise à jour Année 1'!F58","v":0},{"$f":"+'D COMP Budget'!D58","v":0},null,null,null,null,{"$f":"C58+H58","v":0}]
[null,{"$f":"IF(ISBLANK('E COMP Mise à jour Année 1'!B59),\"\",'E COMP Mise à jour Année 1'!B59)","v":""},{"$f":"+'E COMP Mise à jour Année 1'!F59","v":0},{"$f":"+'D COMP Budget'!D59","v":0},null,null,null,null,0]
[null,{"$f":"IF(ISBLANK('E COMP Mise à jour Année 1'!B60),\"\",'E COMP Mise à jour Année 1'!B60)","v":""},{"$f":"+'E COMP Mise à jour Année 1'!F60","v":0},{"$f":"+'D COMP Budget'!D60","v":0},null,null,null,null,0]
[null,{"$f":"IF(ISBLANK('E COMP Mise à jour Année 1'!B61),\"\",'E COMP Mise à jour Année 1'!B61)","v":""},{"$f":"+'E COMP Mise à jour Année 1'!F61","v":0},{"$f":"+'D COMP Budget'!D61","v":0},null,null,null,null,0]
[null,{"$f":"IF(ISBLANK('E COMP Mise à jour Année 1'!B62),\"\",'E COMP Mise à jour Année 1'!B62)","v":""},{"$f":"+'E COMP Mise à jour Année 1'!F62","v":0},{"$f":"+'D COMP Budget'!D62","v":0},null,null,null,null,0]
[null,{"$f":"IF(ISBLANK('E COMP Mise à jour Année 1'!B63),\"\",'E COMP Mise à jour Année 1'!B63)","v":""},{"$f":"+'E COMP Mise à jour Année 1'!F63","v":0},{"$f":"+'D COMP Budget'!D63","v":0},null,null,null,null,0]
[null,{"$f":"IF(ISBLANK('E COMP Mise à jour Année 1'!B64),\"\",'E COMP Mise à jour Année 1'!B64)","v":""},{"$f":"+'E COMP Mise à jour Année 1'!F64","v":0},{"$f":"+'D COMP Budget'!D64","v":0},null,null,null,null,0]
[null,{"$f":"IF(ISBLANK('E COMP Mise à jour Année 1'!B65),\"\",'E COMP Mise à jour Année 1'!B65)","v":""},{"$f":"+'E COMP Mise à jour Année 1'!F65","v":0},{"$f":"+'D COMP Budget'!D65","v":0},null,null,null,null,0]
[null,{"$f":"IF(ISBLANK('E COMP Mise à jour Année 1'!B66),\"\",'E COMP Mise à jour Année 1'!B66)","v":""},{"$f":"+'E COMP Mise à jour Année 1'!F66","v":0},{"$f":"+'D COMP Budget'!D66","v":0},null,null,null,null,0]
[null,{"$f":"IF(ISBLANK('E COMP Mise à jour Année 1'!B67),\"\",'E COMP Mise à jour Année 1'!B67)","v":""},{"$f":"+'E COMP Mise à jour Année 1'!F67","v":0},{"$f":"+'D COMP Budget'!D67","v":0},null,null,null,null,0]
[null,"Publications - numériques et imprimés"]
[null,{"$f":"IF(ISBLANK('E COMP Mise à jour Année 1'!B69),\"\",'E COMP Mise à jour Année 1'!B69)","v":""},{"$f":"+'E COMP Mise à jour Année 1'!F69","v":0},{"$f":"+'D COMP Budget'!D69","v":0},null,null,null,null,{"$f":"C69+H69","v":0}]
[null,{"$f":"IF(ISBLANK('E COMP Mise à jour Année 1'!B70),\"\",'E COMP Mise à jour Année 1'!B70)","v":""},{"$f":"+'E COMP Mise à jour Année 1'!F70","v":0},{"$f":"+'D COMP Budget'!D70","v":0},null,null,null,null,0]
[null,{"$f":"IF(ISBLANK('E COMP Mise à jour Année 1'!B71),\"\",'E COMP Mise à jour Année 1'!B71)","v":""},{"$f":"+'E COMP Mise à jour Année 1'!F71","v":0},{"$f":"+'D COMP Budget'!D71","v":0},null,null,null,null,0]
[null,{"$f":"IF(ISBLANK('E COMP Mise à jour Année 1'!B72),\"\",'E COMP Mise à jour Année 1'!B72)","v":""},{"$f":"+'E COMP Mise à jour Année 1'!F72","v":0},{"$f":"+'D COMP Budget'!D72","v":0},null,null,null,null,0]
[null,{"$f":"IF(ISBLANK('E COMP Mise à jour Année 1'!B73),\"\",'E COMP Mise à jour Année 1'!B73)","v":""},{"$f":"+'E COMP Mise à jour Année 1'!F73","v":0},{"$f":"+'D COMP Budget'!D73","v":0},null,null,null,null,0]
[null,{"$f":"IF(ISBLANK('E COMP Mise à jour Année 1'!B74),\"\",'E COMP Mise à jour Année 1'!B74)","v":""},{"$f":"+'E COMP Mise à jour Année 1'!F74","v":0},{"$f":"+'D COMP Budget'!D74","v":0},null,null,null,null,0]
[null,{"$f":"IF(ISBLANK('E COMP Mise à jour Année 1'!B75),\"\",'E COMP Mise à jour Année 1'!B75)","v":""},{"$f":"+'E COMP Mise à jour Année 1'!F75","v":0},{"$f":"+'D COMP Budget'!D75","v":0},null,null,null,null,0]
[null,{"$f":"IF(ISBLANK('E COMP Mise à jour Année 1'!B76),\"\",'E COMP Mise à jour Année 1'!B76)","v":""},{"$f":"+'E COMP Mise à jour Année 1'!F76","v":0},{"$f":"+'D COMP Budget'!D76","v":0},null,null,null,null,0]
[null,{"$f":"IF(ISBLANK('E COMP Mise à jour Année 1'!B77),\"\",'E COMP Mise à jour Année 1'!B77)","v":""},{"$f":"+'E COMP Mise à jour Année 1'!F77","v":0},{"$f":"+'D COMP Budget'!D77","v":0},null,null,null,null,0]
[null,{"$f":"IF(ISBLANK('E COMP Mise à jour Année 1'!B78),\"\",'E COMP Mise à jour Année 1'!B78)","v":""},{"$f":"+'E COMP Mise à jour Année 1'!F78","v":0},{"$f":"+'D COMP Budget'!D78","v":0},null,null,null,null,0]
[null,"Autres coûts du projet – p. ex., Conception Web, documentation, communication des constatations, les coûts associés aux cérémonies culturelles, programmation, reproduction, catalogage, étude et diffusion, etc. "]
[null,{"$f":"IF(ISBLANK('E COMP Mise à jour Année 1'!B80),\"\",'E COMP Mise à jour Année 1'!B80)","v":""},{"$f":"+'E COMP Mise à jour Année 1'!F80","v":0},{"$f":"+'D COMP Budget'!D80","v":0},null,null,null,null,{"$f":"C80+H80","v":0}]
[null,{"$f":"IF(ISBLANK('E COMP Mise à jour Année 1'!B81),\"\",'E COMP Mise à jour Année 1'!B81)","v":""},{"$f":"+'E COMP Mise à jour Année 1'!F81","v":0},{"$f":"+'D COMP Budget'!D81","v":0},null,null,null,null,0]
[null,{"$f":"IF(ISBLANK('E COMP Mise à jour Année 1'!B82),\"\",'E COMP Mise à jour Année 1'!B82)","v":""},{"$f":"+'E COMP Mise à jour Année 1'!F82","v":0},{"$f":"+'D COMP Budget'!D82","v":0},null,null,null,null,0]
[null,{"$f":"IF(ISBLANK('E COMP Mise à jour Année 1'!B83),\"\",'E COMP Mise à jour Année 1'!B83)","v":""},{"$f":"+'E COMP Mise à jour Année 1'!F83","v":0},{"$f":"+'D COMP Budget'!D83","v":0},null,null,null,null,0]
[null,{"$f":"IF(ISBLANK('E COMP Mise à jour Année 1'!B84),\"\",'E COMP Mise à jour Année 1'!B84)","v":""},{"$f":"+'E COMP Mise à jour Année 1'!F84","v":0},{"$f":"+'D COMP Budget'!D84","v":0},null,null,null,null,0]
[null,{"$f":"IF(ISBLANK('E COMP Mise à jour Année 1'!B85),\"\",'E COMP Mise à jour Année 1'!B85)","v":""},{"$f":"+'E COMP Mise à jour Année 1'!F85","v":0},{"$f":"+'D COMP Budget'!D85","v":0},null,null,null,null,0]
[null,{"$f":"IF(ISBLANK('E COMP Mise à jour Année 1'!B86),\"\",'E COMP Mise à jour Année 1'!B86)","v":""},{"$f":"+'E COMP Mise à jour Année 1'!F86","v":0},{"$f":"+'D COMP Budget'!D86","v":0},null,null,null,null,0]
[null,{"$f":"IF(ISBLANK('E COMP Mise à jour Année 1'!B87),\"\",'E COMP Mise à jour Année 1'!B87)","v":""},{"$f":"+'E COMP Mise à jour Année 1'!F87","v":0},{"$f":"+'D COMP Budget'!D87","v":0},null,null,null,null,0]
[null,{"$f":"IF(ISBLANK('E COMP Mise à jour Année 1'!B88),\"\",'E COMP Mise à jour Année 1'!B88)","v":""},{"$f":"+'E COMP Mise à jour Année 1'!F88","v":0},{"$f":"+'D COMP Budget'!D88","v":0},null,null,null,null,0]
[null,{"$f":"IF(ISBLANK('E COMP Mise à jour Année 1'!B89),\"\",'E COMP Mise à jour Année 1'!B89)","v":""},{"$f":"+'E COMP Mise à jour Année 1'!F89","v":0},{"$f":"+'D COMP Budget'!D89","v":0},null,null,null,null,0]
[null,{"$f":"IF(ISBLANK('E COMP Mise à jour Année 1'!B90),\"\",'E COMP Mise à jour Année 1'!B90)","v":""},{"$f":"+'E COMP Mise à jour Année 1'!F90","v":0},{"$f":"+'D COMP Budget'!D90","v":0},null,null,null,null,0]
[null,{"$f":"IF(ISBLANK('E COMP Mise à jour Année 1'!B91),\"\",'E COMP Mise à jour Année 1'!B91)","v":""},{"$f":"+'E COMP Mise à jour Année 1'!F91","v":0},{"$f":"+'D COMP Budget'!D91","v":0},null,null,null,null,0]
[null,{"$f":"IF(ISBLANK('E COMP Mise à jour Année 1'!B92),\"\",'E COMP Mise à jour Année 1'!B92)","v":""},{"$f":"+'E COMP Mise à jour Année 1'!F92","v":0},{"$f":"+'D COMP Budget'!D92","v":0},null,null,null,null,0]
[null,{"$f":"IF(ISBLANK('E COMP Mise à jour Année 1'!B93),\"\",'E COMP Mise à jour Année 1'!B93)","v":""},{"$f":"+'E COMP Mise à jour Année 1'!F93","v":0},{"$f":"+'D COMP Budget'!D93","v":0},null,null,null,null,0]
[null,"Coûts d’accessibilité financés par les fonds de Soutien à l’accès (voir les instructions)",{"$f":"+'E COMP Mise à jour Année 1'!F94","v":0},null,null,null,null,null,0]
[null,"Sous-total – Coûts des activités",{"$f":"+'E COMP Mise à jour Année 1'!F95","v":0},{"$f":"+'D COMP Budget'!D95","v":0},{"$f":"SUM(E42:E94)","v":0},{"$f":"SUM(F42:F94)","v":0},{"$f":"SUM(G42:G94)","v":0},{"$f":"SUM(H42:H94)","v":0},{"$f":"C95+H95","v":0}]
[]
[null,"Promotion et marketing"]
[null,"Développement des publics, activités de rayonnement, matériel de communication,publicité et promotions, par exemple. Fournir des détails dans les notes au budget."]
[null,"Personnel chargé de la promotion et marketing"]
[null,{"$f":"IF(ISBLANK('E COMP Mise à jour Année 1'!B100),\"\",'E COMP Mise à jour Année 1'!B100)","v":""},{"$f":"+'E COMP Mise à jour Année 1'!F100","v":0},{"$f":"+'D COMP Budget'!D100","v":0},null,null,null,null,{"$f":"C100+H100","v":0}]
[null,{"$f":"IF(ISBLANK('E COMP Mise à jour Année 1'!B101),\"\",'E COMP Mise à jour Année 1'!B101)","v":""},{"$f":"+'E COMP Mise à jour Année 1'!F101","v":0},{"$f":"+'D COMP Budget'!D101","v":0},null,null,null,null,0]
[null,{"$f":"IF(ISBLANK('E COMP Mise à jour Année 1'!B102),\"\",'E COMP Mise à jour Année 1'!B102)","v":""},{"$f":"+'E COMP Mise à jour Année 1'!F102","v":0},{"$f":"+'D COMP Budget'!D102","v":0},null,null,null,null,0]
[null,{"$f":"IF(ISBLANK('E COMP Mise à jour Année 1'!B103),\"\",'E COMP Mise à jour Année 1'!B103)","v":""},{"$f":"+'E COMP Mise à jour Année 1'!F103","v":0},{"$f":"+'D COMP Budget'!D103","v":0},null,null,null,null,0]
[null,{"$f":"IF(ISBLANK('E COMP Mise à jour Année 1'!B104),\"\",'E COMP Mise à jour Année 1'!B104)","v":""},{"$f":"+'E COMP Mise à jour Année 1'!F104","v":0},{"$f":"+'D COMP Budget'!D104","v":0},null,null,null,null,0]
[null,"Coûts promotionnels"]
[null,{"$f":"IF(ISBLANK('E COMP Mise à jour Année 1'!B106),\"\",'E COMP Mise à jour Année 1'!B106)","v":""},{"$f":"+'E COMP Mise à jour Année 1'!F106","v":0},{"$f":"+'D COMP Budget'!D106","v":0},null,null,null,null,{"$f":"C106+H106","v":0}]
[null,{"$f":"IF(ISBLANK('E COMP Mise à jour Année 1'!B107),\"\",'E COMP Mise à jour Année 1'!B107)","v":""},{"$f":"+'E COMP Mise à jour Année 1'!F107","v":0},{"$f":"+'D COMP Budget'!D107","v":0},null,null,null,null,0]
[null,{"$f":"IF(ISBLANK('E COMP Mise à jour Année 1'!B108),\"\",'E COMP Mise à jour Année 1'!B108)","v":""},{"$f":"+'E COMP Mise à jour Année 1'!F108","v":0},{"$f":"+'D COMP Budget'!D108","v":0},null,null,null,null,0]
[null,{"$f":"IF(ISBLANK('E COMP Mise à jour Année 1'!B109),\"\",'E COMP Mise à jour Année 1'!B109)","v":""},{"$f":"+'E COMP Mise à jour Année 1'!F109","v":0},{"$f":"+'D COMP Budget'!D109","v":0},null,null,null,null,0]
[null,{"$f":"IF(ISBLANK('E COMP Mise à jour Année 1'!B110),\"\",'E COMP Mise à jour Année 1'!B110)","v":""},{"$f":"+'E COMP Mise à jour Année 1'!F110","v":0},{"$f":"+'D COMP Budget'!D110","v":0},null,null,null,null,0]
[null,"Sous-total – Promotion et marketing",{"$f":"+'E COMP Mise à jour Année 1'!F111","v":0},{"$f":"+'D COMP Budget'!D111","v":0},{"$f":"+SUM(E106:E110,E100:E104)","v":0},{"$f":"+SUM(F106:F110,F100:F104)","v":0},{"$f":"+SUM(G106:G110,G100:G104)","v":0},{"$f":"+SUM(H106:H110,H100:H104)","v":0},{"$f":"C111+H111","v":0}]
[]
[null,"Gestion du projet"]
[null,"Personnel chargé de l'administration du projet"]
[null,{"$f":"IF(ISBLANK('E COMP Mise à jour Année 1'!B115),\"\",'E COMP Mise à jour Année 1'!B115)","v":""},{"$f":"+'E COMP Mise à jour Année 1'!F115","v":0},{"$f":"+'D COMP Budget'!D115","v":0},null,null,null,null,{"$f":"C115+H115","v":0}]
[null,{"$f":"IF(ISBLANK('E COMP Mise à jour Année 1'!B116),\"\",'E COMP Mise à jour Année 1'!B116)","v":""},{"$f":"+'E COMP Mise à jour Année 1'!F116","v":0},{"$f":"+'D COMP Budget'!D116","v":0},null,null,null,null,0]
[null,{"$f":"IF(ISBLANK('E COMP Mise à jour Année 1'!B117),\"\",'E COMP Mise à jour Année 1'!B117)","v":""},{"$f":"+'E COMP Mise à jour Année 1'!F117","v":0},{"$f":"+'D COMP Budget'!D117","v":0},null,null,null,null,0]
[null,{"$f":"IF(ISBLANK('E COMP Mise à jour Année 1'!B118),\"\",'E COMP Mise à jour Année 1'!B118)","v":""},{"$f":"+'E COMP Mise à jour Année 1'!F118","v":0},{"$f":"+'D COMP Budget'!D118","v":0},null,null,null,null,0]
[null,{"$f":"IF(ISBLANK('E COMP Mise à jour Année 1'!B119),\"\",'E COMP Mise à jour Année 1'!B119)","v":""},{"$f":"+'E COMP Mise à jour Année 1'!F119","v":0},{"$f":"+'D COMP Budget'!D119","v":0},null,null,null,null,0]
[null,"Coûts administratifs du projet comprennent : Comptabilité, assurance, tenue de livres, rapports, permis, etc."]
[null,{"$f":"IF(ISBLANK('E COMP Mise à jour Année 1'!B121),\"\",'E COMP Mise à jour Année 1'!B121)","v":""},{"$f":"+'E COMP Mise à jour Année 1'!F121","v":0},{"$f":"+'D COMP Budget'!D121","v":0},null,null,null,null,{"$f":"C121+H121","v":0}]
[null,{"$f":"IF(ISBLANK('E COMP Mise à jour Année 1'!B122),\"\",'E COMP Mise à jour Année 1'!B122)","v":""},{"$f":"+'E COMP Mise à jour Année 1'!F122","v":0},{"$f":"+'D COMP Budget'!D122","v":0},null,null,null,null,0]
[null,{"$f":"IF(ISBLANK('E COMP Mise à jour Année 1'!B123),\"\",'E COMP Mise à jour Année 1'!B123)","v":""},{"$f":"+'E COMP Mise à jour Année 1'!F123","v":0},{"$f":"+'D COMP Budget'!D123","v":0},null,null,null,null,0]
[null,{"$f":"IF(ISBLANK('E COMP Mise à jour Année 1'!B124),\"\",'E COMP Mise à jour Année 1'!B124)","v":""},{"$f":"+'E COMP Mise à jour Année 1'!F124","v":0},{"$f":"+'D COMP Budget'!D124","v":0},null,null,null,null,0]
[null,{"$f":"IF(ISBLANK('E COMP Mise à jour Année 1'!B125),\"\",'E COMP Mise à jour Année 1'!B125)","v":""},{"$f":"+'E COMP Mise à jour Année 1'!F125","v":0},{"$f":"+'D COMP Budget'!D125","v":0},null,null,null,null,0]
[null,"Sous-total – Gestion du projet",{"$f":"+'E COMP Mise à jour Année 1'!F126","v":0},{"$f":"+'D COMP Budget'!D126","v":0},{"$f":"+SUM(E121:E125,E115:E119)","v":0},{"$f":"+SUM(F121:F125,F115:F119)","v":0},{"$f":"+SUM(G121:G125,G115:G119)","v":0},{"$f":"+SUM(H121:H125,H115:H119)","v":0},{"$f":"C126+H126","v":0}]
[]
[null,"Total des coûts du projet",{"$f":"+'E COMP Mise à jour Année 1'!F128","v":0},{"$f":"+'D COMP Budget'!D128","v":0},{"$f":"+E23+E95+E111+E126+E38","v":0},{"$f":"+F23+F95+F111+F126+F38","v":0},{"$f":"+G23+G95+G111+G126+G38","v":0},{"$f":"+H23+H95+H111+H126+H38","v":0},{"$f":"C128+H128","v":0}]
[]
[null,"Revenus"]
[null,null,"Montant réel,\n1er exercice","Budget, 2e exercice ","1ère mise à jour, 2e exercice\n(le cas échéant)","2e mise à jour, 2e exercice\n(le cas échéant)","3e mise à jour, 2e exercice\n(le cas échéant)","Montant réel,\n2e exercice","Montant réel,\n1er et 2e exercices","Notes au budget\n(requis)"]
[null,"Revenus gagnés"]
[null,"Frais d’inscription, ventes de billets"]
[null,{"$f":"IF(ISBLANK('E COMP Mise à jour Année 1'!B134),\"\",'E COMP Mise à jour Année 1'!B134)","v":""},{"$f":"+'E COMP Mise à jour Année 1'!F134","v":0},{"$f":"+'D COMP Budget'!D134","v":0},null,null,null,null,{"$f":"C134+H134","v":0}]
[null,{"$f":"IF(ISBLANK('E COMP Mise à jour Année 1'!B135),\"\",'E COMP Mise à jour Année 1'!B135)","v":""},{"$f":"+'E COMP Mise à jour Année 1'!F135","v":0},{"$f":"+'D COMP Budget'!D135","v":0},null,null,null,null,0]
[null,{"$f":"IF(ISBLANK('E COMP Mise à jour Année 1'!B136),\"\",'E COMP Mise à jour Année 1'!B136)","v":""},{"$f":"+'E COMP Mise à jour Année 1'!F136","v":0},{"$f":"+'D COMP Budget'!D136","v":0},null,null,null,null,0]
[null,{"$f":"IF(ISBLANK('E COMP Mise à jour Année 1'!B137),\"\",'E COMP Mise à jour Année 1'!B137)","v":""},{"$f":"+'E COMP Mise à jour Année 1'!F137","v":0},{"$f":"+'D COMP Budget'!D137","v":0},null,null,null,null,0]
[null,{"$f":"IF(ISBLANK('E COMP Mise à jour Année 1'!B138),\"\",'E COMP Mise à jour Année 1'!B138)","v":""},{"$f":"+'E COMP Mise à jour Année 1'!F138","v":0},{"$f":"+'D COMP Budget'!D138","v":0},null,null,null,null,0]
[null,"Abonnements, droits d’adhésion"]
[null,{"$f":"IF(ISBLANK('E COMP Mise à jour Année 1'!B140),\"\",'E COMP Mise à jour Année 1'!B140)","v":""},{"$f":"+'E COMP Mise à jour Année 1'!F140","v":0},{"$f":"+'D COMP Budget'!D140","v":0},null,null,null,null,{"$f":"C140+H140","v":0}]
[null,{"$f":"IF(ISBLANK('E COMP Mise à jour Année 1'!B141),\"\",'E COMP Mise à jour Année 1'!B141)","v":""},{"$f":"+'E COMP Mise à jour Année 1'!F141","v":0},{"$f":"+'D COMP Budget'!D141","v":0},null,null,null,null,0]
[null,{"$f":"IF(ISBLANK('E COMP Mise à jour Année 1'!B142),\"\",'E COMP Mise à jour Année 1'!B142)","v":""},{"$f":"+'E COMP Mise à jour Année 1'!F142","v":0},{"$f":"+'D COMP Budget'!D142","v":0},null,null,null,null,0]
[null,{"$f":"IF(ISBLANK('E COMP Mise à jour Année 1'!B143),\"\",'E COMP Mise à jour Année 1'!B143)","v":""},{"$f":"+'E COMP Mise à jour Année 1'!F143","v":0},{"$f":"+'D COMP Budget'!D143","v":0},null,null,null,null,0]
[null,{"$f":"IF(ISBLANK('E COMP Mise à jour Année 1'!B144),\"\",'E COMP Mise à jour Année 1'!B144)","v":""},{"$f":"+'E COMP Mise à jour Année 1'!F144","v":0},{"$f":"+'D COMP Budget'!D144","v":0},null,null,null,null,0]
[null,"Frais de service"]
[null,{"$f":"IF(ISBLANK('E COMP Mise à jour Année 1'!B146),\"\",'E COMP Mise à jour Année 1'!B146)","v":""},{"$f":"+'E COMP Mise à jour Année 1'!F146","v":0},{"$f":"+'D COMP Budget'!D146","v":0},null,null,null,null,{"$f":"C146+H146","v":0}]
[null,{"$f":"IF(ISBLANK('E COMP Mise à jour Année 1'!B147),\"\",'E COMP Mise à jour Année 1'!B147)","v":""},{"$f":"+'E COMP Mise à jour Année 1'!F147","v":0},{"$f":"+'D COMP Budget'!D147","v":0},null,null,null,null,0]
[null,{"$f":"IF(ISBLANK('E COMP Mise à jour Année 1'!B148),\"\",'E COMP Mise à jour Année 1'!B148)","v":""},{"$f":"+'E COMP Mise à jour Année 1'!F148","v":0},{"$f":"+'D COMP Budget'!D148","v":0},null,null,null,null,0]
[null,{"$f":"IF(ISBLANK('E COMP Mise à jour Année 1'!B149),\"\",'E COMP Mise à jour Année 1'!B149)","v":""},{"$f":"+'E COMP Mise à jour Année 1'!F149","v":0},{"$f":"+'D COMP Budget'!D149","v":0},null,null,null,null,0]
[null,{"$f":"IF(ISBLANK('E COMP Mise à jour Année 1'!B150),\"\",'E COMP Mise à jour Année 1'!B150)","v":""},{"$f":"+'E COMP Mise à jour Année 1'!F150","v":0},{"$f":"+'D COMP Budget'!D150","v":0},null,null,null,null,0]
[null,"Vente de produits"]
[null,{"$f":"IF(ISBLANK('E COMP Mise à jour Année 1'!B152),\"\",'E COMP Mise à jour Année 1'!B152)","v":""},{"$f":"+'E COMP Mise à jour Année 1'!F152","v":0},{"$f":"+'D COMP Budget'!D152","v":0},null,null,null,null,{"$f":"C152+H152","v":0}]
[null,{"$f":"IF(ISBLANK('E COMP Mise à jour Année 1'!B153),\"\",'E COMP Mise à jour Année 1'!B153)","v":""},{"$f":"+'E COMP Mise à jour Année 1'!F153","v":0},{"$f":"+'D COMP Budget'!D153","v":0},null,null,null,null,0]
[null,{"$f":"IF(ISBLANK('E COMP Mise à jour Année 1'!B154),\"\",'E COMP Mise à jour Année 1'!B154)","v":""},{"$f":"+'E COMP Mise à jour Année 1'!F154","v":0},{"$f":"+'D COMP Budget'!D154","v":0},null,null,null,null,0]
[null,{"$f":"IF(ISBLANK('E COMP Mise à jour Année 1'!B155),\"\",'E COMP Mise à jour Année 1'!B155)","v":""},{"$f":"+'E COMP Mise à jour Année 1'!F155","v":0},{"$f":"+'D COMP Budget'!D155","v":0},null,null,null,null,0]
[null,{"$f":"IF(ISBLANK('E COMP Mise à jour Année 1'!B156),\"\",'E COMP Mise à jour Année 1'!B156)","v":""},{"$f":"+'E COMP Mise à jour Année 1'!F156","v":0},{"$f":"+'D COMP Budget'!D156","v":0},null,null,null,null,0]
[null,"Autres revenus gagnés"]
[null,{"$f":"IF(ISBLANK('E COMP Mise à jour Année 1'!B158),\"\",'E COMP Mise à jour Année 1'!B158)","v":""},{"$f":"+'E COMP Mise à jour Année 1'!F158","v":0},{"$f":"+'D COMP Budget'!D158","v":0},null,null,null,null,{"$f":"C158+H158","v":0}]
[null,{"$f":"IF(ISBLANK('E COMP Mise à jour Année 1'!B159),\"\",'E COMP Mise à jour Année 1'!B159)","v":""},{"$f":"+'E COMP Mise à jour Année 1'!F159","v":0},{"$f":"+'D COMP Budget'!D159","v":0},null,null,null,null,0]
[null,{"$f":"IF(ISBLANK('E COMP Mise à jour Année 1'!B160),\"\",'E COMP Mise à jour Année 1'!B160)","v":""},{"$f":"+'E COMP Mise à jour Année 1'!F160","v":0},{"$f":"+'D COMP Budget'!D160","v":0},null,null,null,null,0]
[null,{"$f":"IF(ISBLANK('E COMP Mise à jour Année 1'!B161),\"\",'E COMP Mise à jour Année 1'!B161)","v":""},{"$f":"+'E COMP Mise à jour Année 1'!F161","v":0},{"$f":"+'D COMP Budget'!D161","v":0},null,null,null,null,0]
[null,{"$f":"IF(ISBLANK('E COMP Mise à jour Année 1'!B162),\"\",'E COMP Mise à jour Année 1'!B162)","v":""},{"$f":"+'E COMP Mise à jour Année 1'!F162","v":0},{"$f":"+'D COMP Budget'!D162","v":0},null,null,null,null,0]
[null,"Sous-total – Revenus gagnés",{"$f":"+'E COMP Mise à jour Année 1'!F163","v":0},{"$f":"+'D COMP Budget'!D163","v":0},{"$f":"+SUM(E158:E162,E134:E138,E146:E150,E140:E144,E152:E156)","v":0},{"$f":"+SUM(F158:F162,F134:F138,F146:F150,F140:F144,F152:F156)","v":0},{"$f":"+SUM(G158:G162,G134:G138,G146:G150,G140:G144,G152:G156)","v":0},{"$f":"+SUM(H158:H162,H134:H138,H146:H150,H140:H144,H152:H156)","v":0},{"$f":"C163+H163","v":0}]
[]
[null,"Revenus du secteur privé"]
[null,"Commandites",{"$f":"+'E COMP Mise à jour Année 1'!F166","v":0},{"$f":"+'D COMP Budget'!D166","v":0},null,null,null,null,{"$f":"C166+H166","v":0}]
[null,"Dons",{"$f":"+'E COMP Mise à jour Année 1'!F167","v":0},{"$f":"+'D COMP Budget'!D167","v":0},null,null,null,null,0]
[null,"Fondations",{"$f":"+'E COMP Mise à jour Année 1'!F168","v":0},{"$f":"+'D COMP Budget'!D168","v":0},null,null,null,null,0]
[null,"Collectes de fonds",{"$f":"+'E COMP Mise à jour Année 1'!F169","v":0},{"$f":"+'D COMP Budget'!D169","v":0},null,null,null,null,0]
[null,"Autre revenus du secteur privé"]
[null,{"$f":"IF(ISBLANK('E COMP Mise à jour Année 1'!B171),\"\",'E COMP Mise à jour Année 1'!B171)","v":""},{"$f":"+'E COMP Mise à jour Année 1'!F171","v":0},{"$f":"+'D COMP Budget'!D171","v":0},null,null,null,null,{"$f":"C171+H171","v":0}]
[null,{"$f":"IF(ISBLANK('E COMP Mise à jour Année 1'!B172),\"\",'E COMP Mise à jour Année 1'!B172)","v":""},{"$f":"+'E COMP Mise à jour Année 1'!F172","v":0},{"$f":"+'D COMP Budget'!D172","v":0},null,null,null,null,0]
[null,{"$f":"IF(ISBLANK('E COMP Mise à jour Année 1'!B173),\"\",'E COMP Mise à jour Année 1'!B173)","v":""},{"$f":"+'E COMP Mise à jour Année 1'!F173","v":0},{"$f":"+'D COMP Budget'!D173","v":0},null,null,null,null,0]
[null,{"$f":"IF(ISBLANK('E COMP Mise à jour Année 1'!B174),\"\",'E COMP Mise à jour Année 1'!B174)","v":""},{"$f":"+'E COMP Mise à jour Année 1'!F174","v":0},{"$f":"+'D COMP Budget'!D174","v":0},null,null,null,null,0]
[null,{"$f":"IF(ISBLANK('E COMP Mise à jour Année 1'!B175),\"\",'E COMP Mise à jour Année 1'!B175)","v":""},{"$f":"+'E COMP Mise à jour Année 1'!F175","v":0},{"$f":"+'D COMP Budget'!D175","v":0},null,null,null,null,0]
[null,"Sous-total – Revenus du secteur privé",{"$f":"+'E COMP Mise à jour Année 1'!F176","v":0},{"$f":"+'D COMP Budget'!D176","v":0},{"$f":"+SUM(E171:E175,E166:E169)","v":0},{"$f":"+SUM(F171:F175,F166:F169)","v":0},{"$f":"+SUM(G171:G175,G166:G169)","v":0},{"$f":"+SUM(H171:H175,H166:H169)","v":0},{"$f":"C176+H176","v":0}]
[]
[null,"Revenus du secteur public"]
[null,"Montant de la subvention demandée (montant accordé dans les colonnes « mise à jour » et « réel »)",{"$f":"+'E COMP Mise à jour Année 1'!F179","v":0},{"$f":"+'D COMP Budget'!D179","v":0},null,null,null,null,{"$f":"C179+H179","v":0}]
[null,"Soutien à l’accès demandé (montant accordé dans les colonnes « mise à jour » et « réel »)",{"$f":"+'E COMP Mise à jour Année 1'!F180","v":0},null,null,null,null,null,{"$f":"C180+H180","v":0}]
[null,"Autres subventions du Conseil des arts"]
[null,{"$f":"IF(ISBLANK('E COMP Mise à jour Année 1'!B182),\"\",'E COMP Mise à jour Année 1'!B182)","v":""},{"$f":"+'E COMP Mise à jour Année 1'!F182","v":0},{"$f":"+'D COMP Budget'!D182","v":0},null,null,null,null,{"$f":"C182+H182","v":0}]
[null,{"$f":"IF(ISBLANK('E COMP Mise à jour Année 1'!B183),\"\",'E COMP Mise à jour Année 1'!B183)","v":""},{"$f":"+'E COMP Mise à jour Année 1'!F183","v":0},{"$f":"+'D COMP Budget'!D183","v":0},null,null,null,null,0]
[null,{"$f":"IF(ISBLANK('E COMP Mise à jour Année 1'!B184),\"\",'E COMP Mise à jour Année 1'!B184)","v":""},{"$f":"+'E COMP Mise à jour Année 1'!F184","v":0},{"$f":"+'D COMP Budget'!D184","v":0},null,null,null,null,0]
[null,{"$f":"IF(ISBLANK('E COMP Mise à jour Année 1'!B185),\"\",'E COMP Mise à jour Année 1'!B185)","v":""},{"$f":"+'E COMP Mise à jour Année 1'!F185","v":0},{"$f":"+'D COMP Budget'!D185","v":0},null,null,null,null,0]
[null,{"$f":"IF(ISBLANK('E COMP Mise à jour Année 1'!B186),\"\",'E COMP Mise à jour Année 1'!B186)","v":""},{"$f":"+'E COMP Mise à jour Année 1'!F186","v":0},{"$f":"+'D COMP Budget'!D186","v":0},null,null,null,null,0]
[null,"Autre subvention fédérale"]
[null,{"$f":"IF(ISBLANK('E COMP Mise à jour Année 1'!B188),\"\",'E COMP Mise à jour Année 1'!B188)","v":""},{"$f":"+'E COMP Mise à jour Année 1'!F188","v":0},{"$f":"+'D COMP Budget'!D188","v":0},null,null,null,null,{"$f":"C188+H188","v":0}]
[null,{"$f":"IF(ISBLANK('E COMP Mise à jour Année 1'!B189),\"\",'E COMP Mise à jour Année 1'!B189)","v":""},{"$f":"+'E COMP Mise à jour Année 1'!F189","v":0},{"$f":"+'D COMP Budget'!D189","v":0},null,null,null,null,0]
[null,{"$f":"IF(ISBLANK('E COMP Mise à jour Année 1'!B190),\"\",'E COMP Mise à jour Année 1'!B190)","v":""},{"$f":"+'E COMP Mise à jour Année 1'!F190","v":0},{"$f":"+'D COMP Budget'!D190","v":0},null,null,null,null,0]
[null,{"$f":"IF(ISBLANK('E COMP Mise à jour Année 1'!B191),\"\",'E COMP Mise à jour Année 1'!B191)","v":""},{"$f":"+'E COMP Mise à jour Année 1'!F191","v":0},{"$f":"+'D COMP Budget'!D191","v":0},null,null,null,null,0]
[null,{"$f":"IF(ISBLANK('E COMP Mise à jour Année 1'!B192),\"\",'E COMP Mise à jour Année 1'!B192)","v":""},{"$f":"+'E COMP Mise à jour Année 1'!F192","v":0},{"$f":"+'D COMP Budget'!D192","v":0},null,null,null,null,0]
[null,"Subvention provinciale ou territoriale"]
[null,{"$f":"IF(ISBLANK('E COMP Mise à jour Année 1'!B194),\"\",'E COMP Mise à jour Année 1'!B194)","v":""},{"$f":"+'E COMP Mise à jour Année 1'!F194","v":0},{"$f":"+'D COMP Budget'!D194","v":0},null,null,null,null,{"$f":"C194+H194","v":0}]
[null,{"$f":"IF(ISBLANK('E COMP Mise à jour Année 1'!B195),\"\",'E COMP Mise à jour Année 1'!B195)","v":""},{"$f":"+'E COMP Mise à jour Année 1'!F195","v":0},{"$f":"+'D COMP Budget'!D195","v":0},null,null,null,null,0]
[null,{"$f":"IF(ISBLANK('E COMP Mise à jour Année 1'!B196),\"\",'E COMP Mise à jour Année 1'!B196)","v":""},{"$f":"+'E COMP Mise à jour Année 1'!F196","v":0},{"$f":"+'D COMP Budget'!D196","v":0},null,null,null,null,0]
[null,{"$f":"IF(ISBLANK('E COMP Mise à jour Année 1'!B197),\"\",'E COMP Mise à jour Année 1'!B197)","v":""},{"$f":"+'E COMP Mise à jour Année 1'!F197","v":0},{"$f":"+'D COMP Budget'!D197","v":0},null,null,null,null,0]
[null,{"$f":"IF(ISBLANK('E COMP Mise à jour Année 1'!B198),\"\",'E COMP Mise à jour Année 1'!B198)","v":""},{"$f":"+'E COMP Mise à jour Année 1'!F198","v":0},{"$f":"+'D COMP Budget'!D198","v":0},null,null,null,null,0]
[null,"Subvention municipale ou régionale"]
[null,{"$f":"IF(ISBLANK('E COMP Mise à jour Année 1'!B200),\"\",'E COMP Mise à jour Année 1'!B200)","v":""},{"$f":"+'E COMP Mise à jour Année 1'!F200","v":0},{"$f":"+'D COMP Budget'!D200","v":0},null,null,null,null,{"$f":"C200+H200","v":0}]
[null,{"$f":"IF(ISBLANK('E COMP Mise à jour Année 1'!B201),\"\",'E COMP Mise à jour Année 1'!B201)","v":""},{"$f":"+'E COMP Mise à jour Année 1'!F201","v":0},{"$f":"+'D COMP Budget'!D201","v":0},null,null,null,null,0]
[null,{"$f":"IF(ISBLANK('E COMP Mise à jour Année 1'!B202),\"\",'E COMP Mise à jour Année 1'!B202)","v":""},{"$f":"+'E COMP Mise à jour Année 1'!F202","v":0},{"$f":"+'D COMP Budget'!D202","v":0},null,null,null,null,0]
[null,{"$f":"IF(ISBLANK('E COMP Mise à jour Année 1'!B203),\"\",'E COMP Mise à jour Année 1'!B203)","v":""},{"$f":"+'E COMP Mise à jour Année 1'!F203","v":0},{"$f":"+'D COMP Budget'!D203","v":0},null,null,null,null,0]
[null,{"$f":"IF(ISBLANK('E COMP Mise à jour Année 1'!B204),\"\",'E COMP Mise à jour Année 1'!B204)","v":""},{"$f":"+'E COMP Mise à jour Année 1'!F204","v":0},{"$f":"+'D COMP Budget'!D204","v":0},null,null,null,null,0]
[null,"Autres revenus du secteur public"]
[null,{"$f":"IF(ISBLANK('E COMP Mise à jour Année 1'!B206),\"\",'E COMP Mise à jour Année 1'!B206)","v":""},{"$f":"+'E COMP Mise à jour Année 1'!F206","v":0},{"$f":"+'D COMP Budget'!D206","v":0},null,null,null,null,{"$f":"C206+H206","v":0}]
[null,{"$f":"IF(ISBLANK('E COMP Mise à jour Année 1'!B207),\"\",'E COMP Mise à jour Année 1'!B207)","v":""},{"$f":"+'E COMP Mise à jour Année 1'!F207","v":0},{"$f":"+'D COMP Budget'!D207","v":0},null,null,null,null,0]
[null,{"$f":"IF(ISBLANK('E COMP Mise à jour Année 1'!B208),\"\",'E COMP Mise à jour Année 1'!B208)","v":""},{"$f":"+'E COMP Mise à jour Année 1'!F208","v":0},{"$f":"+'D COMP Budget'!D208","v":0},null,null,null,null,0]
[null,{"$f":"IF(ISBLANK('E COMP Mise à jour Année 1'!B209),\"\",'E COMP Mise à jour Année 1'!B209)","v":""},{"$f":"+'E COMP Mise à jour Année 1'!F209","v":0},{"$f":"+'D COMP Budget'!D209","v":0},null,null,null,null,0]
[null,{"$f":"IF(ISBLANK('E COMP Mise à jour Année 1'!B210),\"\",'E COMP Mise à jour Année 1'!B210)","v":""},{"$f":"+'E COMP Mise à jour Année 1'!F210","v":0},{"$f":"+'D COMP Budget'!D210","v":0},null,null,null,null,0]
[null,"Sous-total – Revenus du secteur public",{"$f":"+'E COMP Mise à jour Année 1'!F211","v":0},{"$f":"+'D COMP Budget'!D211","v":0},{"$f":"+SUM(E188:E192,E194:E198,E200:E204,E206:E210,E179:E180,E182:E186)","v":0},{"$f":"+SUM(F188:F192,F194:F198,F200:F204,F206:F210,F179:F180,F182:F186)","v":0},{"$f":"+SUM(G188:G192,G194:G198,G200:G204,G206:G210,G179:G180,G182:G186)","v":0},{"$f":"+SUM(H188:H192,H194:H198,H200:H204,H206:H210,H179:H180,H182:H186)","v":0},{"$f":"C211+H211","v":0}]
[]
[null,"Services en nature",null,null,null,null,null,null,null,"Indiquez la ligne de coûts du projet à laquelle ce montant s’applique"]
[null,{"$f":"IF(ISBLANK('E COMP Mise à jour Année 1'!B214),\"\",'E COMP Mise à jour Année 1'!B214)","v":""},{"$f":"+'E COMP Mise à jour Année 1'!F214","v":0},{"$f":"+'D COMP Budget'!D214","v":0},null,null,null,null,{"$f":"C214+H214","v":0}]
[null,{"$f":"IF(ISBLANK('E COMP Mise à jour Année 1'!B215),\"\",'E COMP Mise à jour Année 1'!B215)","v":""},{"$f":"+'E COMP Mise à jour Année 1'!F215","v":0},{"$f":"+'D COMP Budget'!D215","v":0},null,null,null,null,0]
[null,{"$f":"IF(ISBLANK('E COMP Mise à jour Année 1'!B216),\"\",'E COMP Mise à jour Année 1'!B216)","v":""},{"$f":"+'E COMP Mise à jour Année 1'!F216","v":0},{"$f":"+'D COMP Budget'!D216","v":0},null,null,null,null,0]
[null,{"$f":"IF(ISBLANK('E COMP Mise à jour Année 1'!B217),\"\",'E COMP Mise à jour Année 1'!B217)","v":""},{"$f":"+'E COMP Mise à jour Année 1'!F217","v":0},{"$f":"+'D COMP Budget'!D217","v":0},null,null,null,null,0]
[null,{"$f":"IF(ISBLANK('E COMP Mise à jour Année 1'!B218),\"\",'E COMP Mise à jour Année 1'!B218)","v":""},{"$f":"+'E COMP Mise à jour Année 1'!F218","v":0},{"$f":"+'D COMP Budget'!D218","v":0},null,null,null,null,0]
[null,"Sous-total – Services en nature",{"$f":"+'E COMP Mise à jour Année 1'!F219","v":0},{"$f":"+'D COMP Budget'!D219","v":0},{"$f":"+SUM(E214:E218)","v":0},{"$f":"+SUM(F214:F218)","v":0},{"$f":"+SUM(G214:G218)","v":0},{"$f":"+SUM(H214:H218)","v":0},{"$f":"C219+H219","v":0}]
[]
[null,"Autres revenus",null,null,null,null,null,null,null,"Indiquez la ligne de coûts du projet à laquelle ce montant s’applique"]
[null,{"$f":"IF(ISBLANK('E COMP Mise à jour Année 1'!B222),\"\",'E COMP Mise à jour Année 1'!B222)","v":"Contribution du candidat"},{"$f":"+'E COMP Mise à jour Année 1'!F222","v":0},{"$f":"+'D COMP Budget'!D222","v":0},null,null,null,null,{"$f":"C222+H222","v":0}]
[null,{"$f":"IF(ISBLANK('E COMP Mise à jour Année 1'!B223),\"\",'E COMP Mise à jour Année 1'!B223)","v":""},{"$f":"+'E COMP Mise à jour Année 1'!F223","v":0},{"$f":"+'D COMP Budget'!D223","v":0},null,null,null,null,0]
[null,{"$f":"IF(ISBLANK('E COMP Mise à jour Année 1'!B224),\"\",'E COMP Mise à jour Année 1'!B224)","v":""},{"$f":"+'E COMP Mise à jour Année 1'!F224","v":0},{"$f":"+'D COMP Budget'!D224","v":0},null,null,null,null,0]
[null,{"$f":"IF(ISBLANK('E COMP Mise à jour Année 1'!B225),\"\",'E COMP Mise à jour Année 1'!B225)","v":""},{"$f":"+'E COMP Mise à jour Année 1'!F225","v":0},{"$f":"+'D COMP Budget'!D225","v":0},null,null,null,null,0]
[null,{"$f":"IF(ISBLANK('E COMP Mise à jour Année 1'!B226),\"\",'E COMP Mise à jour Année 1'!B226)","v":""},{"$f":"+'E COMP Mise à jour Année 1'!F226","v":0},{"$f":"+'D COMP Budget'!D226","v":0},null,null,null,null,0]
[null,"Paiements différés"]
[null,{"$f":"IF(ISBLANK('E COMP Mise à jour Année 1'!B228),\"\",'E COMP Mise à jour Année 1'!B228)","v":""},{"$f":"+'E COMP Mise à jour Année 1'!F228","v":0},{"$f":"+'D COMP Budget'!D228","v":0},null,null,null,null,{"$f":"C228+H228","v":0}]
[null,{"$f":"IF(ISBLANK('E COMP Mise à jour Année 1'!B229),\"\",'E COMP Mise à jour Année 1'!B229)","v":""},{"$f":"+'E COMP Mise à jour Année 1'!F229","v":0},{"$f":"+'D COMP Budget'!D229","v":0},null,null,null,null,0]
[null,{"$f":"IF(ISBLANK('E COMP Mise à jour Année 1'!B230),\"\",'E COMP Mise à jour Année 1'!B230)","v":""},{"$f":"+'E COMP Mise à jour Année 1'!F230","v":0},{"$f":"+'D COMP Budget'!D230","v":0},null,null,null,null,0]
[null,"Sous-total – Autres revenus",{"$f":"+'E COMP Mise à jour Année 1'!F231","v":0},{"$f":"+'D COMP Budget'!D231","v":0},{"$f":"+SUM(E228:E230,E222:E226)","v":0},{"$f":"+SUM(F228:F230,F222:F226)","v":0},{"$f":"+SUM(G228:G230,G222:G226)","v":0},{"$f":"+SUM(H228:H230,H222:H226)","v":0},{"$f":"C231+H231","v":0}]
[]
[null,"Total des revenus du projet\n(doit être égal au Total des coûts du projet)",{"$f":"C163+C176+C211+C231+C219","v":0},0,0,0,0,0,{"$f":"C233+H233","v":0}]
[]
[null,"Total des coûts du projet\n(doit être égal au Total des revenus du projet)",{"$f":"C128","v":0},0,0,0,0,0,{"$f":"C235+H235","v":0}]
[]
[null,"Excédent (déficit)\n(votre budget doit être équilibré)",{"$f":"C233-C235","v":0},0,0,0,0,0,0]
[]
[null,"% du Total des coûts du projet représentés par la subvention",{"$f":"IFERROR((C179/C235),\"\")","v":""},"","","","","",""]
[null,"Les honoraires, droits d'auteur, redevances et autres montants appropriés doivent être convenus par les collaborateurs du projet et le demandeur, et doivent être égaux ou supérieurs aux normes canadiennes actuelles."]

{"sheet":"G COMP Mise à jour Année 3","index":7,"n_rows":240,"n_cols":11,"rows_kept":240,"cut":false,"hidden":false,"merged":[[1,1,1,10],[9,1,9,10],[98,2,98,10],[198,2,198,10],[204,2,204,10],[112,1,112,10],[129,1,129,10],[10,1,10,10],[4,9,7,9],[4,10,7,10],[239,1,240,10],[192,2,192,10],[4,1,7,1],[24,1,24,10],[144,2,144,10],[150,2,150,10],[156,2,156,10],[169,2,169,10],[39,1,39,9],[132,2,132,10],[138,2,138,10],[177,1,177,10],[164,1,164,10],[131,1,131,10]]}
[null,{"$f":"'Data Validation'!A1","v":"v202205"}]
[null,"Appuyer la pratique artistique : Innovation et développement du secteur – Subventions composites (Mise à jour Année 3)"]
[]
[null," Veuillez inscrire ci-dessous les dépenses relatives à vos activités","Montant réel,\n1er exercice","Montant réel,\n2e exercice","Budget, 3e exercice","1ère mise à jour, 3e exercice\n(le cas échéant)","2e mise à jour, 3e exercice\n(le cas échéant)","3e mise à jour, 3e exercice\n(le cas échéant)","Montant réel,\n3e exercice","Montant réel, 1er, 2e et 3e exercices","Notes au budget\n(requis)"]
[null,"Vos données dans les lignes ci-dessous sont transmises à partir de votre budget précédent. Vous pouvez les modifier si nécessaire.","Date de début","Date de début","Date de début","Date de début","Date de début","Date de début","Date de début",null,"Veuillez indiquer dans les notes au budget si le coût doit être financé par la subvention du Conseil des arts."]
[null,null,"jj-mmm-aaaa","jj-mmm-aaaa","jj-mmm-aaaa","jj-mmm-aaaa","jj-mmm-aaaa","jj-mmm-aaaa","jj-mmm-aaaa"]
[null,null,"Date de fin ","Date de fin ","Date de fin ","Date de fin ","Date de fin ","Date de fin ","Date de fin "]
[null,null,"jj-mmm-aaaa","jj-mmm-aaaa","jj-mmm-aaaa","jj-mmm-aaaa","jj-mmm-aaaa","jj-mmm-aaaa","jj-mmm-aaaa"]
[]
[null,"Honoraires professionnels"]
[null,"Montants payés aux artistes artistes, experts, formateurs, animateurs, gestionnaires de projet, consultants, Aînés autochtones et des dirigeants communautaires, ainsi qu'à d'autres professionnels directement impliqués dans la réalisation de votre projet. Pour les projets d’une durée de 5 jours ou plus, vous pouvez inclure des frais appropriés pour vos services ou des frais de subsistance jusqu'à 500 $/personne/semaine. Inclure les détails dans les notes au budget."]
[null,{"$f":"IF(ISBLANK('F COMP Mise à jour Année 2'!B12),\"\",'F COMP Mise à jour Année 2'!B12)","v":""},{"$f":"+'E COMP Mise à jour Année 1'!F12","v":0},{"$f":"+'F COMP Mise à jour Année 2'!H12","v":0},{"$f":"+'D COMP Budget'!E12","v":0},null,null,null,null,{"$f":"C12+D12+I12","v":0}]
[null,{"$f":"IF(ISBLANK('F COMP Mise à jour Année 2'!B13),\"\",'F COMP Mise à jour Année 2'!B13)","v":""},{"$f":"+'E COMP Mise à jour Année 1'!F13","v":0},{"$f":"+'F COMP Mise à jour Année 2'!H13","v":0},{"$f":"+'D COMP Budget'!E13","v":0},null,null,null,null,0]
[null,{"$f":"IF(ISBLANK('F COMP Mise à jour Année 2'!B14),\"\",'F COMP Mise à jour Année 2'!B14)","v":""},{"$f":"+'E COMP Mise à jour Année 1'!F14","v":0},{"$f":"+'F COMP Mise à jour Année 2'!H14","v":0},{"$f":"+'D COMP Budget'!E14","v":0},null,null,null,null,0]
[null,{"$f":"IF(ISBLANK('F COMP Mise à jour Année 2'!B15),\"\",'F COMP Mise à jour Année 2'!B15)","v":""},{"$f":"+'E COMP Mise à jour Année 1'!F15","v":0},{"$f":"+'F COMP Mise à jour Année 2'!H15","v":0},{"$f":"+'D COMP Budget'!E15","v":0},null,null,null,null,0]
[null,{"$f":"IF(ISBLANK('F COMP Mise à jour Année 2'!B16),\"\",'F COMP Mise à jour Année 2'!B16)","v":""},{"$f":"+'E COMP Mise à jour Année 1'!F16","v":0},{"$f":"+'F COMP Mise à jour Année 2'!H16","v":0},{"$f":"+'D COMP Budget'!E16","v":0},null,null,null,null,0]
[null,{"$f":"IF(ISBLANK('F COMP Mise à jour Année 2'!B17),\"\",'F COMP Mise à jour Année 2'!B17)","v":""},{"$f":"+'E COMP Mise à jour Année 1'!F17","v":0},{"$f":"+'F COMP Mise à jour Année 2'!H17","v":0},{"$f":"+'D COMP Budget'!E17","v":0},null,null,null,null,0]
[null,{"$f":"IF(ISBLANK('F COMP Mise à jour Année 2'!B18),\"\",'F COMP Mise à jour Année 2'!B18)","v":""},{"$f":"+'E COMP Mise à jour Année 1'!F18","v":0},{"$f":"+'F COMP Mise à jour Année 2'!H18","v":0},{"$f":"+'D COMP Budget'!E18","v":0},null,null,null,null,0]
[null,{"$f":"IF(ISBLANK('F COMP Mise à jour Année 2'!B19),\"\",'F COMP Mise à jour Année 2'!B19)","v":""},{"$f":"+'E COMP Mise à jour Année 1'!F19","v":0},{"$f":"+'F COMP Mise à jour Année 2'!H19","v":0},{"$f":"+'D COMP Budget'!E19","v":0},null,null,null,null,0]
[null,{"$f":"IF(ISBLANK('F COMP Mise à jour Année 2'!B20),\"\",'F COMP Mise à jour Année 2'!B20)","v":""},{"$f":"+'E COMP Mise à jour Année 1'!F20","v":0},{"$f":"+'F COMP Mise à jour Année 2'!H20","v":0},{"$f":"+'D COMP Budget'!E20","v":0},null,null,null,null,0]
[null,{"$f":"IF(ISBLANK('F COMP Mise à jour Année 2'!B21),\"\",'F COMP Mise à jour Année 2'!B21)","v":""},{"$f":"+'E COMP Mise à jour Année 1'!F21","v":0},{"$f":"+'F COMP Mise à jour Année 2'!H21","v":0},{"$f":"+'D COMP Budget'!E21","v":0},null,null,null,null,0]
[null,{"$f":"IF(ISBLANK('F COMP Mise à jour Année 2'!B22),\"\",'F COMP Mise à jour Année 2'!B22)","v":""},{"$f":"+'E COMP Mise à jour Année 1'!F22","v":0},{"$f":"+'F COMP Mise à jour Année 2'!H22","v":0},{"$f":"+'D COMP Budget'!E22","v":0},null,null,null,null,0]
[null,"Sous-total – Honoraires professionnels ",{"$f":"+'E COMP Mise à jour Année 1'!F23","v":0},{"$f":"+'F COMP Mise à jour Année 2'!H23","v":0},{"$f":"+'D COMP Budget'!E23","v":0},{"$f":"SUM(F12:F22)","v":0},{"$f":"SUM(G12:G22)","v":0},{"$f":"SUM(H12:H22)","v":0},{"$f":"SUM(I12:I22)","v":0},{"$f":"C23+D23+I23","v":0}]
[]
[null,"Frais de déplacement (fournir des détails dans les notes au budget)"]
[null,"p. ex., Déplacement du personnel; transport et expédition des marchandises ou bagages additionnels; emballage et empaquetage; indemnité journalière et hébergement (maximum de 150 $/personne/jour)"]
[null,{"$f":"IF(ISBLANK('F COMP Mise à jour Année 2'!B27),\"\",'F COMP Mise à jour Année 2'!B27)","v":""},{"$f":"+'E COMP Mise à jour Année 1'!F27","v":0},{"$f":"+'F COMP Mise à jour Année 2'!H27","v":0},{"$f":"+'D COMP Budget'!E27","v":0},null,null,null,null,{"$f":"C27+D27+I27","v":0}]
[null,{"$f":"IF(ISBLANK('F COMP Mise à jour Année 2'!B28),\"\",'F COMP Mise à jour Année 2'!B28)","v":""},{"$f":"+'E COMP Mise à jour Année 1'!F28","v":0},{"$f":"+'F COMP Mise à jour Année 2'!H28","v":0},{"$f":"+'D COMP Budget'!E28","v":0},null,null,null,null,0]
[null,{"$f":"IF(ISBLANK('F COMP Mise à jour Année 2'!B29),\"\",'F COMP Mise à jour Année 2'!B29)","v":""},{"$f":"+'E COMP Mise à jour Année 1'!F29","v":0},{"$f":"+'F COMP Mise à jour Année 2'!H29","v":0},{"$f":"+'D COMP Budget'!E29","v":0},null,null,null,null,0]
[null,{"$f":"IF(ISBLANK('F COMP Mise à jour Année 2'!B30),\"\",'F COMP Mise à jour Année 2'!B30)","v":""},{"$f":"+'E COMP Mise à jour Année 1'!F30","v":0},{"$f":"+'F COMP Mise à jour Année 2'!H30","v":0},{"$f":"+'D COMP Budget'!E30","v":0},null,null,null,null,0]
[null,{"$f":"IF(ISBLANK('F COMP Mise à jour Année 2'!B31),\"\",'F COMP Mise à jour Année 2'!B31)","v":""},{"$f":"+'E COMP Mise à jour Année 1'!F31","v":0},{"$f":"+'F COMP Mise à jour Année 2'!H31","v":0},{"$f":"+'D COMP Budget'!E31","v":0},null,null,null,null,0]
[null,{"$f":"IF(ISBLANK('F COMP Mise à jour Année 2'!B32),\"\",'F COMP Mise à jour Année 2'!B32)","v":""},{"$f":"+'E COMP Mise à jour Année 1'!F32","v":0},{"$f":"+'F COMP Mise à jour Année 2'!H32","v":0},{"$f":"+'D COMP Budget'!E32","v":0},null,null,null,null,0]
[null,{"$f":"IF(ISBLANK('F COMP Mise à jour Année 2'!B33),\"\",'F COMP Mise à jour Année 2'!B33)","v":""},{"$f":"+'E COMP Mise à jour Année 1'!F33","v":0},{"$f":"+'F COMP Mise à jour Année 2'!H33","v":0},{"$f":"+'D COMP Budget'!E33","v":0},null,null,null,null,0]
[null,{"$f":"IF(ISBLANK('F COMP Mise à jour Année 2'!B34),\"\",'F COMP Mise à jour Année 2'!B34)","v":""},{"$f":"+'E COMP Mise à jour Année 1'!F34","v":0},{"$f":"+'F COMP Mise à jour Année 2'!H34","v":0},{"$f":"+'D COMP Budget'!E34","v":0},null,null,null,null,0]
[null,{"$f":"IF(ISBLANK('F COMP Mise à jour Année 2'!B35),\"\",'F COMP Mise à jour Année 2'!B35)","v":""},{"$f":"+'E COMP Mise à jour Année 1'!F35","v":0},{"$f":"+'F COMP Mise à jour Année 2'!H35","v":0},{"$f":"+'D COMP Budget'!E35","v":0},null,null,null,null,0]
[null,{"$f":"IF(ISBLANK('F COMP Mise à jour Année 2'!B36),\"\",'F COMP Mise à jour Année 2'!B36)","v":""},{"$f":"+'E COMP Mise à jour Année 1'!F36","v":0},{"$f":"+'F COMP Mise à jour Année 2'!H36","v":0},{"$f":"+'D COMP Budget'!E36","v":0},null,null,null,null,0]
[null,{"$f":"IF(ISBLANK('F COMP Mise à jour Année 2'!B37),\"\",'F COMP Mise à jour Année 2'!B37)","v":""},{"$f":"+'E COMP Mise à jour Année 1'!F37","v":0},{"$f":"+'F COMP Mise à jour Année 2'!H37","v":0},{"$f":"+'D COMP Budget'!E37","v":0},null,null,null,null,0]
[null,"Sous-total – Frais de déplacement",{"$f":"+'E COMP Mise à jour Année 1'!F38","v":0},{"$f":"+'F COMP Mise à jour Année 2'!H38","v":0},{"$f":"+'D COMP Budget'!E38","v":0},{"$f":"SUM(F27:F37)","v":0},{"$f":"SUM(G27:G37)","v":0},{"$f":"SUM(H27:H37)","v":0},{"$f":"SUM(I27:I37)","v":0},{"$f":"C38+D38+I38","v":0}]
[]
[null,"Coûts du projet"]
[null,"Coûts d'accessibilité publique – les soutiens et services liés au handicap dont ont besoin les artistes et les professionnels des arts participant aux activités"]
[null,{"$f":"IF(ISBLANK('F COMP Mise à jour Année 2'!B42),\"\",'F COMP Mise à jour Année 2'!B42)","v":""},{"$f":"+'E COMP Mise à jour Année 1'!F42","v":0},{"$f":"+'F COMP Mise à jour Année 2'!H42","v":0},{"$f":"+'D COMP Budget'!E42","v":0},null,null,null,null,{"$f":"C42+D42+I42","v":0}]
[null,{"$f":"IF(ISBLANK('F COMP Mise à jour Année 2'!B43),\"\",'F COMP Mise à jour Année 2'!B43)","v":""},{"$f":"+'E COMP Mise à jour Année 1'!F43","v":0},{"$f":"+'F COMP Mise à jour Année 2'!H43","v":0},{"$f":"+'D COMP Budget'!E43","v":0},null,null,null,null,0]
[null,{"$f":"IF(ISBLANK('F COMP Mise à jour Année 2'!B44),\"\",'F COMP Mise à jour Année 2'!B44)","v":""},{"$f":"+'E COMP Mise à jour Année 1'!F44","v":0},{"$f":"+'F COMP Mise à jour Année 2'!H44","v":0},{"$f":"+'D COMP Budget'!E44","v":0},null,null,null,null,0]
[null,"Location des lieux"]
[null,{"$f":"IF(ISBLANK('F COMP Mise à jour Année 2'!B46),\"\",'F COMP Mise à jour Année 2'!B46)","v":""},{"$f":"+'E COMP Mise à jour Année 1'!F46","v":0},{"$f":"+'F COMP Mise à jour Année 2'!H46","v":0},{"$f":"+'D COMP Budget'!E46","v":0},null,null,null,null,{"$f":"C46+D46+I46","v":0}]
[null,{"$f":"IF(ISBLANK('F COMP Mise à jour Année 2'!B47),\"\",'F COMP Mise à jour Année 2'!B47)","v":""},{"$f":"+'E COMP Mise à jour Année 1'!F47","v":0},{"$f":"+'F COMP Mise à jour Année 2'!H47","v":0},{"$f":"+'D COMP Budget'!E47","v":0},null,null,null,null,0]
[null,{"$f":"IF(ISBLANK('F COMP Mise à jour Année 2'!B48),\"\",'F COMP Mise à jour Année 2'!B48)","v":""},{"$f":"+'E COMP Mise à jour Année 1'!F48","v":0},{"$f":"+'F COMP Mise à jour Année 2'!H48","v":0},{"$f":"+'D COMP Budget'!E48","v":0},null,null,null,null,0]
[null,{"$f":"IF(ISBLANK('F COMP Mise à jour Année 2'!B49),\"\",'F COMP Mise à jour Année 2'!B49)","v":""},{"$f":"+'E COMP Mise à jour Année 1'!F49","v":0},{"$f":"+'F COMP Mise à jour Année 2'!H49","v":0},{"$f":"+'D COMP Budget'!E49","v":0},null,null,null,null,0]
[null,{"$f":"IF(ISBLANK('F COMP Mise à jour Année 2'!B50),\"\",'F COMP Mise à jour Année 2'!B50)","v":""},{"$f":"+'E COMP Mise à jour Année 1'!F50","v":0},{"$f":"+'F COMP Mise à jour Année 2'!H50","v":0},{"$f":"+'D COMP Budget'!E50","v":0},null,null,null,null,0]
[null,"Location d’équipement"]
[null,{"$f":"IF(ISBLANK('F COMP Mise à jour Année 2'!B52),\"\",'F COMP Mise à jour Année 2'!B52)","v":""},{"$f":"+'E COMP Mise à jour Année 1'!F52","v":0},{"$f":"+'F COMP Mise à jour Année 2'!H52","v":0},{"$f":"+'D COMP Budget'!E52","v":0},null,null,null,null,{"$f":"C52+D52+I52","v":0}]
[null,{"$f":"IF(ISBLANK('F COMP Mise à jour Année 2'!B53),\"\",'F COMP Mise à jour Année 2'!B53)","v":""},{"$f":"+'E COMP Mise à jour Année 1'!F53","v":0},{"$f":"+'F COMP Mise à jour Année 2'!H53","v":0},{"$f":"+'D COMP Budget'!E53","v":0},null,null,null,null,0]
[null,{"$f":"IF(ISBLANK('F COMP Mise à jour Année 2'!B54),\"\",'F COMP Mise à jour Année 2'!B54)","v":""},{"$f":"+'E COMP Mise à jour Année 1'!F54","v":0},{"$f":"+'F COMP Mise à jour Année 2'!H54","v":0},{"$f":"+'D COMP Budget'!E54","v":0},null,null,null,null,0]
[null,{"$f":"IF(ISBLANK('F COMP Mise à jour Année 2'!B55),\"\",'F COMP Mise à jour Année 2'!B55)","v":""},{"$f":"+'E COMP Mise à jour Année 1'!F55","v":0},{"$f":"+'F COMP Mise à jour Année 2'!H55","v":0},{"$f":"+'D COMP Budget'!E55","v":0},null,null,null,null,0]
[null,{"$f":"IF(ISBLANK('F COMP Mise à jour Année 2'!B56),\"\",'F COMP Mise à jour Année 2'!B56)","v":""},{"$f":"+'E COMP Mise à jour Année 1'!F56","v":0},{"$f":"+'F COMP Mise à jour Année 2'!H56","v":0},{"$f":"+'D COMP Budget'!E56","v":0},null,null,null,null,0]
[null,"Matériel et fournitures"]
[null,{"$f":"IF(ISBLANK('F COMP Mise à jour Année 2'!B58),\"\",'F COMP Mise à jour Année 2'!B58)","v":""},{"$f":"+'E COMP Mise à jour Année 1'!F58","v":0},{"$f":"+'F COMP Mise à jour Année 2'!H58","v":0},{"$f":"+'D COMP Budget'!E58","v":0},null,null,null,null,{"$f":"C58+D58+I58","v":0}]
[null,{"$f":"IF(ISBLANK('F COMP Mise à jour Année 2'!B59),\"\",'F COMP Mise à jour Année 2'!B59)","v":""},{"$f":"+'E COMP Mise à jour Année 1'!F59","v":0},{"$f":"+'F COMP Mise à jour Année 2'!H59","v":0},{"$f":"+'D COMP Budget'!E59","v":0},null,null,null,null,0]
[null,{"$f":"IF(ISBLANK('F COMP Mise à jour Année 2'!B60),\"\",'F COMP Mise à jour Année 2'!B60)","v":""},{"$f":"+'E COMP Mise à jour Année 1'!F60","v":0},{"$f":"+'F COMP Mise à jour Année 2'!H60","v":0},{"$f":"+'D COMP Budget'!E60","v":0},null,null,null,null,0]
[null,{"$f":"IF(ISBLANK('F COMP Mise à jour Année 2'!B61),\"\",'F COMP Mise à jour Année 2'!B61)","v":""},{"$f":"+'E COMP Mise à jour Année 1'!F61","v":0},{"$f":"+'F COMP Mise à jour Année 2'!H61","v":0},{"$f":"+'D COMP Budget'!E61","v":0},null,null,null,null,0]
[null,{"$f":"IF(ISBLANK('F COMP Mise à jour Année 2'!B62),\"\",'F COMP Mise à jour Année 2'!B62)","v":""},{"$f":"+'E COMP Mise à jour Année 1'!F62","v":0},{"$f":"+'F COMP Mise à jour Année 2'!H62","v":0},{"$f":"+'D COMP Budget'!E62","v":0},null,null,null,null,0]
[null,{"$f":"IF(ISBLANK('F COMP Mise à jour Année 2'!B63),\"\",'F COMP Mise à jour Année 2'!B63)","v":""},{"$f":"+'E COMP Mise à jour Année 1'!F63","v":0},{"$f":"+'F COMP Mise à jour Année 2'!H63","v":0},{"$f":"+'D COMP Budget'!E63","v":0},null,null,null,null,0]
[null,{"$f":"IF(ISBLANK('F COMP Mise à jour Année 2'!B64),\"\",'F COMP Mise à jour Année 2'!B64)","v":""},{"$f":"+'E COMP Mise à jour Année 1'!F64","v":0},{"$f":"+'F COMP Mise à jour Année 2'!H64","v":0},{"$f":"+'D COMP Budget'!E64","v":0},null,null,null,null,0]
[null,{"$f":"IF(ISBLANK('F COMP Mise à jour Année 2'!B65),\"\",'F COMP Mise à jour Année 2'!B65)","v":""},{"$f":"+'E COMP Mise à jour Année 1'!F65","v":0},{"$f":"+'F COMP Mise à jour Année 2'!H65","v":0},{"$f":"+'D COMP Budget'!E65","v":0},null,null,null,null,0]
[null,{"$f":"IF(ISBLANK('F COMP Mise à jour Année 2'!B66),\"\",'F COMP Mise à jour Année 2'!B66)","v":""},{"$f":"+'E COMP Mise à jour Année 1'!F66","v":0},{"$f":"+'F COMP Mise à jour Année 2'!H66","v":0},{"$f":"+'D COMP Budget'!E66","v":0},null,null,null,null,0]
[null,{"$f":"IF(ISBLANK('F COMP Mise à jour Année 2'!B67),\"\",'F COMP Mise à jour Année 2'!B67)","v":""},{"$f":"+'E COMP Mise à jour Année 1'!F67","v":0},{"$f":"+'F COMP Mise à jour Année 2'!H67","v":0},{"$f":"+'D COMP Budget'!E67","v":0},null,null,null,null,0]
[null,"Publications - numériques et imprimés"]
[null,{"$f":"IF(ISBLANK('F COMP Mise à jour Année 2'!B69),\"\",'F COMP Mise à jour Année 2'!B69)","v":""},{"$f":"+'E COMP Mise à jour Année 1'!F69","v":0},{"$f":"+'F COMP Mise à jour Année 2'!H69","v":0},{"$f":"+'D COMP Budget'!E69","v":0},null,null,null,null,{"$f":"C69+D69+I69","v":0}]
[null,{"$f":"IF(ISBLANK('F COMP Mise à jour Année 2'!B70),\"\",'F COMP Mise à jour Année 2'!B70)","v":""},{"$f":"+'E COMP Mise à jour Année 1'!F70","v":0},{"$f":"+'F COMP Mise à jour Année 2'!H70","v":0},{"$f":"+'D COMP Budget'!E70","v":0},null,null,null,null,0]
[null,{"$f":"IF(ISBLANK('F COMP Mise à jour Année 2'!B71),\"\",'F COMP Mise à jour Année 2'!B71)","v":""},{"$f":"+'E COMP Mise à jour Année 1'!F71","v":0},{"$f":"+'F COMP Mise à jour Année 2'!H71","v":0},{"$f":"+'D COMP Budget'!E71","v":0},null,null,null,null,0]
[null,{"$f":"IF(ISBLANK('F COMP Mise à jour Année 2'!B72),\"\",'F COMP Mise à jour Année 2'!B72)","v":""},{"$f":"+'E COMP Mise à jour Année 1'!F72","v":0},{"$f":"+'F COMP Mise à jour Année 2'!H72","v":0},{"$f":"+'D COMP Budget'!E72","v":0},null,null,null,null,0]
[null,{"$f":"IF(ISBLANK('F COMP Mise à jour Année 2'!B73),\"\",'F COMP Mise à jour Année 2'!B73)","v":""},{"$f":"+'E COMP Mise à jour Année 1'!F73","v":0},{"$f":"+'F COMP Mise à jour Année 2'!H73","v":0},{"$f":"+'D COMP Budget'!E73","v":0},null,null,null,null,0]
[null,{"$f":"IF(ISBLANK('F COMP Mise à jour Année 2'!B74),\"\",'F COMP Mise à jour Année 2'!B74)","v":""},{"$f":"+'E COMP Mise à jour Année 1'!F74","v":0},{"$f":"+'F COMP Mise à jour Année 2'!H74","v":0},{"$f":"+'D COMP Budget'!E74","v":0},null,null,null,null,0]
[null,{"$f":"IF(ISBLANK('F COMP Mise à jour Année 2'!B75),\"\",'F COMP Mise à jour Année 2'!B75)","v":""},{"$f":"+'E COMP Mise à jour Année 1'!F75","v":0},{"$f":"+'F COMP Mise à jour Année 2'!H75","v":0},{"$f":"+'D COMP Budget'!E75","v":0},null,null,null,null,0]
[null,{"$f":"IF(ISBLANK('F COMP Mise à jour Année 2'!B76),\"\",'F COMP Mise à jour Année 2'!B76)","v":""},{"$f":"+'E COMP Mise à jour Année 1'!F76","v":0},{"$f":"+'F COMP Mise à jour Année 2'!H76","v":0},{"$f":"+'D COMP Budget'!E76","v":0},null,null,null,null,0]
[null,{"$f":"IF(ISBLANK('F COMP Mise à jour Année 2'!B77),\"\",'F COMP Mise à jour Année 2'!B77)","v":""},{"$f":"+'E COMP Mise à jour Année 1'!F77","v":0},{"$f":"+'F COMP Mise à jour Année 2'!H77","v":0},{"$f":"+'D COMP Budget'!E77","v":0},null,null,null,null,0]
[null,{"$f":"IF(ISBLANK('F COMP Mise à jour Année 2'!B78),\"\",'F COMP Mise à jour Année 2'!B78)","v":""},{"$f":"+'E COMP Mise à jour Année 1'!F78","v":0},{"$f":"+'F COMP Mise à jour Année 2'!H78","v":0},{"$f":"+'D COMP Budget'!E78","v":0},null,null,null,null,0]
[null,"Autres coûts du projet – p. ex., Conception Web, documentation, communication des constatations, les coûts associés aux cérémonies culturelles, programmation, reproduction, catalogage, étude et diffusion, etc. "]
[null,{"$f":"IF(ISBLANK('F COMP Mise à jour Année 2'!B80),\"\",'F COMP Mise à jour Année 2'!B80)","v":""},{"$f":"+'E COMP Mise à jour Année 1'!F80","v":0},{"$f":"+'F COMP Mise à jour Année 2'!H80","v":0},{"$f":"+'D COMP Budget'!E80","v":0},null,null,null,null,{"$f":"C80+D80+I80","v":0}]
[null,{"$f":"IF(ISBLANK('F COMP Mise à jour Année 2'!B81),\"\",'F COMP Mise à jour Année 2'!B81)","v":""},{"$f":"+'E COMP Mise à jour Année 1'!F81","v":0},{"$f":"+'F COMP Mise à jour Année 2'!H81","v":0},{"$f":"+'D COMP Budget'!E81","v":0},null,null,null,null,0]
[null,{"$f":"IF(ISBLANK('F COMP Mise à jour Année 2'!B82),\"\",'F COMP Mise à jour Année 2'!B82)","v":""},{"$f":"+'E COMP Mise à jour Année 1'!F82","v":0},{"$f":"+'F COMP Mise à jour Année 2'!H82","v":0},{"$f":"+'D COMP Budget'!E82","v":0},null,null,null,null,0]
[null,{"$f":"IF(ISBLANK('F COMP Mise à jour Année 2'!B83),\"\",'F COMP Mise à jour Année 2'!B83)","v":""},{"$f":"+'E COMP Mise à jour Année 1'!F83","v":0},{"$f":"+'F COMP Mise à jour Année 2'!H83","v":0},{"$f":"+'D COMP Budget'!E83","v":0},null,null,null,null,0]
[null,{"$f":"IF(ISBLANK('F COMP Mise à jour Année 2'!B84),\"\",'F COMP Mise à jour Année 2'!B84)","v":""},{"$f":"+'E COMP Mise à jour Année 1'!F84","v":0},{"$f":"+'F COMP Mise à jour Année 2'!H84","v":0},{"$f":"+'D COMP Budget'!E84","v":0},null,null,null,null,0]
[null,{"$f":"IF(ISBLANK('F COMP Mise à jour Année 2'!B85),\"\",'F COMP Mise à jour Année 2'!B85)","v":""},{"$f":"+'E COMP Mise à jour Année 1'!F85","v":0},{"$f":"+'F COMP Mise à jour Année 2'!H85","v":0},{"$f":"+'D COMP Budget'!E85","v":0},null,null,null,null,0]
[null,{"$f":"IF(ISBLANK('F COMP Mise à jour Année 2'!B86),\"\",'F COMP Mise à jour Année 2'!B86)","v":""},{"$f":"+'E COMP Mise à jour Année 1'!F86","v":0},{"$f":"+'F COMP Mise à jour Année 2'!H86","v":0},{"$f":"+'D COMP Budget'!E86","v":0},null,null,null,null,0]
[null,{"$f":"IF(ISBLANK('F COMP Mise à jour Année 2'!B87),\"\",'F COMP Mise à jour Année 2'!B87)","v":""},{"$f":"+'E COMP Mise à jour Année 1'!F87","v":0},{"$f":"+'F COMP Mise à jour Année 2'!H87","v":0},{"$f":"+'D COMP Budget'!E87","v":0},null,null,null,null,0]
[null,{"$f":"IF(ISBLANK('F COMP Mise à jour Année 2'!B88),\"\",'F COMP Mise à jour Année 2'!B88)","v":""},{"$f":"+'E COMP Mise à jour Année 1'!F88","v":0},{"$f":"+'F COMP Mise à jour Année 2'!H88","v":0},{"$f":"+'D COMP Budget'!E88","v":0},null,null,null,null,0]
[null,{"$f":"IF(ISBLANK('F COMP Mise à jour Année 2'!B89),\"\",'F COMP Mise à jour Année 2'!B89)","v":""},{"$f":"+'E COMP Mise à jour Année 1'!F89","v":0},{"$f":"+'F COMP Mise à jour Année 2'!H89","v":0},{"$f":"+'D COMP Budget'!E89","v":0},null,null,null,null,0]
[null,{"$f":"IF(ISBLANK('F COMP Mise à jour Année 2'!B90),\"\",'F COMP Mise à jour Année 2'!B90)","v":""},{"$f":"+'E COMP Mise à jour Année 1'!F90","v":0},{"$f":"+'F COMP Mise à jour Année 2'!H90","v":0},{"$f":"+'D COMP Budget'!E90","v":0},null,null,null,null,0]
[null,{"$f":"IF(ISBLANK('F COMP Mise à jour Année 2'!B91),\"\",'F COMP Mise à jour Année 2'!B91)","v":""},{"$f":"+'E COMP Mise à jour Année 1'!F91","v":0},{"$f":"+'F COMP Mise à jour Année 2'!H91","v":0},{"$f":"+'D COMP Budget'!E91","v":0},null,null,null,null,0]
[null,{"$f":"IF(ISBLANK('F COMP Mise à jour Année 2'!B92),\"\",'F COMP Mise à jour Année 2'!B92)","v":""},{"$f":"+'E COMP Mise à jour Année 1'!F92","v":0},{"$f":"+'F COMP Mise à jour Année 2'!H92","v":0},{"$f":"+'D COMP Budget'!E92","v":0},null,null,null,null,0]
[null,{"$f":"IF(ISBLANK('F COMP Mise à jour Année 2'!B93),\"\",'F COMP Mise à jour Année 2'!B93)","v":""},{"$f":"+'E COMP Mise à jour Année 1'!F93","v":0},{"$f":"+'F COMP Mise à jour Année 2'!H93","v":0},{"$f":"+'D COMP Budget'!E93","v":0},null,null,null,null,0]
[null,"Coûts d’accessibilité financés par les fonds de Soutien à l’accès (voir les instructions)",{"$f":"+'E COMP Mise à jour Année 1'!F94","v":0},{"$f":"+'F COMP Mise à jour Année 2'!H94","v":0},null,null,null,null,null,0]
[null,"Sous-total – Coûts des activités",{"$f":"+'E COMP Mise à jour Année 1'!F95","v":0},{"$f":"+'F COMP Mise à jour Année 2'!H95","v":0},{"$f":"+'D COMP Budget'!E95","v":0},{"$f":"SUM(F42:F94)","v":0},{"$f":"SUM(G42:G94)","v":0},{"$f":"SUM(H42:H94)","v":0},{"$f":"SUM(I42:I94)","v":0},{"$f":"C95+D95+I95","v":0}]
[]
[null,"Promotion et marketing"]
[null,"Développement des publics, activités de rayonnement, matériel de communication,publicité et promotions, par exemple. Fournir des détails dans les notes au budget."]
[null,"Personnel chargé de la promotion et marketing"]
[null,{"$f":"IF(ISBLANK('F COMP Mise à jour Année 2'!B100),\"\",'F COMP Mise à jour Année 2'!B100)","v":""},{"$f":"+'E COMP Mise à jour Année 1'!F100","v":0},{"$f":"+'F COMP Mise à jour Année 2'!H100","v":0},{"$f":"+'D COMP Budget'!E100","v":0},null,null,null,null,{"$f":"C100+D100+I100","v":0}]
[null,{"$f":"IF(ISBLANK('F COMP Mise à jour Année 2'!B101),\"\",'F COMP Mise à jour Année 2'!B101)","v":""},{"$f":"+'E COMP Mise à jour Année 1'!F101","v":0},{"$f":"+'F COMP Mise à jour Année 2'!H101","v":0},{"$f":"+'D COMP Budget'!E101","v":0},null,null,null,null,0]
[null,{"$f":"IF(ISBLANK('F COMP Mise à jour Année 2'!B102),\"\",'F COMP Mise à jour Année 2'!B102)","v":""},{"$f":"+'E COMP Mise à jour Année 1'!F102","v":0},{"$f":"+'F COMP Mise à jour Année 2'!H102","v":0},{"$f":"+'D COMP Budget'!E102","v":0},null,null,null,null,0]
[null,{"$f":"IF(ISBLANK('F COMP Mise à jour Année 2'!B103),\"\",'F COMP Mise à jour Année 2'!B103)","v":""},{"$f":"+'E COMP Mise à jour Année 1'!F103","v":0},{"$f":"+'F COMP Mise à jour Année 2'!H103","v":0},{"$f":"+'D COMP Budget'!E103","v":0},null,null,null,null,0]
[null,{"$f":"IF(ISBLANK('F COMP Mise à jour Année 2'!B104),\"\",'F COMP Mise à jour Année 2'!B104)","v":""},{"$f":"+'E COMP Mise à jour Année 1'!F104","v":0},{"$f":"+'F COMP Mise à jour Année 2'!H104","v":0},{"$f":"+'D COMP Budget'!E104","v":0},null,null,null,null,0]
[null,"Coûts promotionnels"]
[null,{"$f":"IF(ISBLANK('F COMP Mise à jour Année 2'!B106),\"\",'F COMP Mise à jour Année 2'!B106)","v":""},{"$f":"+'E COMP Mise à jour Année 1'!F106","v":0},{"$f":"+'F COMP Mise à jour Année 2'!H106","v":0},{"$f":"+'D COMP Budget'!E106","v":0},null,null,null,null,{"$f":"C106+D106+I106","v":0}]
[null,{"$f":"IF(ISBLANK('F COMP Mise à jour Année 2'!B107),\"\",'F COMP Mise à jour Année 2'!B107)","v":""},{"$f":"+'E COMP Mise à jour Année 1'!F107","v":0},{"$f":"+'F COMP Mise à jour Année 2'!H107","v":0},{"$f":"+'D COMP Budget'!E107","v":0},null,null,null,null,0]
[null,{"$f":"IF(ISBLANK('F COMP Mise à jour Année 2'!B108),\"\",'F COMP Mise à jour Année 2'!B108)","v":""},{"$f":"+'E COMP Mise à jour Année 1'!F108","v":0},{"$f":"+'F COMP Mise à jour Année 2'!H108","v":0},{"$f":"+'D COMP Budget'!E108","v":0},null,null,null,null,0]
[null,{"$f":"IF(ISBLANK('F COMP Mise à jour Année 2'!B109),\"\",'F COMP Mise à jour Année 2'!B109)","v":""},{"$f":"+'E COMP Mise à jour Année 1'!F109","v":0},{"$f":"+'F COMP Mise à jour Année 2'!H109","v":0},{"$f":"+'D COMP Budget'!E109","v":0},null,null,null,null,0]
[null,{"$f":"IF(ISBLANK('F COMP Mise à jour Année 2'!B110),\"\",'F COMP Mise à jour Année 2'!B110)","v":""},{"$f":"+'E COMP Mise à jour Année 1'!F110","v":0},{"$f":"+'F COMP Mise à jour Année 2'!H110","v":0},{"$f":"+'D COMP Budget'!E110","v":0},null,null,null,null,0]
[null,"Sous-total – Promotion et marketing",{"$f":"+'E COMP Mise à jour Année 1'!F111","v":0},{"$f":"+'F COMP Mise à jour Année 2'!H111","v":0},{"$f":"+'D COMP Budget'!E111","v":0},{"$f":"+SUM(F106:F110,F100:F104)","v":0},{"$f":"+SUM(G106:G110,G100:G104)","v":0},{"$f":"+SUM(H106:H110,H100:H104)","v":0},{"$f":"+SUM(I106:I110,I100:I104)","v":0},{"$f":"C111+D111+I111","v":0}]
[]
[null,"Gestion du projet"]
[null,"Personnel chargé de l'administration du projet"]
[null,{"$f":"IF(ISBLANK('F COMP Mise à jour Année 2'!B115),\"\",'F COMP Mise à jour Année 2'!B115)","v":""},{"$f":"+'E COMP Mise à jour Année 1'!F115","v":0},{"$f":"+'F COMP Mise à jour Année 2'!H115","v":0},{"$f":"+'D COMP Budget'!E115","v":0},null,null,null,null,{"$f":"C115+D115+I115","v":0}]
[null,{"$f":"IF(ISBLANK('F COMP Mise à jour Année 2'!B116),\"\",'F COMP Mise à jour Année 2'!B116)","v":""},{"$f":"+'E COMP Mise à jour Année 1'!F116","v":0},{"$f":"+'F COMP Mise à jour Année 2'!H116","v":0},{"$f":"+'D COMP Budget'!E116","v":0},null,null,null,null,0]
[null,{"$f":"IF(ISBLANK('F COMP Mise à jour Année 2'!B117),\"\",'F COMP Mise à jour Année 2'!B117)","v":""},{"$f":"+'E COMP Mise à jour Année 1'!F117","v":0},{"$f":"+'F COMP Mise à jour Année 2'!H117","v":0},{"$f":"+'D COMP Budget'!E117","v":0},null,null,null,null,0]
[null,{"$f":"IF(ISBLANK('F COMP Mise à jour Année 2'!B118),\"\",'F COMP Mise à jour Année 2'!B118)","v":""},{"$f":"+'E COMP Mise à jour Année 1'!F118","v":0},{"$f":"+'F COMP Mise à jour Année 2'!H118","v":0},{"$f":"+'D COMP Budget'!E118","v":0},null,null,null,null,0]
[null,{"$f":"IF(ISBLANK('F COMP Mise à jour Année 2'!B119),\"\",'F COMP Mise à jour Année 2'!B119)","v":""},{"$f":"+'E COMP Mise à jour Année 1'!F119","v":0},{"$f":"+'F COMP Mise à jour Année 2'!H119","v":0},{"$f":"+'D COMP Budget'!E119","v":0},null,null,null,null,0]
[null,"Coûts administratifs du projet comprennent : Comptabilité, assurance, tenue de livres, rapports, permis, etc."]
[null,{"$f":"IF(ISBLANK('F COMP Mise à jour Année 2'!B121),\"\",'F COMP Mise à jour Année 2'!B121)","v":""},{"$f":"+'E COMP Mise à jour Année 1'!F121","v":0},{"$f":"+'F COMP Mise à jour Année 2'!H121","v":0},{"$f":"+'D COMP Budget'!E121","v":0},null,null,null,null,{"$f":"C121+D121+I121","v":0}]
[null,{"$f":"IF(ISBLANK('F COMP Mise à jour Année 2'!B122),\"\",'F COMP Mise à jour Année 2'!B122)","v":""},{"$f":"+'E COMP Mise à jour Année 1'!F122","v":0},{"$f":"+'F COMP Mise à jour Année 2'!H122","v":0},{"$f":"+'D COMP Budget'!E122","v":0},null,null,null,null,0]
[null,{"$f":"IF(ISBLANK('F COMP Mise à jour Année 2'!B123),\"\",'F COMP Mise à jour Année 2'!B123)","v":""},{"$f":"+'E COMP Mise à jour Année 1'!F123","v":0},{"$f":"+'F COMP Mise à jour Année 2'!H123","v":0},{"$f":"+'D COMP Budget'!E123","v":0},null,null,null,null,0]
[null,{"$f":"IF(ISBLANK('F COMP Mise à jour Année 2'!B124),\"\",'F COMP Mise à jour Année 2'!B124)","v":""},{"$f":"+'E COMP Mise à jour Année 1'!F124","v":0},{"$f":"+'F COMP Mise à jour Année 2'!H124","v":0},{"$f":"+'D COMP Budget'!E124","v":0},null,null,null,null,0]
[null,{"$f":"IF(ISBLANK('F COMP Mise à jour Année 2'!B125),\"\",'F COMP Mise à jour Année 2'!B125)","v":""},{"$f":"+'E COMP Mise à jour Année 1'!F125","v":0},{"$f":"+'F COMP Mise à jour Année 2'!H125","v":0},{"$f":"+'D COMP Budget'!E125","v":0},null,null,null,null,0]
[null,"Sous-total – Gestion du projet",{"$f":"+'E COMP Mise à jour Année 1'!F126","v":0},{"$f":"+'F COMP Mise à jour Année 2'!H126","v":0},{"$f":"+'D COMP Budget'!E126","v":0},{"$f":"+SUM(F121:F125,F115:F119)","v":0},{"$f":"+SUM(G121:G125,G115:G119)","v":0},{"$f":"+SUM(H121:H125,H115:H119)","v":0},{"$f":"+SUM(I121:I125,I115:I119)","v":0},{"$f":"C126+D126+I126","v":0}]
[]
[null,"Total des coûts du projet",{"$f":"+'E COMP Mise à jour Année 1'!F128","v":0},{"$f":"+'F COMP Mise à jour Année 2'!H128","v":0},{"$f":"+'D COMP Budget'!E128","v":0},{"$f":"+F23+F95+F111+F126+F38","v":0},{"$f":"+G23+G95+G111+G126+G38","v":0},{"$f":"+H23+H95+H111+H126+H38","v":0},{"$f":"+I23+I95+I111+I126+I38","v":0},{"$f":"C128+D128+I128","v":0}]
[]
[null,"Revenus"]
[null,null,"Montant réel,\n1er exercice","Montant réel,\n2e exercice","Budget, 3e exercice","1ère mise à jour, 3e exercice\n(le cas échéant)","2e mise à jour, 3e exercice\n(le cas échéant)","3e mise à jour, 3e exercice\n(le cas échéant)","Montant réel,\n3e exercice","Montant réel, 1er, 2e et 3e exercices","Notes au budget\n(requis)"]
[null,"Revenus gagnés"]
[null,"Frais d’inscription, ventes de billets"]
[null,{"$f":"IF(ISBLANK('F COMP Mise à jour Année 2'!B134),\"\",'F COMP Mise à jour Année 2'!B134)","v":""},{"$f":"+'E COMP Mise à jour Année 1'!F134","v":0},{"$f":"+'F COMP Mise à jour Année 2'!H134","v":0},{"$f":"+'D COMP Budget'!E134","v":0},null,null,null,null,{"$f":"C134+D134+I134","v":0}]
[null,{"$f":"IF(ISBLANK('F COMP Mise à jour Année 2'!B135),\"\",'F COMP Mise à jour Année 2'!B135)","v":""},{"$f":"+'E COMP Mise à jour Année 1'!F135","v":0},{"$f":"+'F COMP Mise à jour Année 2'!H135","v":0},{"$f":"+'D COMP Budget'!E135","v":0},null,null,null,null,0]
[null,{"$f":"IF(ISBLANK('F COMP Mise à jour Année 2'!B136),\"\",'F COMP Mise à jour Année 2'!B136)","v":""},{"$f":"+'E COMP Mise à jour Année 1'!F136","v":0},{"$f":"+'F COMP Mise à jour Année 2'!H136","v":0},{"$f":"+'D COMP Budget'!E136","v":0},null,null,null,null,0]
[null,{"$f":"IF(ISBLANK('F COMP Mise à jour Année 2'!B137),\"\",'F COMP Mise à jour Année 2'!B137)","v":""},{"$f":"+'E COMP Mise à jour Année 1'!F137","v":0},{"$f":"+'F COMP Mise à jour Année 2'!H137","v":0},{"$f":"+'D COMP Budget'!E137","v":0},null,null,null,null,0]
[null,{"$f":"IF(ISBLANK('F COMP Mise à jour Année 2'!B138),\"\",'F COMP Mise à jour Année 2'!B138)","v":""},{"$f":"+'E COMP Mise à jour Année 1'!F138","v":0},{"$f":"+'F COMP Mise à jour Année 2'!H138","v":0},{"$f":"+'D COMP Budget'!E138","v":0},null,null,null,null,0]
[null,"Abonnements, droits d’adhésion"]
[null,{"$f":"IF(ISBLANK('F COMP Mise à jour Année 2'!B140),\"\",'F COMP Mise à jour Année 2'!B140)","v":""},{"$f":"+'E COMP Mise à jour Année 1'!F140","v":0},{"$f":"+'F COMP Mise à jour Année 2'!H140","v":0},{"$f":"+'D COMP Budget'!E140","v":0},null,null,null,null,{"$f":"C140+D140+I140","v":0}]
[null,{"$f":"IF(ISBLANK('F COMP Mise à jour Année 2'!B141),\"\",'F COMP Mise à jour Année 2'!B141)","v":""},{"$f":"+'E COMP Mise à jour Année 1'!F141","v":0},{"$f":"+'F COMP Mise à jour Année 2'!H141","v":0},{"$f":"+'D COMP Budget'!E141","v":0},null,null,null,null,0]
[null,{"$f":"IF(ISBLANK('F COMP Mise à jour Année 2'!B142),\"\",'F COMP Mise à jour Année 2'!B142)","v":""},{"$f":"+'E COMP Mise à jour Année 1'!F142","v":0},{"$f":"+'F COMP Mise à jour Année 2'!H142","v":0},{"$f":"+'D COMP Budget'!E142","v":0},null,null,null,null,0]
[null,{"$f":"IF(ISBLANK('F COMP Mise à jour Année 2'!B143),\"\",'F COMP Mise à jour Année 2'!B143)","v":""},{"$f":"+'E COMP Mise à jour Année 1'!F143","v":0},{"$f":"+'F COMP Mise à jour Année 2'!H143","v":0},{"$f":"+'D COMP Budget'!E143","v":0},null,null,null,null,0]
[null,{"$f":"IF(ISBLANK('F COMP Mise à jour Année 2'!B144),\"\",'F COMP Mise à jour Année 2'!B144)","v":""},{"$f":"+'E COMP Mise à jour Année 1'!F144","v":0},{"$f":"+'F COMP Mise à jour Année 2'!H144","v":0},{"$f":"+'D COMP Budget'!E144","v":0},null,null,null,null,0]
[null,"Frais de service"]
[null,{"$f":"IF(ISBLANK('F COMP Mise à jour Année 2'!B146),\"\",'F COMP Mise à jour Année 2'!B146)","v":""},{"$f":"+'E COMP Mise à jour Année 1'!F146","v":0},{"$f":"+'F COMP Mise à jour Année 2'!H146","v":0},{"$f":"+'D COMP Budget'!E146","v":0},null,null,null,null,{"$f":"C146+D146+I146","v":0}]
[null,{"$f":"IF(ISBLANK('F COMP Mise à jour Année 2'!B147),\"\",'F COMP Mise à jour Année 2'!B147)","v":""},{"$f":"+'E COMP Mise à jour Année 1'!F147","v":0},{"$f":"+'F COMP Mise à jour Année 2'!H147","v":0},{"$f":"+'D COMP Budget'!E147","v":0},null,null,null,null,0]
[null,{"$f":"IF(ISBLANK('F COMP Mise à jour Année 2'!B148),\"\",'F COMP Mise à jour Année 2'!B148)","v":""},{"$f":"+'E COMP Mise à jour Année 1'!F148","v":0},{"$f":"+'F COMP Mise à jour Année 2'!H148","v":0},{"$f":"+'D COMP Budget'!E148","v":0},null,null,null,null,0]
[null,{"$f":"IF(ISBLANK('F COMP Mise à jour Année 2'!B149),\"\",'F COMP Mise à jour Année 2'!B149)","v":""},{"$f":"+'E COMP Mise à jour Année 1'!F149","v":0},{"$f":"+'F COMP Mise à jour Année 2'!H149","v":0},{"$f":"+'D COMP Budget'!E149","v":0},null,null,null,null,0]
[null,{"$f":"IF(ISBLANK('F COMP Mise à jour Année 2'!B150),\"\",'F COMP Mise à jour Année 2'!B150)","v":""},{"$f":"+'E COMP Mise à jour Année 1'!F150","v":0},{"$f":"+'F COMP Mise à jour Année 2'!H150","v":0},{"$f":"+'D COMP Budget'!E150","v":0},null,null,null,null,0]
[null,"Vente de produits"]
[null,{"$f":"IF(ISBLANK('F COMP Mise à jour Année 2'!B152),\"\",'F COMP Mise à jour Année 2'!B152)","v":""},{"$f":"+'E COMP Mise à jour Année 1'!F152","v":0},{"$f":"+'F COMP Mise à jour Année 2'!H152","v":0},{"$f":"+'D COMP Budget'!E152","v":0},null,null,null,null,{"$f":"C152+D152+I152","v":0}]
[null,{"$f":"IF(ISBLANK('F COMP Mise à jour Année 2'!B153),\"\",'F COMP Mise à jour Année 2'!B153)","v":""},{"$f":"+'E COMP Mise à jour Année 1'!F153","v":0},{"$f":"+'F COMP Mise à jour Année 2'!H153","v":0},{"$f":"+'D COMP Budget'!E153","v":0},null,null,null,null,0]
[null,{"$f":"IF(ISBLANK('F COMP Mise à jour Année 2'!B154),\"\",'F COMP Mise à jour Année 2'!B154)","v":""},{"$f":"+'E COMP Mise à jour Année 1'!F154","v":0},{"$f":"+'F COMP Mise à jour Année 2'!H154","v":0},{"$f":"+'D COMP Budget'!E154","v":0},null,null,null,null,0]
[null,{"$f":"IF(ISBLANK('F COMP Mise à jour Année 2'!B155),\"\",'F COMP Mise à jour Année 2'!B155)","v":""},{"$f":"+'E COMP Mise à jour Année 1'!F155","v":0},{"$f":"+'F COMP Mise à jour Année 2'!H155","v":0},{"$f":"+'D COMP Budget'!E155","v":0},null,null,null,null,0]
[null,{"$f":"IF(ISBLANK('F COMP Mise à jour Année 2'!B156),\"\",'F COMP Mise à jour Année 2'!B156)","v":""},{"$f":"+'E COMP Mise à jour Année 1'!F156","v":0},{"$f":"+'F COMP Mise à jour Année 2'!H156","v":0},{"$f":"+'D COMP Budget'!E156","v":0},null,null,null,null,0]
[null,"Autres revenus gagnés"]
[null,{"$f":"IF(ISBLANK('F COMP Mise à jour Année 2'!B158),\"\",'F COMP Mise à jour Année 2'!B158)","v":""},{"$f":"+'E COMP Mise à jour Année 1'!F158","v":0},{"$f":"+'F COMP Mise à jour Année 2'!H158","v":0},{"$f":"+'D COMP Budget'!E158","v":0},null,null,null,null,{"$f":"C158+D158+I158","v":0}]
[null,{"$f":"IF(ISBLANK('F COMP Mise à jour Année 2'!B159),\"\",'F COMP Mise à jour Année 2'!B159)","v":""},{"$f":"+'E COMP Mise à jour Année 1'!F159","v":0},{"$f":"+'F COMP Mise à jour Année 2'!H159","v":0},{"$f":"+'D COMP Budget'!E159","v":0},null,null,null,null,0]
[null,{"$f":"IF(ISBLANK('F COMP Mise à jour Année 2'!B160),\"\",'F COMP Mise à jour Année 2'!B160)","v":""},{"$f":"+'E COMP Mise à jour Année 1'!F160","v":0},{"$f":"+'F COMP Mise à jour Année 2'!H160","v":0},{"$f":"+'D COMP Budget'!E160","v":0},null,null,null,null,0]
[null,{"$f":"IF(ISBLANK('F COMP Mise à jour Année 2'!B161),\"\",'F COMP Mise à jour Année 2'!B161)","v":""},{"$f":"+'E COMP Mise à jour Année 1'!F161","v":0},{"$f":"+'F COMP Mise à jour Année 2'!H161","v":0},{"$f":"+'D COMP Budget'!E161","v":0},null,null,null,null,0]
[null,{"$f":"IF(ISBLANK('F COMP Mise à jour Année 2'!B162),\"\",'F COMP Mise à jour Année 2'!B162)","v":""},{"$f":"+'E COMP Mise à jour Année 1'!F162","v":0},{"$f":"+'F COMP Mise à jour Année 2'!H162","v":0},{"$f":"+'D COMP Budget'!E162","v":0},null,null,null,null,0]
[null,"Sous-total – Revenus gagnés",{"$f":"+'E COMP Mise à jour Année 1'!F163","v":0},{"$f":"+'F COMP Mise à jour Année 2'!H163","v":0},{"$f":"+'D COMP Budget'!E163","v":0},{"$f":"+SUM(F158:F162,F134:F138,F146:F150,F140:F144,F152:F156)","v":0},{"$f":"+SUM(G158:G162,G134:G138,G146:G150,G140:G144,G152:G156)","v":0},{"$f":"+SUM(H158:H162,H134:H138,H146:H150,H140:H144,H152:H156)","v":0},{"$f":"+SUM(I158:I162,I134:I138,I146:I150,I140:I144,I152:I156)","v":0},{"$f":"C163+D163+I163","v":0}]
[]
[null,"Revenus du secteur privé"]
[null,"Commandites",{"$f":"+'E COMP Mise à jour Année 1'!F166","v":0},{"$f":"+'F COMP Mise à jour Année 2'!H166","v":0},{"$f":"+'D COMP Budget'!E166","v":0},null,null,null,null,{"$f":"C166+D166+I166","v":0}]
[null,"Dons",{"$f":"+'E COMP Mise à jour Année 1'!F167","v":0},{"$f":"+'F COMP Mise à jour Année 2'!H167","v":0},{"$f":"+'D COMP Budget'!E167","v":0},null,null,null,null,0]
[null,"Fondations",{"$f":"+'E COMP Mise à jour Année 1'!F168","v":0},{"$f":"+'F COMP Mise à jour Année 2'!H168","v":0},{"$f":"+'D COMP Budget'!E168","v":0},null,null,null,null,0]
[null,"Collectes de fonds",{"$f":"+'E COMP Mise à jour Année 1'!F169","v":0},{"$f":"+'F COMP Mise à jour Année 2'!H169","v":0},{"$f":"+'D COMP Budget'!E169","v":0},null,null,null,null,0]
[null,"Autre revenus du secteur privé"]
[null,{"$f":"IF(ISBLANK('F COMP Mise à jour Année 2'!B171),\"\",'F COMP Mise à jour Année 2'!B171)","v":""},{"$f":"+'E COMP Mise à jour Année 1'!F171","v":0},{"$f":"+'F COMP Mise à jour Année 2'!H171","v":0},{"$f":"+'D COMP Budget'!E171","v":0},null,null,null,null,{"$f":"C171+D171+I171","v":0}]
[null,{"$f":"IF(ISBLANK('F COMP Mise à jour Année 2'!B172),\"\",'F COMP Mise à jour Année 2'!B172)","v":""},{"$f":"+'E COMP Mise à jour Année 1'!F172","v":0},{"$f":"+'F COMP Mise à jour Année 2'!H172","v":0},{"$f":"+'D COMP Budget'!E172","v":0},null,null,null,null,0]
[null,{"$f":"IF(ISBLANK('F COMP Mise à jour Année 2'!B173),\"\",'F COMP Mise à jour Année 2'!B173)","v":""},{"$f":"+'E COMP Mise à jour Année 1'!F173","v":0},{"$f":"+'F COMP Mise à jour Année 2'!H173","v":0},{"$f":"+'D COMP Budget'!E173","v":0},null,null,null,null,0]
[null,{"$f":"IF(ISBLANK('F COMP Mise à jour Année 2'!B174),\"\",'F COMP Mise à jour Année 2'!B174)","v":""},{"$f":"+'E COMP Mise à jour Année 1'!F174","v":0},{"$f":"+'F COMP Mise à jour Année 2'!H174","v":0},{"$f":"+'D COMP Budget'!E174","v":0},null,null,null,null,0]
[null,{"$f":"IF(ISBLANK('F COMP Mise à jour Année 2'!B175),\"\",'F COMP Mise à jour Année 2'!B175)","v":""},{"$f":"+'E COMP Mise à jour Année 1'!F175","v":0},{"$f":"+'F COMP Mise à jour Année 2'!H175","v":0},{"$f":"+'D COMP Budget'!E175","v":0},null,null,null,null,0]
[null,"Sous-total – Revenus du secteur privé",{"$f":"+'E COMP Mise à jour Année 1'!F176","v":0},{"$f":"+'F COMP Mise à jour Année 2'!H176","v":0},{"$f":"+'D COMP Budget'!E176","v":0},{"$f":"+SUM(F171:F175,F166:F169)","v":0},{"$f":"+SUM(G171:G175,G166:G169)","v":0},{"$f":"+SUM(H171:H175,H166:H169)","v":0},{"$f":"+SUM(I171:I175,I166:I169)","v":0},{"$f":"C176+D176+I176","v":0}]
[]
[null,"Revenus du secteur public"]
[null,"Montant de la subvention demandée (montant accordé dans les colonnes « mise à jour » et « réel »)",{"$f":"+'E COMP Mise à jour Année 1'!F179","v":0},{"$f":"+'F COMP Mise à jour Année 2'!H179","v":0},{"$f":"+'D COMP Budget'!E179","v":0},null,null,null,null,{"$f":"C179+D179+I179","v":0}]
[null,"Soutien à l’accès demandé (montant accordé dans les colonnes « mise à jour » et « réel »)",{"$f":"+'E COMP Mise à jour Année 1'!F180","v":0},{"$f":"+'F COMP Mise à jour Année 2'!H180","v":0},null,null,null,null,null,{"$f":"C180+D180+I180","v":0}]
[null,"Autres subventions du Conseil des arts"]
[null,{"$f":"IF(ISBLANK('F COMP Mise à jour Année 2'!B182),\"\",'F COMP Mise à jour Année 2'!B182)","v":""},{"$f":"+'E COMP Mise à jour Année 1'!F182","v":0},{"$f":"+'F COMP Mise à jour Année 2'!H182","v":0},{"$f":"+'D COMP Budget'!E182","v":0},null,null,null,null,{"$f":"C182+D182+I182","v":0}]
[null,{"$f":"IF(ISBLANK('F COMP Mise à jour Année 2'!B183),\"\",'F COMP Mise à jour Année 2'!B183)","v":""},{"$f":"+'E COMP Mise à jour Année 1'!F183","v":0},{"$f":"+'F COMP Mise à jour Année 2'!H183","v":0},{"$f":"+'D COMP Budget'!E183","v":0},null,null,null,null,0]
[null,{"$f":"IF(ISBLANK('F COMP Mise à jour Année 2'!B184),\"\",'F COMP Mise à jour Année 2'!B184)","v":""},{"$f":"+'E COMP Mise à jour Année 1'!F184","v":0},{"$f":"+'F COMP Mise à jour Année 2'!H184","v":0},{"$f":"+'D COMP Budget'!E184","v":0},null,null,null,null,0]
[null,{"$f":"IF(ISBLANK('F COMP Mise à jour Année 2'!B185),\"\",'F COMP Mise à jour Année 2'!B185)","v":""},{"$f":"+'E COMP Mise à jour Année 1'!F185","v":0},{"$f":"+'F COMP Mise à jour Année 2'!H185","v":0},{"$f":"+'D COMP Budget'!E185","v":0},null,null,null,null,0]
[null,{"$f":"IF(ISBLANK('F COMP Mise à jour Année 2'!B186),\"\",'F COMP Mise à jour Année 2'!B186)","v":""},{"$f":"+'E COMP Mise à jour Année 1'!F186","v":0},{"$f":"+'F COMP Mise à jour Année 2'!H186","v":0},{"$f":"+'D COMP Budget'!E186","v":0},null,null,null,null,0]
[null,"Autre subvention fédérale"]
[null,{"$f":"IF(ISBLANK('F COMP Mise à jour Année 2'!B188),\"\",'F COMP Mise à jour Année 2'!B188)","v":""},{"$f":"+'E COMP Mise à jour Année 1'!F188","v":0},{"$f":"+'F COMP Mise à jour Année 2'!H188","v":0},{"$f":"+'D COMP Budget'!E188","v":0},null,null,null,null,{"$f":"C188+D188+I188","v":0}]
[null,{"$f":"IF(ISBLANK('F COMP Mise à jour Année 2'!B189),\"\",'F COMP Mise à jour Année 2'!B189)","v":""},{"$f":"+'E COMP Mise à jour Année 1'!F189","v":0},{"$f":"+'F COMP Mise à jour Année 2'!H189","v":0},{"$f":"+'D COMP Budget'!E189","v":0},null,null,null,null,0]
[null,{"$f":"IF(ISBLANK('F COMP Mise à jour Année 2'!B190),\"\",'F COMP Mise à jour Année 2'!B190)","v":""},{"$f":"+'E COMP Mise à jour Année 1'!F190","v":0},{"$f":"+'F COMP Mise à jour Année 2'!H190","v":0},{"$f":"+'D COMP Budget'!E190","v":0},null,null,null,null,0]
[null,{"$f":"IF(ISBLANK('F COMP Mise à jour Année 2'!B191),\"\",'F COMP Mise à jour Année 2'!B191)","v":""},{"$f":"+'E COMP Mise à jour Année 1'!F191","v":0},{"$f":"+'F COMP Mise à jour Année 2'!H191","v":0},{"$f":"+'D COMP Budget'!E191","v":0},null,null,null,null,0]
[null,{"$f":"IF(ISBLANK('F COMP Mise à jour Année 2'!B192),\"\",'F COMP Mise à jour Année 2'!B192)","v":""},{"$f":"+'E COMP Mise à jour Année 1'!F192","v":0},{"$f":"+'F COMP Mise à jour Année 2'!H192","v":0},{"$f":"+'D COMP Budget'!E192","v":0},null,null,null,null,0]
[null,"Subvention provinciale ou territoriale"]
[null,{"$f":"IF(ISBLANK('F COMP Mise à jour Année 2'!B194),\"\",'F COMP Mise à jour Année 2'!B194)","v":""},{"$f":"+'E COMP Mise à jour Année 1'!F194","v":0},{"$f":"+'F COMP Mise à jour Année 2'!H194","v":0},{"$f":"+'D COMP Budget'!E194","v":0},null,null,null,null,{"$f":"C194+D194+I194","v":0}]
[null,{"$f":"IF(ISBLANK('F COMP Mise à jour Année 2'!B195),\"\",'F COMP Mise à jour Année 2'!B195)","v":""},{"$f":"+'E COMP Mise à jour Année 1'!F195","v":0},{"$f":"+'F COMP Mise à jour Année 2'!H195","v":0},{"$f":"+'D COMP Budget'!E195","v":0},null,null,null,null,0]
[null,{"$f":"IF(ISBLANK('F COMP Mise à jour Année 2'!B196),\"\",'F COMP Mise à jour Année 2'!B196)","v":""},{"$f":"+'E COMP Mise à jour Année 1'!F196","v":0},{"$f":"+'F COMP Mise à jour Année 2'!H196","v":0},{"$f":"+'D COMP Budget'!E196","v":0},null,null,null,null,0]
[null,{"$f":"IF(ISBLANK('F COMP Mise à jour Année 2'!B197),\"\",'F COMP Mise à jour Année 2'!B197)","v":""},{"$f":"+'E COMP Mise à jour Année 1'!F197","v":0},{"$f":"+'F COMP Mise à jour Année 2'!H197","v":0},{"$f":"+'D COMP Budget'!E197","v":0},null,null,null,null,0]
[null,{"$f":"IF(ISBLANK('F COMP Mise à jour Année 2'!B198),\"\",'F COMP Mise à jour Année 2'!B198)","v":""},{"$f":"+'E COMP Mise à jour Année 1'!F198","v":0},{"$f":"+'F COMP Mise à jour Année 2'!H198","v":0},{"$f":"+'D COMP Budget'!E198","v":0},null,null,null,null,0]
[null,"Subvention municipale ou régionale"]
[null,{"$f":"IF(ISBLANK('F COMP Mise à jour Année 2'!B200),\"\",'F COMP Mise à jour Année 2'!B200)","v":""},{"$f":"+'E COMP Mise à jour Année 1'!F200","v":0},{"$f":"+'F COMP Mise à jour Année 2'!H200","v":0},{"$f":"+'D COMP Budget'!E200","v":0},null,null,null,null,{"$f":"C200+D200+I200","v":0}]
[null,{"$f":"IF(ISBLANK('F COMP Mise à jour Année 2'!B201),\"\",'F COMP Mise à jour Année 2'!B201)","v":""},{"$f":"+'E COMP Mise à jour Année 1'!F201","v":0},{"$f":"+'F COMP Mise à jour Année 2'!H201","v":0},{"$f":"+'D COMP Budget'!E201","v":0},null,null,null,null,0]
[null,{"$f":"IF(ISBLANK('F COMP Mise à jour Année 2'!B202),\"\",'F COMP Mise à jour Année 2'!B202)","v":""},{"$f":"+'E COMP Mise à jour Année 1'!F202","v":0},{"$f":"+'F COMP Mise à jour Année 2'!H202","v":0},{"$f":"+'D COMP Budget'!E202","v":0},null,null,null,null,0]
[null,{"$f":"IF(ISBLANK('F COMP Mise à jour Année 2'!B203),\"\",'F COMP Mise à jour Année 2'!B203)","v":""},{"$f":"+'E COMP Mise à jour Année 1'!F203","v":0},{"$f":"+'F COMP Mise à jour Année 2'!H203","v":0},{"$f":"+'D COMP Budget'!E203","v":0},null,null,null,null,0]
[null,{"$f":"IF(ISBLANK('F COMP Mise à jour Année 2'!B204),\"\",'F COMP Mise à jour Année 2'!B204)","v":""},{"$f":"+'E COMP Mise à jour Année 1'!F204","v":0},{"$f":"+'F COMP Mise à jour Année 2'!H204","v":0},{"$f":"+'D COMP Budget'!E204","v":0},null,null,null,null,0]
[null,"Autres revenus du secteur public"]
[null,{"$f":"IF(ISBLANK('F COMP Mise à jour Année 2'!B206),\"\",'F COMP Mise à jour Année 2'!B206)","v":""},{"$f":"+'E COMP Mise à jour Année 1'!F206","v":0},{"$f":"+'F COMP Mise à jour Année 2'!H206","v":0},{"$f":"+'D COMP Budget'!E206","v":0},null,null,null,null,{"$f":"C206+D206+I206","v":0}]
[null,{"$f":"IF(ISBLANK('F COMP Mise à jour Année 2'!B207),\"\",'F COMP Mise à jour Année 2'!B207)","v":""},{"$f":"+'E COMP Mise à jour Année 1'!F207","v":0},{"$f":"+'F COMP Mise à jour Année 2'!H207","v":0},{"$f":"+'D COMP Budget'!E207","v":0},null,null,null,null,0]
[null,{"$f":"IF(ISBLANK('F COMP Mise à jour Année 2'!B208),\"\",'F COMP Mise à jour Année 2'!B208)","v":""},{"$f":"+'E COMP Mise à jour Année 1'!F208","v":0},{"$f":"+'F COMP Mise à jour Année 2'!H208","v":0},{"$f":"+'D COMP Budget'!E208","v":0},null,null,null,null,0]
[null,{"$f":"IF(ISBLANK('F COMP Mise à jour Année 2'!B209),\"\",'F COMP Mise à jour Année 2'!B209)","v":""},{"$f":"+'E COMP Mise à jour Année 1'!F209","v":0},{"$f":"+'F COMP Mise à jour Année 2'!H209","v":0},{"$f":"+'D COMP Budget'!E209","v":0},null,null,null,null,0]
[null,{"$f":"IF(ISBLANK('F COMP Mise à jour Année 2'!B210),\"\",'F COMP Mise à jour Année 2'!B210)","v":""},{"$f":"+'E COMP Mise à jour Année 1'!F210","v":0},{"$f":"+'F COMP Mise à jour Année 2'!H210","v":0},{"$f":"+'D COMP Budget'!E210","v":0},null,null,null,null,0]
[null,"Sous-total – Revenus du secteur public",{"$f":"+'E COMP Mise à jour Année 1'!F211","v":0},{"$f":"+'F COMP Mise à jour Année 2'!H211","v":0},{"$f":"+'D COMP Budget'!E211","v":0},{"$f":"+SUM(F188:F192,F194:F198,F200:F204,F206:F210,F179:F180,F182:F186)","v":0},{"$f":"+SUM(G188:G192,G194:G198,G200:G204,G206:G210,G179:G180,G182:G186)","v":0},{"$f":"+SUM(H188:H192,H194:H198,H200:H204,H206:H210,H179:H180,H182:H186)","v":0},{"$f":"+SUM(I188:I192,I194:I198,I200:I204,I206:I210,I179:I180,I182:I186)","v":0},{"$f":"C211+D211+I211","v":0}]
[]
[null,"Services en nature",null,null,null,null,null,null,null,null,"Indiquez la ligne de coûts du projet à laquelle ce montant s’applique"]
[null,{"$f":"IF(ISBLANK('F COMP Mise à jour Année 2'!B214),\"\",'F COMP Mise à jour Année 2'!B214)","v":""},{"$f":"+'E COMP Mise à jour Année 1'!F214","v":0},{"$f":"+'F COMP Mise à jour Année 2'!H214","v":0},{"$f":"+'D COMP Budget'!E214","v":0},null,null,null,null,{"$f":"C214+D214+I214","v":0}]
[null,{"$f":"IF(ISBLANK('F COMP Mise à jour Année 2'!B215),\"\",'F COMP Mise à jour Année 2'!B215)","v":""},{"$f":"+'E COMP Mise à jour Année 1'!F215","v":0},{"$f":"+'F COMP Mise à jour Année 2'!H215","v":0},{"$f":"+'D COMP Budget'!E215","v":0},null,null,null,null,0]
[null,{"$f":"IF(ISBLANK('F COMP Mise à jour Année 2'!B216),\"\",'F COMP Mise à jour Année 2'!B216)","v":""},{"$f":"+'E COMP Mise à jour Année 1'!F216","v":0},{"$f":"+'F COMP Mise à jour Année 2'!H216","v":0},{"$f":"+'D COMP Budget'!E216","v":0},null,null,null,null,0]
[null,{"$f":"IF(ISBLANK('F COMP Mise à jour Année 2'!B217),\"\",'F COMP Mise à jour Année 2'!B217)","v":""},{"$f":"+'E COMP Mise à jour Année 1'!F217","v":0},{"$f":"+'F COMP Mise à jour Année 2'!H217","v":0},{"$f":"+'D COMP Budget'!E217","v":0},null,null,null,null,0]
[null,{"$f":"IF(ISBLANK('F COMP Mise à jour Année 2'!B218),\"\",'F COMP Mise à jour Année 2'!B218)","v":""},{"$f":"+'E COMP Mise à jour Année 1'!F218","v":0},{"$f":"+'F COMP Mise à jour Année 2'!H218","v":0},{"$f":"+'D COMP Budget'!E218","v":0},null,null,null,null,0]
[null,"Sous-total – Services en nature",{"$f":"+'E COMP Mise à jour Année 1'!F219","v":0},{"$f":"+'F COMP Mise à jour Année 2'!H219","v":0},{"$f":"+'D COMP Budget'!E219","v":0},{"$f":"+SUM(F214:F218)","v":0},{"$f":"+SUM(G214:G218)","v":0},{"$f":"+SUM(H214:H218)","v":0},{"$f":"+SUM(I214:I218)","v":0},{"$f":"C219+D219+I219","v":0}]
[]
[null,"Autres revenus",null,null,null,null,null,null,null,null,"Indiquez la ligne de coûts du projet à laquelle ce montant s’applique"]
[null,{"$f":"IF(ISBLANK('F COMP Mise à jour Année 2'!B222),\"\",'F COMP Mise à jour Année 2'!B222)","v":"Contribution du candidat"},{"$f":"+'E COMP Mise à jour Année 1'!F222","v":0},{"$f":"+'F COMP Mise à jour Année 2'!H222","v":0},{"$f":"+'D COMP Budget'!E222","v":0},null,null,null,null,{"$f":"C222+D222+I222","v":0}]
[null,{"$f":"IF(ISBLANK('F COMP Mise à jour Année 2'!B223),\"\",'F COMP Mise à jour Année 2'!B223)","v":""},{"$f":"+'E COMP Mise à jour Année 1'!F223","v":0},{"$f":"+'F COMP Mise à jour Année 2'!H223","v":0},{"$f":"+'D COMP Budget'!E223","v":0},null,null,null,null,0]
[null,{"$f":"IF(ISBLANK('F COMP Mise à jour Année 2'!B224),\"\",'F COMP Mise à jour Année 2'!B224)","v":""},{"$f":"+'E COMP Mise à jour Année 1'!F224","v":0},{"$f":"+'F COMP Mise à jour Année 2'!H224","v":0},{"$f":"+'D COMP Budget'!E224","v":0},null,null,null,null,0]
[null,{"$f":"IF(ISBLANK('F COMP Mise à jour Année 2'!B225),\"\",'F COMP Mise à jour Année 2'!B225)","v":""},{"$f":"+'E COMP Mise à jour Année 1'!F225","v":0},{"$f":"+'F COMP Mise à jour Année 2'!H225","v":0},{"$f":"+'D COMP Budget'!E225","v":0},null,null,null,null,0]
[null,{"$f":"IF(ISBLANK('F COMP Mise à jour Année 2'!B226),\"\",'F COMP Mise à jour Année 2'!B226)","v":""},{"$f":"+'E COMP Mise à jour Année 1'!F226","v":0},{"$f":"+'F COMP Mise à jour Année 2'!H226","v":0},{"$f":"+'D COMP Budget'!E226","v":0},null,null,null,null,0]
[null,"Paiements différés"]
[null,{"$f":"IF(ISBLANK('F COMP Mise à jour Année 2'!B228),\"\",'F COMP Mise à jour Année 2'!B228)","v":""},{"$f":"+'E COMP Mise à jour Année 1'!F228","v":0},{"$f":"+'F COMP Mise à jour Année 2'!H228","v":0},{"$f":"+'D COMP Budget'!E228","v":0},null,null,null,null,{"$f":"C228+D228+I228","v":0}]
[null,{"$f":"IF(ISBLANK('F COMP Mise à jour Année 2'!B229),\"\",'F COMP Mise à jour Année 2'!B229)","v":""},{"$f":"+'E COMP Mise à jour Année 1'!F229","v":0},{"$f":"+'F COMP Mise à jour Année 2'!H229","v":0},{"$f":"+'D COMP Budget'!E229","v":0},null,null,null,null,0]
[null,{"$f":"IF(ISBLANK('F COMP Mise à jour Année 2'!B230),\"\",'F COMP Mise à jour Année 2'!B230)","v":""},{"$f":"+'E COMP Mise à jour Année 1'!F230","v":0},{"$f":"+'F COMP Mise à jour Année 2'!H230","v":0},{"$f":"+'D COMP Budget'!E230","v":0},null,null,null,null,0]
[null,"Sous-total – Autres revenus",{"$f":"+'E COMP Mise à jour Année 1'!F231","v":0},{"$f":"+'F COMP Mise à jour Année 2'!H231","v":0},{"$f":"+'D COMP Budget'!E231","v":0},{"$f":"+SUM(F228:F230,F222:F226)","v":0},{"$f":"+SUM(G228:G230,G222:G226)","v":0},{"$f":"+SUM(H228:H230,H222:H226)","v":0},{"$f":"+SUM(I228:I230,I222:I226)","v":0},{"$f":"C231+D231+I231","v":0}]
[]
[null,"Total des revenus du projet\n(doit être égal au Total des coûts du projet)",{"$f":"C163+C176+C211+C231+C219","v":0},0,0,0,0,0,0,{"$f":"C233+D233+I233","v":0}]
[]
[null,"Total des coûts du projet\n(doit être égal au Total des revenus du projet)",{"$f":"C128","v":0},0,0,0,0,0,0,{"$f":"C235+D235+I235","v":0}]
[]
[null,"Excédent (déficit)\nTotal des revenus du projet doit être égal au Total des coûts du projet dans les montantes réelles finales (colonne J)",{"$f":"C233-C235","v":0},0,0,0,0,0,0,0]
[]
[null,"% du Total des coûts du projet représentés par la subvention",{"$f":"IFERROR((C179/C235),\"\")","v":""},"","","","","","",""]
[null,"Les honoraires, droits d'auteur, redevances et autres montants appropriés doivent être convenus par les collaborateurs du projet et le demandeur, et doivent être égaux ou supérieurs aux normes canadiennes actuelles."]

{"sheet":"H COMP Activités","index":8,"n_rows":48,"n_cols":9,"rows_kept":48,"cut":false,"hidden":false,"merged":[[3,2,3,8],[5,2,5,8],[1,2,1,8]]}
[null,null,{"$f":"'Data Validation'!A1","v":"v202205"}]
[null,null,"Appuyer la pratique artistique : Innovation et développement du secteur – Subventions composites "]
[]
[null,null,"Activités incluses dans votre projet de subvention composite"]
[]
[null,null,"Fournissez une liste des activités financées par la demande de subvention composite en commençant par la première année de la subvention. La première année devrait être assez solide, cependant il est entendu que vous pouvez avoir moins de détails à mesure que vous avancez dans le futur.  Exemples d'activités à inclure : Conférences, symposiums, recherche, publication, ateliers, formation professionnelle, mentorat, développement de plateformes de ressources partagées, développement de modèles d'affaires ou de soutien, création de réseaux, etc. Au besoin, regroupez les programmes ou activités similaires."]
[]
[null,null,"Mois/année ou Période de temps","Nom de l'événement\n(le cas échéant)","Type d'activité","Contributeur clé ou Responsable de l'activité","Autres collaborateurs clés","Principaux bénéficiaires","Détails/Commentaires"]
[null,1]
[null,2]
[null,3]
[null,4]
[null,5]
[null,6]
[null,7]
[null,8]
[null,9]
[null,10]
[null,11]
[null,12]
[null,13]
[null,14]
[null,15]
[null,16]
[null,17]
[null,18]
[null,19]
[null,20]
[null,21]
[null,22]
[null,23]
[null,24]
[null,25]
[null,26]
[null,27]
[null,28]
[null,29]
[null,30]
[null,31]
[null,32]
[null,33]
[null,34]
[null,35]
[null,36]
[null,37]
[null,38]
[null,39]
[null,40]

{"sheet":"Data Validation","index":9,"n_rows":27,"n_cols":6,"rows_kept":27,"cut":false,"hidden":true,"merged":[]}
["v202205"]
[]
[]
[null,null,null,"activity drop down",null,"translate"]
[null,null,null,"SELECT",null,"SÉLECTIONNEZ"]
[null,null,null,"Collection",null,"Collection"]
[null,null,null,"Equipment",null,"Équipement (arts médiatique)"]
[null,null,null,"Production",null,"Production"]
[null,null,null,"Publication",null,"Publication"]
[null,null,null,"Other",null,"Autre"]
[]
[]
[null,null,null,"media arts drop down",null,"translate"]
[null,null,null,"SELECT",null,"SÉLECTIONNEZ"]
[null,null,null,"For distribution",null,"Pour distribution"]
[null,null,null,"For research, archives",null,"Pour recherche et archives"]
[null,null,null,"For rental",null,"Pour location"]
[null,null,null,"Other",null,"Autre"]
[]
[]
[null,null,null,"visual arts drop down",null,"translate"]
[null,null,null,"SELECT",null,"SÉLECTIONNEZ"]
[null,null,null,"Donated",null,"Donné"]
[null,null,null,"Purchased",null,"Achetée"]
[null,null,null,"Produced in-house",null,"Produite par l'organisme"]
[null,null,null,"Co-Production",null,"Coproduction"]
[null,null,null,"Other",null,"Autre"]